Workbook

Sheet Program Info
B1: Seattle Office Of Sustainability & Environment | J1: Revised: | K1: =Application!N2 -> 2018-01-18 | M1: =Application!P2 -> Version 1.0.2
G2: Building Tune-Up Accelerator
H47: More information about the program is available online: | I47: Tune-Up Accelerator Program Details
H48: Accelerator Help Desk: | I48: accelerator@seattle.gov
H49: Phone: | I49: 206-233-7184

Sheet Application
M2: Revised: | N2: ='Change Log, Version ID'!D6 -> 2018-01-18 | P2: ='Change Log, Version ID'!G2 -> Version 1.0.2
E3: Building Tune-Up Accelerator | J3: EMA: | N3: Supv:
J4: Proj. #: | M4: Date Assigned:
D5: Customer Energy Solutions - Business Conservation Program | J5: Project Name:
D6: Program Application for Building Tune-Up Accelerator | J6: City of Seattle Building ID:
J7: Facility Use: | O7: Use Code: | P7: =IF(L7="","",VLOOKUP(L7,'DropDown Lookups'!$A$11:$B$50,2,FALSE)) -> 
D8: Please enter information into the green cells & send to accelerator@seattle.gov Questions? Call 206-233-7184. | J8: For Internal Use Only
D10: Project Information & Site Address | IV10: New Construction
D11: Facility Name: | J11: Project Scope: (pick from the drop-down) | L11: Basic Tune-Up:
D12: Facility Address:
D13: City: | G13: Zip: | L13: =HLOOKUP(L11,'DropDown Lookups'!B1:D4,2,FALSE) -> This basic Tune-Up meets BTU Requirements. No other additional scope.
D14: Building Sq Ft (Exclude Parking):
D15: Customer Information
D16: Company name for Participation Agreement (as it appears on W-9): | M16: Tax ID:
D17: C/O (alternate business name):
D18: Mailing Address: | J18: City: | M18: State: | O18: Zip:
D19: Authorized Signer: | J19: Project Contact:
D20: Position: | J20: Position/ Company:
D21: Phone: | J21: Phone:
D22: Email Address: | J22: Email Address:
D24: Tune-Up Specialist Information
D25: First & Last Name:
D26: Address: | J26: City: | M26: State: | O26: Zip:
D27: Firm Name: | J27: Phone:
D28: Position: | J28: Email Address:
D30: Seattle City Light Legal Disclosures:
D31: This Form serves as an Application for participation in Seattle City Light’s Business Conservation Program (“Program”). Please read this Program Application Form in its entirety, fill in completely your current contact information, project information, and review the applicable Program Specifications and Guidelines. Program Application Information: 1) By submitting this Program Application Form, Seattle City Light (“SCL”) may contact the Program applicant to evaluate project information, proposed energy conservation measures, estimate energy savings, and to request of applicants to submit all Program Forms and supporting documentation. Once SCL determines a Program applicant’s eligibility for program participation, Program applicant is referred to as a “Program Participant” by SCL and may then voluntarily implement the energy conservation measures (ECMs) in accordance with applicable Program Specifications, Guidelines and other Program policies and requirements for participation in the Seattle City Light Business Conservation Program. Implement shall take its ordinary meaning, including but not limited to the installation, commissioning, replacement, or improvement of equipment or building systems for the purpose of conserving energy, or participation in any program aimed at reducing energy consumption. If, and only if, sufficient Program funding is available, and SCL can administratively verify the Program Participant’s completion of all Program Forms and the implementation of the conservation measures according to Program Specifications, Guidelines and other Program policies and requirements, then SCL may issue an incentive payment to the Program Participant. Program information, Forms, Specifications and Guidelines are publicly accessible on the Seattle City Light Website for the Business Conservation Program. 2) Since the Program is voluntary, Program Participant acknowledges the freedom to choose to implement any energy conservation measures in their facilities, or none at all. However, Program Participants may only receive an incentive payment if SCL determines such measures are eligible for the Program, are verified by SCL, and the project meets Program Specifications, Guidelines and other Program policies and requirements. The Program is not an entitlement program and requires complete participation and performance by the Program Participant. 3) Program Participant understands, has notice of, and voluntarily assumes any risks of injury or property damage that may arise during the implementation of energy conservation measures by Program Participant or by any third party contractor. SCL does not recommend any contractor or equipment used to implement energy conservation measures. Program Participant acknowledges that any list of past participating contractors provided by SCL is for informational purposes only. 4) Program Participant must at all times comply with all applicable codes, ordinances, laws, and regulations for all conservation measures implemented at the Site Address to be eligible for this Program. Program Participant and/or any third party contractor selected and used by Program Participant are solely responsible for ensuring compliance with applicable codes, ordinances laws and regulations, and not SCL. 5) Program Participant acknowledges that SCL’s verification process of Program Participant’s project information or the implementation of energy conservation measures is not, and shall not be construed as any type of certification of compliance with any applicable codes, rules or regulations, and is for administrative and Program purposes only. 6) Program Participant acknowledges that SCL does not recommend any brand or type of equipment for Participant’s facility or Site Address. SCL makes no promises, representations or warranties to Program Participant of any efficiencies of conservation measures, nor of any potential or actual energy savings, nor of any merchantability or fitness of operation, use, or for any other purpose. 7) For Program Participant to be eligible to receive an incentive payment, Program Participant shall grant permission and access to SCL, during program participation and for a period of up to three years thereafter, to visit the Participant’s Site Address to verify existing conditions and engage in the collection of usual and customary Business Conservation Program information related to Program Participant’s implementation of the energy conservation measure(s) at the Site Address. 8) The Program is a limited public utility subsidy that is subject to availability of funds, and any incentive amounts are subject to change or adjustment at the discretion of SCL, in accordance with applicable Program Guidelines, rules, regulations, and applicable city, state or federal law. 9) Program Participant understands that a Program prerequisite to receipt of any SCL incentive payment shall be for Program Participant to read, sign and agree to the terms and conditions of the Program Participation Agreement.
D53: Office of Sustainability & Environment Building Tune-Up Accelerator Program Legal Disclosures:
D54: 1) By submitting this Program Application, the Applicant understands that they are applying to become a “Program Participant” in the Tune-Up Accelerator Program (“Accelerator Program”) - A City of Seattle program offered through a cooperative agreement from the US Department of Energy. It is available for small to midsize nonresidential buildings (buildings of approximately 100,000 SF or less). The “Basic Tune-Up” is a one-time incentive opportunity to encourage building owners to voluntarily participate in the early adoption of a tune-up that will meet the Seattle Building Tune-Ups mandate (SMC 22.930) before the building is required to comply. (See section 12 for buildings not subject to the Seattle Building Tune-Ups mandate.) Seattle City Light (“SCL”) and the City of Seattle Office of Sustainability and Environment (“OSE”) are City of Seattle partners in this Program. Additional partners include the Smart Buildings Center, Pacific Northwest National Lab and University of Washington Integrated Design Lab. 2) The “Program Participant” in the Accelerator should be the Building Owner, which is defined as an individual or entity possessing a fee interest in a non-residential building or the building owner’s agent, such as a building manager or a lessee that acts on the owner’s behalf. 3) OSE will review the Program Application to determine initial eligibility for participation in the Tune-Up Accelerator Program. Upon approval by OSE, OSE will forward this Program Application to SCL for assignment of a SCL Energy Management Analyst that will work with the Program Applicant or their authorized agent to complete the SCL Program Participation Agreement and any other SCL documentation required to obtain SCL Tune-Up Accelerator Program “Basic Tune-Up” Incentive as detailed in the SCL Program Guidelines. 4) Program Participants in the Tune-Up Accelerator Program must work with a “Tune-Up Specialist” from a service provider firm that has completed a Tune-Up Accelerator Program Service Provider Training, sponsored by OSE. These firms are listed on the Accelerator Program website. The Program Participant understands that the scope of OSE’s service provider training is limited to the reporting requirements of the Tune-Up Accelerator program, and Customer further acknowledges that this is not intended by OSE or SCL to be a contractor recommendation. If the Program Participant would like an exception to work with another firm or to work with qualified in-house facility engineering staff, Program Participant must contact OSE in writing for pre-approval prior to any work to ensure the Tune-Up Specialist meets the requirements of the Tune-Up Accelerator Program. 5) Regardless of Program Participant’s chosen service provider firm or in-house staff in, individuals that oversee the building assessment and sign-off on the Tune-Up Accelerator Summary Report for the Basic Tune-Up must be qualified Tune-Up Specialists, which is an individual that meets the qualifications specified in Section 12 of the OSE Building Tune-Ups Director’s Rule 2016-01. 6) Program Participant will negotiate their own contract or Scope of Work with their chosen service provider firm’s Tune-Up Specialist (or workplan if using in-house facility engineering staff) and coordinate with them to obtain pre-authorization and complete all documentation needed to obtain Seattle City Light Basic Tune-Up Incentive and any other SCL incentive programs, and as negotiated under the terms of and conditions of the SCL Program Participation Agreement(s) and SCL Program Guidelines. 7) The Program Participant agrees to allow their selected Tune-Up Specialist access to the entire building and all tenant spaces (less than 5,000 SF with tenant owned equipment may be excluded) to collect information about the building’s equipment, operations, and energy consumption as needed to complete the Tune-Up Accelerator Program requirements. This includes completing the building assessment, collecting data to complete a building Asset Score, verifying corrective actions required, and completing the Tune-Up Accelerator Summary Report. 8) Program Participants in the Tune-Up Accelerator Program must submit the completed Tune-Up Accelerator Summary Report, signed by the Building Owner and Tune-Up Specialist to the Accelerator Program no later than June 30, 2019 to use Accelerator Program participation as an alternative compliance pathway to meet the Seattle Building Tune-Ups requirement (a City of Seattle ordinance SMC 22.930). This report will be reviewed by OSE to determine if the Building Owner met the requirements of Section 11 of the OSE Building Tune-Ups Director’s Rule 2016-01. If the Summary Report is approved by OSE, the building owner will be granted a one-time exemption to the first required Seattle Building Tune-Ups Program deadline. Program Participants that submit reports determined to not meet requirements will be contacted and offered an opportunity to correct and resubmit no later than August 31, 2019. Tune-Up Accelerator Summary Reports that are determined by OSE to meet the requirements will be forwarded by OSE to SCL to be used by SCL as incentive program documentation. (See section 12 for buildings not subject to the Seattle Building Tune-Ups mandate.) 9) SCL will estimate incentive payments per the SCL Program Guidelines. Any final incentive payments will be determined SCL’s sole discretion and under the terms of and conditions of the SCL Program Participation Agreement and the SCL Program Guidelines. 10) In addition to any program verification that may be required by SCL, Program Participant agrees to allow access to the building and tenant spaces for the Accelerator Program to conduct measurement and verification (M&V) of results. This may require one or more on-site visits, to be scheduled at mutually agreeable dates and time. (NOTE: M&V is for Accelerator Program analysis purposes only and will be conducted on a sample of buildings. Incentives that have been agreed upon by SCL will not be changed by the result of any additional Accelerator Program M&V.) 11) Program Participant understands that under Washington State Law (RCW Chapter 42.56, the Public Records Act) all records received or created by the City of Seattle are considered public records. Public records include annual energy consumption reports as required under Seattle Municipal Code, SMC 22.920 and any documents submitted by the Applicant or the Service Provider to City to participate in the Tune-Up Accelerator Program. 12) Buildings within the City of Seattle (less than 50,000 SF excluding parking) and buildings outside of the City of Seattle, but within City Light territory (City Light customers) are not subject to the City of Seattle Building Tune-Ups requirement. Buildings meeting these criteria may still participate in the Tune-Up Accelerator program and are eligible for the “Basic Tune-Up” incentive. OSE will review the Tune-Up Summary Report for completeness and accuracy, and make a recommendation to City Light for the final “Tune-Up Action” incentive. City Light will determine the final incentive payment.
D72: By submitting this Application Form, I am requesting Seattle City Light and Office of Sustainability and Environment to verify my participation and eligibility for the Program, and I acknowledge that I have fully read and understand the above Program information. I acknowledge that Program information, Forms, Specifications and Guidelines are publicly accessible on the Tune-Up Accelerator Website and Project Specific Guidelines will be provided to me with a Program Participation Agreement.
N73: Revised: | O73: ='Change Log, Version ID'!D6 -> 2018-01-18 | P73: ='Change Log, Version ID'!G2 -> Version 1.0.2

Sheet Incentive Calculator (hidden)
F3: Accelerator Program Basic Tune-Up Incentive Calculator
E6: SCL Project # | F6: =IF(ISBLANK(Application!L4),"",Application!L4) -> 
E7: Facility Name: | F7: =IF(ISBLANK(Application!E11),"",Application!E11) -> 
E8: Address: | F8: =IF(ISBLANK(Application!E12),"",Application!E12) -> 
D9: 1 | E9: Building Benchmark Data
E11: Seattle Building benchmark ID # | F11: Building Type | G11: King County Parcel ID #
E12: =IF(Application!L6="","",Application!L6) ->  | F12: =LOOKUP($E$12,'TuneUpsBuildings052317-2016EUI'!$A$2:$A$1566,'TuneUpsBuildings052317-2016EUI'!$E$2:$E$1566) ->  | G12: =LOOKUP($E$12,'TuneUpsBuildings052317-2016EUI'!$A$2:$A$1566,'TuneUpsBuildings052317-2016EUI'!$C$2:$C$1566) -> 
E13: Seattle Benchmark Building Name: | F13: =LOOKUP($E$12,'TuneUpsBuildings052317-2016EUI'!$A$2:$A$15667,'TuneUpsBuildings052317-2016EUI'!$F$2:$F$1566) ->  | G13: =LOOKUP($E$12,'TuneUpsBuildings052317-2016EUI'!$A$2:$A$1551,'TuneUpsBuildings052317-2016EUI'!$E$2:$E$1547) -> 
E14: Year Ending 2016 kWh Consumption | F14: EUI Rank (2016 Benchmark data) | G14: EPA (Benchmark) Reported Floor Area- SqFt | H14: Gross Floor Area (less Parking)
E15: =LOOKUP($E$12,'TuneUpsBuildings052317-2016EUI'!$A$2:$A$1566,'TuneUpsBuildings052317-2016EUI'!$I$2:$I$1566) ->  | F15: =LOOKUP($E$12,'TuneUpsBuildings052317-2016EUI'!$A$2:$A$1566,'TuneUpsBuildings052317-2016EUI'!$N$2:$N$1566) ->  | G15: =LOOKUP($E$12,'TuneUpsBuildings052317-2016EUI'!$A$2:$A$1566,'TuneUpsBuildings052317-2016EUI'!$J$2:$J$1566) ->  | H15: =LOOKUP($E$12,'TuneUpsBuildings052317-2016EUI'!$A$2:$A$1566,'TuneUpsBuildings052317-2016EUI'!$K$2:$K$1566) -> 
H17: =IF('Incentive Calculator'!E45="","") -> FALSE
D19: 2. | E19: Tune-Up Cost Estimate (Contains a Default Value- Substitute Actual Costs When Available) | L19: TUNE-UP COST ESTIMATE
E20: =E29*M23 -> 0 | F20: Assessment Cost Estimate | G20: 0.101 | H20: Sales tax Rate | M20: If Customer has not selected a Tune-up Specialist
E21: =E29*M25 -> 0 | F21: Basic Tune-Up "Actions" Cost Estimate | M21: When processing the incentive application then
E22: =(E20+E21)*G20 -> 0 | F22: WA State sales Tax | M22: Use a default value. Prorate payments @ 70% of actual costs
E23: =SUM(E20:E22) -> 0 | F23: Total Tune-Up Cost Estimate | G23: =E23/E29 ->  | H23: Estimated Tune-Up Cost/ SqFt | M23: 0.09 | N23: Est. per SqFt Assessment Cost
M25: 0.15 | N25: Est. Per SqFt Basic Tune-Up Cost
D27: 3. | E27: Eligible Floor Area for Tune-Up Incentive Estimate
E28: =IF(Application!E14="","",Application!E14) ->  | F28: SqFt- Floor Area on Application
F29: SqFt- Floor Area for Incentive Calculation
E30: Confirm eligible floor area in King County Parcel Viewer, resolve discrepancies with building owner- Link below, enter parcel ID#
E31: Comments / Notes on reason for any adjusted floor area | H31: King County Parcel Viewer
D39: 4. | E39: Incentive Funding Estimate
E40: 0.03 | F40: / SqFt Tune-Up Assessment Phase | H40: Avg. Electricity Cost/ kWh
E41: 0.09 | F41: / SqFT Required Tune-Up Actions | H41: 0.08
E42: Incentive of up to a total of $0.12/ Square Foot of eligible floor area, or 70% of tune-up costs, whichever is less
E43: 0.7 | F43: Incentive Cost Cap
H44: % of Assessment Cost | I44: =$E$45/($E$20*(1+$G$20)) -> 
E45: =MIN($E$40*$E$29,$E$20*(1+$G$20)*0.7) -> 0 | F45: Basic Tune-Up Assessment Incentive (Estimate) | H45: % of Actions Cost | I45: =$E$46/($E$21*(1+$G$20)) -> 
E46: =IF($I$44>=0.7,MIN($E$23*0.7-$E$45,$E$29*$E$41+(($E$40*$E$29)-$E$45)),MIN($E$23*0.7-E45,$E$29*$E$41)) ->  | F46: Basic Tune-Up "Action" Incentive (Estimate) | H46: % of Total Tune-Up | I46: =$E$47/$E$23 -> 
E47: =SUM(E45:E46) ->  | F47: Total Estimated Incentive | H47: Incentive per SqFt | I47: =E47/E29 -> 
E48: This incentive estimate is not a promise of funding. Actual incentive funding will be detailed in a program participation agreement
D51: 5. | E51: Energy Savings Estimate
E52: Building Type | F52: Base Line EUI Classification | G52: Year Ending 2016 kWh Consumption | I52: kWh/SqFt
E53: =_xlfn.IFNA(F12," ") ->  | F53: =_xlfn.IFNA(F15," ") ->  | G53: =IF(E12="","",E15) ->  | I53: =IF(G53="","",G53/E29) -> 
E55: Prior 12 Month Electric Use (start - end dates) | F55: Prior 12 month kWh Consumption | G55: Estimated Energy Savings Reduction % | H55: Estimated annual kWh savings | I55: kWh/SqFt
E56: =IF(E67="","",(CONCATENATE(TEXT(E67,"MM/DD/YYYY")," - ",TEXT(F78,"MM/DD/YYYY")))) ->  | F56: =IF(G79="","",G79) ->  | G56: =IF(E12="","",INDEX(kWhSavingsPct,MATCH('Incentive Calculator'!E53,BldgTypes,0),MATCH('Incentive Calculator'!F53,EUI_Class,0))) ->  | H56: =IF(F56="","",(F56*G56)) ->  | I56: =IF(F56="","",(F56/E29)) -> 
F57: =IF(F56="","",(IF(OR($F$56>=($G$53*1.1),$F$56<=($G$53*0.9)),"Verify Prior 12 Month kWh- +/-10% to 2016 usage ",""))) -> 
E61: Incentive Estimate Completed By (Name, Title) | H61: Date
G62: Revised: | H62: ='Change Log, Version ID'!D6 -> 2018-01-18 | J62: ='Change Log, Version ID'!G2 -> Version 1.0.2
E65: Most recent 12 month Consumption History
E66: Bill Start Date | F66: Bill End Date | G66: Bill KWh | H66: Bill KWh Charge
G79: =IF(G67= "","",SUM(G67:G78)) ->  | H79: =SUM(H67:H78) -> 0
E82: Table of Deemed Electric Energy Savings Percentage by EUI classification (Quartiles)
E83: City Of Seattle Building Type Name | F83: PNNL Re-Tuning Study Building Type Applied | G83: Highest Use | H83: Medium High | I83: Medium Low | J83: Lowest Use
B84: ID# - For "Non-Seattle Buildings | G84: Savings (Inefficient) | H84: Savings (Typical) | I84: Savings (Typical) | J84: Savings (Efficient)
B85: 99901 | E85: College/University | F85: Large Office, College University, Hospital (Administrative) | G85: 0.138 | H85: 0.069 | I85: 0.069 | J85: 0.043
B86: 99902 | E86: Distribution Center | F86: Stripmall Retail | G86: 0.093 | H86: 0.091 | I86: 0.091 | J86: 0
B87: 99903 | E87: Hospital | F87: Large Office, College University, Hospital (Administrative) | G87: 0.138 | H87: 0.069 | I87: 0.069 | J87: 0.043
B88: 99904 | E88: Hotel | F88: Large Hotel | G88: 0.156 | H88: 0.134 | I88: 0.134 | J88: 0.144
B89: 99905 | E89: K-12 School | F89: Primary School | G89: 0.165 | H89: 0.126 | I89: 0.126 | J89: 0.013
B90: 99906 | E90: Medical Office | F90: Medium Office, Outpatient Healthcare | G90: 0.342 | H90: 0.181 | I90: 0.181 | J90: 0.082
B91: 99907 | E91: Mixed Use Property | F91: Large Office, College University, Hospital (Administrative) | G91: 0.138 | H91: 0.069 | I91: 0.069 | J91: 0.043
B92: 99908 | E92: Multifamily Housing | F92: Large Office, College University, Hospital (Administrative) | G92: 0.138 | H92: 0.069 | I92: 0.069 | J92: 0.043
B93: 99909 | E93: Non-Refrigerated Warehouse | F93: Supermarket, other Food Sales | G93: 0.053 | H93: 0.053 | I93: 0.053 | J93: 0
B94: 99910 | E94: Office | F94: Large Office, College University, Hospital (Administrative) | G94: 0.138 | H94: 0.069 | I94: 0.069 | J94: 0.043
B95: 99911 | E95: Other | F95: Large Office, College University, Hospital (Administrative) | G95: 0.138 | H95: 0.069 | I95: 0.069 | J95: 0.043
B96: 99912 | E96: Refrigerated Warehouse | F96: Supermarket, other Food Sales | G96: 0.053 | H96: 0.053 | I96: 0.053 | J96: 0.038
B97: 99913 | E97: Residence Hall/Dormitory | F97: Large Office, College University, Hospital (Administrative) | G97: 0.138 | H97: 0.069 | I97: 0.069 | J97: 0.043
B98: 99914 | E98: Restaurant | F98: Supermarket, other Food Sales | G98: 0.053 | H98: 0.053 | I98: 0.053 | J98: 0.038
B99: 99915 | E99: Retail Store | F99: Stripmall Retail | G99: 0.093 | H99: 0.091 | I99: 0.091 | J99: 0
B100: 99916 | E100: Self-Storage Facility | F100: Stripmall Retail | G100: 0.093 | H100: 0.091 | I100: 0.091 | J100: 0
B101: 99917 | E101: Senior Care Community | F101: Large Hotel | G101: 0.156 | H101: 0.134 | I101: 0.134 | J101: 0.144
B102: 99918 | E102: Supermarket/Grocery Store | F102: Supermarket, other Food Sales | G102: 0.053 | H102: 0.053 | I102: 0.053 | J102: 0.038
B103: 99919 | E103: Worship Facility | F103: Primary School | G103: 0.165 | H103: 0.126 | I103: 0.126 | J103: 0.013
E106: Energy Savings and Peak Load Reduction Benefits from Building Controls Measures in Seattle, Washington; May, 2017
E107: Pacific Northwest National Laboratory
E108: Table A-2

Sheet Estimate (hidden)
I3: Project Number: | J3: =Application!L4 -> 0
C4: Customer Energy Solutions - Building Tune-Up Accelerator | I4: Seattle Benchmark Program Building ID # | J4: =IF(Application!L6="","",Application!L6) -> 
C5: Incentive Estimate | I5: Date:
I7: Estimated annual cash savings: | J7: =IF(J22="","",J22) -> 
C8: =IF(Application!L5="","",Application!L5) ->  | I8: Estimated cost after incentives: | J8: =IF(G22="","",(G22-H22)) -> 
C9: =IF(Application!E11="","",Application!E11) ->  | I9: Estimated Seattle City Light Incentive: | J9: =H22 -> 
C10: =IF(Application!E12="","",CONCATENATE(Application!E12,", ",Application!E13," ",Application!I13)) ->  | I10: Estimated Incentive as a Percent of Cost: | J10: =H22/G22 -> 
I11: Estimated Simple Payback: | J11: =IF(J10="","",CONCATENATE(ROUND(J8/J7,2)," years")) -> 
D12: =IF('Incentive Calculator'!E29="","",'Incentive Calculator'!E29) ->  | F12: Floor Area (Square Foot) used for Incentive Calculation | I12: Estimated ROI: | J12: =IF(J11="","",1/(J8/J7)) -> 
I13: Greenhouse Gas Reduction: | J13: =IF(I22>0,(ROUND($I$22*0.0006,0)&" tons"),"") -> 
D14: =IF(H22="","",(H22/E18)) ->  | F14: Estimated Incentive per Square Foot of Eligible Floor Area
C16: ECM # | D16: Life (yrs) | E16: Floor Area SqFt | F16: Energy Conservation Measure | G16: Estimated Project Cost | H16: Estimated SCL Incentive Amount | I16: Estimated Electricity Savings kWh/year | J16: Estimated Electricity Savings $/year
C17: 1 | D17: 3 | E17: 4 | F17: 6 | G17: 9 | H17: 15 | I17: 16
C18: 1 | D18: 3 | E18: =IF('Incentive Calculator'!$E$29="","",'Incentive Calculator'!$E$29) ->  | F18: =IF('Project Summary Form'!G22="","",'Project Summary Form'!G22) -> Basic Building Tune-Up (Assessment) | G18: =IF('Incentive Calculator'!E20="","",'Incentive Calculator'!E20) -> 0 | H18: =IF('Incentive Calculator'!E45="","",'Incentive Calculator'!E45) -> 0 | J18: =IF(D18="","",'Project Summary Form'!Q22) -> 0
C19: 2 | D19: 3 | E19: =IF('Incentive Calculator'!$E$29="","",'Incentive Calculator'!$E$29) ->  | F19: =IF('Project Summary Form'!G23="","",'Project Summary Form'!G23) -> Basic Building Tune-Up (Implementation) | G19: =IF('Incentive Calculator'!E21="","",'Incentive Calculator'!E21+'Incentive Calculator'!E22) -> 0 | H19: =IF('Incentive Calculator'!E46="","",'Incentive Calculator'!E46) ->  | I19: =IF('Incentive Calculator'!H56="","",'Incentive Calculator'!H56) ->  | J19: =IF(D19="","",I19*'[6]Project Summary'!$Q$3) -> 
C22: TOTALS | G22: =SUM(G18:G21) -> 0 | H22: =SUM(H18:H21) ->  | I22: =SUM(I18:I21) -> 0 | J22: =SUM(J18:J21) -> 
C24: =CONCATENATE("Seattle City Light has received your project application and proposal to increase the energy efficiency of your facility at the Site Address listed above. Project number ",J3," has been assigned to your project. Please reference this number when contacting Seattle City Light regarding your project.") -> Seattle City Light has received your project application and proposal to increase the energy efficiency of your facility at the Site Address listed above. Project number 0 has been assigned to your project. Please reference this number when contacting Seattle City Light regarding your project.
C25: Based upon the preliminary information received, the estimated energy efficiency incentive is summarized by measure in the table above. If the energy conservation measures are implemented at your facility at the Site Address as shown on the worksheets associated with this estimate, and are implemented in compliance with the Seattle City Light Program Requirements, Specifications and Guidelines, you may be eligible for the above estimated incentive payment. This Estimated Incentive Notice is not a guarantee or promise to pay a specific amount by SCL.
C27: In order to receive an incentive payment from Seattle City Light for the Project listed above, the following steps must occur:
C29: 1) Please read and sign the attached Program Participation Agreement in the Adobe Sign link provided.
C30: 2) Implement your project’s energy conservation measures according to Program Requirements, Specifications, and Guidelines.
C31: 3) Upon completing your project, submit the following items to your SCL Energy Management Analyst (EMA): a. Invoices for materials and labor b. A W-9 form for your organization or entity c. Revised worksheets, if the project has changed
C32: 4) Your EMA will review your project and may schedule a site visit to verify the implementation of program eligible energy conservation measures (this process may take 4-6 weeks).
C33: 5) Once the installed measures have been verified and deemed eligible, your EMA will send you an Adobe Sign link to sign your Conservation Incentive Payment Request Form, which details the final incentive amount. If you plan to assign payment to a 3rd party, your EMA will also include a Payment Assignment Form
C34: 6) Please sign the Conservation Incentive Payment Request Form (and Payment Assignment Form if applicable) through the Adobe Sign link. The Payment Request Form must be signed by an authorized signer.
C35: Thank you for your participation in the Seattle City Light Business Conservation Program. Please contact your EMA with any questions.
C36: Customer Initials:
H38: Revised: | I38: ='Change Log, Version ID'!D6 -> 2018-01-18 | K38: ='Change Log, Version ID'!G2 -> Version 1.0.2

Sheet Estimate QC (hidden)
L3: Project Number:
L4: =IF(Application!$L$4="","",Application!$L$4) -> 
C5: Customer Energy Solutions - Business Conservation Program
C6: Tune-Up Accelerator Incentive Estimate QC Checklist
C8: Facility Name: | E8: =IF(Application!$E$11="","",Application!$E$11) -> 
C9: Facility Address: | E9: =IF(Application!$E$12="","",Application!$E$12) -> 
C10: EMA: | E10: =IF(Application!$L$3="","",Application!$L$3) -> 
G12: Project Summary | K12: Documentation Checklist
C13: EMA | D13: Supervisor | G13: Annual kWh savings | I13: =IF('Incentive Calculator'!H56="","",'Incentive Calculator'!H56) ->  | K13: Internal QC PDF
G14: SCL incentive amount | I14: =IF('Incentive Calculator'!E47="","",'Incentive Calculator'!E47) ->  | L14: Project Summary Form
C15: 1. Project Application | L15: Estimate QC Checklist
F16: Facility Use & EMA info is filled out | K16: Customer Facing PDF
F17: Project Scope selected | L17: Application Form
F18: Customer information is included | L18: Program Guidelines
F19: Correct Building Seattle Building ID | L19: Incentive Estimate
F20: Correct Building type Applied
F21: Floor Area (Less Parking) Provided | K21: Contract Folder on I drive
F22: Correct Signer & W-9 form provided | L22: TUPA Workbook
F23: SCL incentive info. provided for "Plus","Bldg.. Renewal" | L23: File named in correct convention
C24: 2. Scope of Work/ Site Data | L24: Bid
F25: Prior 12 month kWh Consumption verified | L25: W-9 or CCSS#
F26: Floor area eligible for incentive verified | L26: Internal/Customer facing PDFs
F27: Tune-Up Specialist identified (Optional for Estimate)
F28: Bid / Tune-Up Cost included (Optional for Estimate)
F29: Total Incentive estimate: <= $0.12/ Eligible SqFt or, 70% of Estimated Tune-Up Cost
C34: Send participation agreement to (EMA, please specify):
F35: Project Contact: | I35: =IF(Application!$L$19="","",Application!$L$19) -> 
F36: Authorized Signer: | I36: =IF(Application!$E$19="","",Application!$E$19) -> 
F37: Contractor: | I37: =IF(Application!$E$25="","",Application!$E$25) -> 
D39: By signing below I certify that I have verified all the items listed above in the QC Checklist:
D40: Name: | H40: Signature: | M40: Date:
C41: EMA
C42: Supervisor
K43: Revised: | L43: ='Change Log, Version ID'!D6 -> 2018-01-18 | N43: ='Change Log, Version ID'!G2 -> Version 1.0.2

Sheet Project Summary Form (hidden)
B1: See notes below the table for information about specific columns. Do not print the grey areas. Do not delete or add Rows or Columns. | T1: DO NOT DELETE | AB1: DO NOT DELETE | AC1: HIDE DO NOT DELETE THESE COLUMNS | AI1: HIDE DO NOT DELETE THESE COLUMNS | AO1: HIDE DO NOT DELETE | AR1: HIDE | AS1: HIDE | AT1: HIDE | AU1: HIDE DO NOT DELETE THESE COLUMNS | AX1: HIDE | AY1: HIDE | AZ1: HIDE | BA1: HIDE | BB1: HIDE | BC1: HIDE | BD1: HIDE
M2: Project #: | N2: =IF(ISBLANK(Application!L4),"",Application!L4) ->  | T2: GREY COLUMNS | AB2: GREY COLUMNS | AU2: FUNDING CAP CALCULATIONS
B3: Customer Energy Solutions - Business Conservation Program | P3: Average Cost of Electricity Assumed in Calculations, $/kWh: | Q3: =IF('Incentive Calculator'!H41="","",'Incentive Calculator'!H41) -> 0.08 | AC3: THESE COLUMNS ARE NORMALLY BE HIDDEN | AU3: The funding cap ratios are calculated at the BOTTOM OF THE FIXTURE COUNT WORKSHEET.
B4: Project Summary Form | P4: Out of pocket cost to customer: | Q4: =J22-M22 -> 0 | V4: LEVELIZED COST CALCULATION | AC4: DO NOT ERASE ANY OF THE CONTENTS, OR DELETE ANY OF THE GREY COLUMNS. | AU4: They are applied line by line in equations in the Project Summary Form (as well as on the Fixture Count Worksheet.)
B5: This form is autopulated. | I5: Total Resource Levelized Cost in $/kWh: | J5: =+X7 -> 0 | P5: ROI: | Q5: =IF(Q6="","",1/Q6) -> 
I6: Utility Levelized Cost in $/kWh: | J6: =+X6 -> 0 | P6: Simple payback (yrs): | Q6: =IF(Q47*Q3=0,"",+Q4/(Q47*Q3)) ->  | W6: Levelized Utility Cost, $/kWh: | X6: =IF(W47=0,0,+P47/(W47)) -> 0 | Y6: for project as whole | AD6: CONDITIONAL MESSAGES
D7: Facility Name: | E7: =IF(ISBLANK(Application!E11),"",Application!E11) ->  | P7: Incentive as a % of Total Cost: | Q7: =P47/total_cost_on_proj_sum ->  | W7: Levelized Total Resource Cost, $/kWh: | X7: =IF(W47=0,0,+total_cost_on_proj_sum/W47) -> 0 | Y7: for project as whole | AD7: Cell G11 has a formula that produces messages in the case of cap conditions.
D8: Address: | E8: =IF(ISBLANK(Application!E12),"",Application!E12) ->  | P8: Estimated annual cash savings: | Q8: =+Q3*savings_from_proj_sum_form ->  | AE8: It's reproduced here in case it gets inadvertently deleted from G11: | AU8: Cost-based Funding Cap Ratio: | AV8: =+Cost_Based_Funding_Cap_Ratio -> 0 | AW8: This ratio is multiplied times the uncapped funding.
P9: Total kWh Savings as a % of metered baseline building consumption: | Q9: =Q22/'Incentive Calculator'!F56 ->  | V9: These levelized cost calculations were added | AU9: Min-payback Funding Cap Ratio: | AV9: =+payback_based_funding_cap_ratio -> 0 | AW9: This ratio is multiplied times the (uncapped funding x cost-based cap ratio + bonus)
V10: Dec 20, 2012 by Phoebe Warren using equations from | AD10: =IF($O$8<0.5,"Payback less than 1/2 year.",IF($O$5<500,"Funding less than $500.",""))
V11: Brendan O'Donnell. | AU11: The two funding cap ratios are multiplied against different very amounts, so can't be directly compared.
G12: Accelerator Project Phase | Q12: =IF(payback_based_funding_cap_ratio<1,"",IF(Cost_Based_Funding_Cap_Ratio=0,"",IF(Cost_Based_Funding_Cap_Ratio<1,"The funding is capped based on cost.",""))) ->  | U12: Assumes a 3% discount on future kWh savings. | AD12: Data validation equation for cost of electricity: | AI12: =cost_per_kwh<0.2 -> TRUE | AJ12: max allowed cost of electricity
B13: =IF('[4]The Works Qualification'!$P$33="yes","This project is funded under The Works!PLUS.",IF('[4]The Works Qualification'!$P$31="yes","This Project is funded under The Works!BASIC.","")) ->  | G13: Tune-Up Actions | AI13: Do not erase.
F18: EMA: | H18: =[4]Application!O4 -> 0
B19: a | C19: b | D19: c | E19: d | F19: e | G19: f | H19: g | I19: h | J19: i | K19: j | L19: k | M19: l | N19: m | O19: n | P19: o | Q19: p | T19: cols. o/p | U19: column c | W19: pxcxratio | Y19: Lookup | Z19: Table | AU19: uncapped x overall cap ratio | AV19: error | AW19: % error
B20: ECM # | C20: Measure Code | D20: Measure Life (yrs) | E20: Capacity = SqFt Flr Area | F20: Total Capacity or Amount | G20: Measure Description | H20: Funding Code | I20: Baseline Code | J20: Total Cost | K20: Cost Code | L20: Per-unit Cost | M20: Funding prior to cost caps and Demo Tech Bonuses | N20: Funding Adjustment Code | O20: Demonstration Technology Bonus Amount | P20: SCL Incentive Amount | Q20: Annual kWh Savings (These data are entered into CITS) | T20: funding factors ($/kWh of funding) given here for reference | U20: measure life of ECM (yrs) | V20: Lifetime Discount Ratio (from lookup table to right) | W20: discounted lifetime savings = ratio x annual savings | X20: measure specific levelized utility cost = col o / discounted life svgs | Y20: measure life (yrs) | Z20: Lifetime Discount Ratio, used in calc to the left here | AU20: These numbers are here for information only. Not used in worksheets. Can be deleted without ill effect. | AV20: This table checks that funding caps equally applied to all lines
B21: 1 | C21: 2 | D21: 3 | E21: 4 | F21: 4 | G21: 14 | H21: 7 | I21: 8 | J21: 9 | K21: 10 | L21: 11 | M21: 11 | N21: 12 | O21: 15 | P21: equation here | Q21: 13 | W21: in kWh | Y21: 1 | Z21: 1
B22: 1 | C22: TOA | D22: 3 | E22: ='Incentive Calculator'!E29 -> 0 | F22: =IF($B22>MAX('[4]subtotals sheet'!$B$14:$B$62),"",VLOOKUP($B22,ECM_Lookup_on_FC,F$21,FALSE)) ->  | G22: Basic Building Tune-Up (Assessment) | H22: R | I22: E | J22: ='Incentive Calculator'!E20*(1+'Incentive Calculator'!$G$20) -> 0 | K22: T | L22: =IF(ISERROR(+J22/E22),"",+J22/E22) ->  | M22: =P22 -> 0 | N22: =IF($B22>MAX('[4]subtotals sheet'!$B$14:$B$62),"",VLOOKUP($B22,ECM_Lookup_on_FC,N$21,FALSE)) ->  | O22: =IF($B22>MAX('[4]subtotals sheet'!$B$14:$B$62),"",VLOOKUP($B22,ECM_Lookup_on_FC,O$21,FALSE)) ->  | P22: ='Incentive Calculator'!E45 -> 0 | T22: =IF(Q22="","",P22/Q22) ->  | U22: =+D22 -> 3 | V22: =IF(Q22="","",VLOOKUP(U22,$Y$21:$Z$62,2,FALSE)) ->  | W22: =IF(Q22="","",+Q22*V22*U22) ->  | X22: =IF(Q22="","",P22/W22) ->  | Y22: 2 | Z22: 0.9854368932 | AU22: =+M22*AU$47 ->  | AV22: =+P22-AU22 ->  | AW22: =+AV22/AU22 -> 
B23: =+B22+1 -> 2 | C23: TOI | D23: 3 | E23: ='Incentive Calculator'!E29 -> 0 | F23: =IF($B23>MAX('[4]subtotals sheet'!$B$14:$B$62),"",VLOOKUP($B23,ECM_Lookup_on_FC,F$21,FALSE)) ->  | G23: Basic Building Tune-Up (Implementation) | H23: R | I23: E | J23: ='Incentive Calculator'!E21*(1+'Incentive Calculator'!G20) -> 0 | K23: T | L23: =IF(ISERROR(+J23/E23),"",+J23/E23) ->  | M23: =P23 ->  | N23: =IF($B23>MAX('[4]subtotals sheet'!$B$14:$B$62),"",VLOOKUP($B23,ECM_Lookup_on_FC,N$21,FALSE)) ->  | O23: =IF($B23>MAX('[4]subtotals sheet'!$B$14:$B$62),"",VLOOKUP($B23,ECM_Lookup_on_FC,O$21,FALSE)) ->  | P23: ='Incentive Calculator'!E46 ->  | Q23: ='Incentive Calculator'!H56 ->  | T23: =IF(Q23="","",P23/Q23) ->  | U23: =+D23 -> 3 | V23: =IF(Q23="","",VLOOKUP(U23,$Y$21:$Z$62,2,FALSE)) ->  | W23: =IF(Q23="","",+Q23*V23*U23) ->  | X23: =IF(Q23="","",P23/W23) ->  | Y23: 3 | Z23: 0.9711565652 | AW23: =+AV23/AU23 -> 
B24: 3 | T24: =IF(Q24="","",P24/Q24) ->  | U24: 0 | W24: =IF(Q24="","",+Q24*V24*U24) ->  | X24: =IF(Q24="","",P24/W24) ->  | Y24: 4 | Z24: 0.9571528387 | AW24: =+AV24/AU24 -> 
B25: 4 | U25: 0 | Y25: 5 | Z25: 0.9434196806 | AC25: Hidden line. There is a hidden line under the column headings. This gives the column numbers in the Subtotals Sheet lookup table.
B26: 5 | U26: 0 | Y26: 6 | Z26: 0.9299511979 | AD26: The max number of lighting measures is determined in the Subtotal worksheet and Ref Sheet number of Proposed Fixture Types.
B27: 6 | U27: 0 | Y27: 7 | Z27: 0.9167416348 | AD27: The lighting lines are white (auto populated). The non-lighting ECMs are green (manually entered).
B28: 7 | U28: 0 | Y28: 8 | Z28: 0.9037853694
B29: 8 | U29: 0 | Y29: 9 | Z29: 0.8910769099
B30: 9 | U30: 0 | Y30: 10 | Z30: 0.8786108922
B31: 10 | U31: 0 | Y31: 11 | Z31: 0.8663820761
B32: 11 | U32: 0 | Y32: 12 | Z32: 0.8543853428
B33: 12 | U33: 0 | Y33: 13 | Z33: 0.8426156918
B34: 13 | U34: 0 | Y34: 14 | Z34: 0.8310682381
B35: 14 | U35: 0 | Y35: 15 | Z35: 0.8197382093
B36: 15 | U36: 0 | Y36: 16 | Z36: 0.8086209429
B37: 16 | U37: 0 | Y37: 17 | Z37: 0.7977118839
B38: 17 | C38: =IF($B38>MAX('[4]subtotals sheet'!$B$14:$B$62),"",VLOOKUP($B38,ECM_Lookup_on_FC,C$21,FALSE)) ->  | D38: =IF($B38>MAX('[4]subtotals sheet'!$B$14:$B$62),"",VLOOKUP($B38,ECM_Lookup_on_FC,D$21,FALSE)) ->  | E38: =IF($B38>MAX('[4]subtotals sheet'!$B$14:$B$62),"",VLOOKUP($B38,ECM_Lookup_on_FC,E$21,FALSE)) ->  | F38: =IF($B38>MAX('[4]subtotals sheet'!$B$14:$B$62),"",VLOOKUP($B38,ECM_Lookup_on_FC,F$21,FALSE)) ->  | G38: =IF($B38>MAX('[4]subtotals sheet'!$B$14:$B$62),"",VLOOKUP($B38,ECM_Lookup_on_FC,G$21,FALSE)) ->  | H38: =IF($B38>MAX('[4]subtotals sheet'!$B$14:$B$62),"",VLOOKUP($B38,ECM_Lookup_on_FC,H$21,FALSE)) ->  | I38: =IF($B38>MAX('[4]subtotals sheet'!$B$14:$B$62),"",VLOOKUP($B38,ECM_Lookup_on_FC,I$21,FALSE)) ->  | J38: =IF($B38>MAX('[4]subtotals sheet'!$B$14:$B$62),"",VLOOKUP($B38,ECM_Lookup_on_FC,J$21,FALSE)) ->  | K38: =IF($B38>MAX('[4]subtotals sheet'!$B$14:$B$62),"",VLOOKUP($B38,ECM_Lookup_on_FC,K$21,FALSE)) ->  | L38: =IF(ISERROR(+J38/F38),"",+J38/F38) ->  | M38: =IF($B38>MAX('[4]subtotals sheet'!$B$14:$B$62),"",VLOOKUP($B38,ECM_Lookup_on_FC,M$21,FALSE)) ->  | N38: =IF($B38>MAX('[4]subtotals sheet'!$B$14:$B$62),"",VLOOKUP($B38,ECM_Lookup_on_FC,N$21,FALSE)) ->  | O38: =IF($B38>MAX('[4]subtotals sheet'!$B$14:$B$62),"",VLOOKUP($B38,ECM_Lookup_on_FC,O$21,FALSE)) ->  | P38: =IF($B38>MAX('[4]subtotals sheet'!$B$14:$B$62),"",((VLOOKUP($B38,ECM_Lookup_on_FC,18,FALSE)+VLOOKUP($B38,ECM_Lookup_on_FC,15,FALSE))*payback_based_funding_cap_ratio)) ->  | Q38: =IF($B38>MAX('[4]subtotals sheet'!$B$14:$B$62),"",VLOOKUP($B38,ECM_Lookup_on_FC,Q$21,FALSE)) ->  | Y38: 18 | Z38: 0.7870065818
B39: 18 | C39: =IF($B39>MAX('[4]subtotals sheet'!$B$14:$B$62),"",VLOOKUP($B39,ECM_Lookup_on_FC,C$21,FALSE)) ->  | D39: =IF($B39>MAX('[4]subtotals sheet'!$B$14:$B$62),"",VLOOKUP($B39,ECM_Lookup_on_FC,D$21,FALSE)) ->  | E39: =IF($B39>MAX('[4]subtotals sheet'!$B$14:$B$62),"",VLOOKUP($B39,ECM_Lookup_on_FC,E$21,FALSE)) ->  | F39: =IF($B39>MAX('[4]subtotals sheet'!$B$14:$B$62),"",VLOOKUP($B39,ECM_Lookup_on_FC,F$21,FALSE)) ->  | G39: =IF($B39>MAX('[4]subtotals sheet'!$B$14:$B$62),"",VLOOKUP($B39,ECM_Lookup_on_FC,G$21,FALSE)) ->  | H39: =IF($B39>MAX('[4]subtotals sheet'!$B$14:$B$62),"",VLOOKUP($B39,ECM_Lookup_on_FC,H$21,FALSE)) ->  | I39: =IF($B39>MAX('[4]subtotals sheet'!$B$14:$B$62),"",VLOOKUP($B39,ECM_Lookup_on_FC,I$21,FALSE)) ->  | J39: =IF($B39>MAX('[4]subtotals sheet'!$B$14:$B$62),"",VLOOKUP($B39,ECM_Lookup_on_FC,J$21,FALSE)) ->  | K39: =IF($B39>MAX('[4]subtotals sheet'!$B$14:$B$62),"",VLOOKUP($B39,ECM_Lookup_on_FC,K$21,FALSE)) ->  | M39: =IF($B39>MAX('[4]subtotals sheet'!$B$14:$B$62),"",VLOOKUP($B39,ECM_Lookup_on_FC,M$21,FALSE)) ->  | N39: =IF($B39>MAX('[4]subtotals sheet'!$B$14:$B$62),"",VLOOKUP($B39,ECM_Lookup_on_FC,N$21,FALSE)) ->  | O39: =IF($B39>MAX('[4]subtotals sheet'!$B$14:$B$62),"",VLOOKUP($B39,ECM_Lookup_on_FC,O$21,FALSE)) ->  | P39: =IF($B39>MAX('[4]subtotals sheet'!$B$14:$B$62),"",((VLOOKUP($B39,ECM_Lookup_on_FC,18,FALSE)+VLOOKUP($B39,ECM_Lookup_on_FC,15,FALSE))*payback_based_funding_cap_ratio)) ->  | Q39: =IF($B39>MAX('[4]subtotals sheet'!$B$14:$B$62),"",VLOOKUP($B39,ECM_Lookup_on_FC,Q$21,FALSE)) ->  | Y39: 19 | Z39: 0.7765006884
B40: 19 | C40: =IF($B40>MAX('[4]subtotals sheet'!$B$14:$B$62),"",VLOOKUP($B40,ECM_Lookup_on_FC,C$21,FALSE)) ->  | D40: =IF($B40>MAX('[4]subtotals sheet'!$B$14:$B$62),"",VLOOKUP($B40,ECM_Lookup_on_FC,D$21,FALSE)) ->  | E40: =IF($B40>MAX('[4]subtotals sheet'!$B$14:$B$62),"",VLOOKUP($B40,ECM_Lookup_on_FC,E$21,FALSE)) ->  | F40: =IF($B40>MAX('[4]subtotals sheet'!$B$14:$B$62),"",VLOOKUP($B40,ECM_Lookup_on_FC,F$21,FALSE)) ->  | G40: =IF($B40>MAX('[4]subtotals sheet'!$B$14:$B$62),"",VLOOKUP($B40,ECM_Lookup_on_FC,G$21,FALSE)) ->  | H40: =IF($B40>MAX('[4]subtotals sheet'!$B$14:$B$62),"",VLOOKUP($B40,ECM_Lookup_on_FC,H$21,FALSE)) ->  | I40: =IF($B40>MAX('[4]subtotals sheet'!$B$14:$B$62),"",VLOOKUP($B40,ECM_Lookup_on_FC,I$21,FALSE)) ->  | J40: =IF($B40>MAX('[4]subtotals sheet'!$B$14:$B$62),"",VLOOKUP($B40,ECM_Lookup_on_FC,J$21,FALSE)) ->  | K40: =IF($B40>MAX('[4]subtotals sheet'!$B$14:$B$62),"",VLOOKUP($B40,ECM_Lookup_on_FC,K$21,FALSE)) ->  | M40: =IF($B40>MAX('[4]subtotals sheet'!$B$14:$B$62),"",VLOOKUP($B40,ECM_Lookup_on_FC,M$21,FALSE)) ->  | N40: =IF($B40>MAX('[4]subtotals sheet'!$B$14:$B$62),"",VLOOKUP($B40,ECM_Lookup_on_FC,N$21,FALSE)) ->  | O40: =IF($B40>MAX('[4]subtotals sheet'!$B$14:$B$62),"",VLOOKUP($B40,ECM_Lookup_on_FC,O$21,FALSE)) ->  | P40: =IF($B40>MAX('[4]subtotals sheet'!$B$14:$B$62),"",((VLOOKUP($B40,ECM_Lookup_on_FC,18,FALSE)+VLOOKUP($B40,ECM_Lookup_on_FC,15,FALSE))*payback_based_funding_cap_ratio)) ->  | Q40: =IF($B40>MAX('[4]subtotals sheet'!$B$14:$B$62),"",VLOOKUP($B40,ECM_Lookup_on_FC,Q$21,FALSE)) ->  | Y40: 22 | Z40: 0.7461374607
B41: 20 | C41: =IF($B41>MAX('[4]subtotals sheet'!$B$14:$B$62),"",VLOOKUP($B41,ECM_Lookup_on_FC,C$21,FALSE)) ->  | D41: =IF($B41>MAX('[4]subtotals sheet'!$B$14:$B$62),"",VLOOKUP($B41,ECM_Lookup_on_FC,D$21,FALSE)) ->  | E41: =IF($B41>MAX('[4]subtotals sheet'!$B$14:$B$62),"",VLOOKUP($B41,ECM_Lookup_on_FC,E$21,FALSE)) ->  | F41: =IF($B41>MAX('[4]subtotals sheet'!$B$14:$B$62),"",VLOOKUP($B41,ECM_Lookup_on_FC,F$21,FALSE)) ->  | G41: =IF($B41>MAX('[4]subtotals sheet'!$B$14:$B$62),"",VLOOKUP($B41,ECM_Lookup_on_FC,G$21,FALSE)) ->  | H41: =IF($B41>MAX('[4]subtotals sheet'!$B$14:$B$62),"",VLOOKUP($B41,ECM_Lookup_on_FC,H$21,FALSE)) ->  | I41: =IF($B41>MAX('[4]subtotals sheet'!$B$14:$B$62),"",VLOOKUP($B41,ECM_Lookup_on_FC,I$21,FALSE)) ->  | J41: =IF($B41>MAX('[4]subtotals sheet'!$B$14:$B$62),"",VLOOKUP($B41,ECM_Lookup_on_FC,J$21,FALSE)) ->  | K41: =IF($B41>MAX('[4]subtotals sheet'!$B$14:$B$62),"",VLOOKUP($B41,ECM_Lookup_on_FC,K$21,FALSE)) ->  | M41: =IF($B41>MAX('[4]subtotals sheet'!$B$14:$B$62),"",VLOOKUP($B41,ECM_Lookup_on_FC,M$21,FALSE)) ->  | N41: =IF($B41>MAX('[4]subtotals sheet'!$B$14:$B$62),"",VLOOKUP($B41,ECM_Lookup_on_FC,N$21,FALSE)) ->  | O41: =IF($B41>MAX('[4]subtotals sheet'!$B$14:$B$62),"",VLOOKUP($B41,ECM_Lookup_on_FC,O$21,FALSE)) ->  | P41: =IF($B41>MAX('[4]subtotals sheet'!$B$14:$B$62),"",((VLOOKUP($B41,ECM_Lookup_on_FC,18,FALSE)+VLOOKUP($B41,ECM_Lookup_on_FC,15,FALSE))*payback_based_funding_cap_ratio)) ->  | Q41: =IF($B41>MAX('[4]subtotals sheet'!$B$14:$B$62),"",VLOOKUP($B41,ECM_Lookup_on_FC,Q$21,FALSE)) -> 
B42: 21 | C42: =IF($B42>MAX('[4]subtotals sheet'!$B$14:$B$62),"",VLOOKUP($B42,ECM_Lookup_on_FC,C$21,FALSE)) ->  | D42: =IF($B42>MAX('[4]subtotals sheet'!$B$14:$B$62),"",VLOOKUP($B42,ECM_Lookup_on_FC,D$21,FALSE)) ->  | E42: =IF($B42>MAX('[4]subtotals sheet'!$B$14:$B$62),"",VLOOKUP($B42,ECM_Lookup_on_FC,E$21,FALSE)) ->  | F42: =IF($B42>MAX('[4]subtotals sheet'!$B$14:$B$62),"",VLOOKUP($B42,ECM_Lookup_on_FC,F$21,FALSE)) ->  | G42: =IF($B42>MAX('[4]subtotals sheet'!$B$14:$B$62),"",VLOOKUP($B42,ECM_Lookup_on_FC,G$21,FALSE)) ->  | H42: =IF($B42>MAX('[4]subtotals sheet'!$B$14:$B$62),"",VLOOKUP($B42,ECM_Lookup_on_FC,H$21,FALSE)) ->  | I42: =IF($B42>MAX('[4]subtotals sheet'!$B$14:$B$62),"",VLOOKUP($B42,ECM_Lookup_on_FC,I$21,FALSE)) ->  | J42: =IF($B42>MAX('[4]subtotals sheet'!$B$14:$B$62),"",VLOOKUP($B42,ECM_Lookup_on_FC,J$21,FALSE)) ->  | K42: =IF($B42>MAX('[4]subtotals sheet'!$B$14:$B$62),"",VLOOKUP($B42,ECM_Lookup_on_FC,K$21,FALSE)) ->  | M42: =IF($B42>MAX('[4]subtotals sheet'!$B$14:$B$62),"",VLOOKUP($B42,ECM_Lookup_on_FC,M$21,FALSE)) ->  | N42: =IF($B42>MAX('[4]subtotals sheet'!$B$14:$B$62),"",VLOOKUP($B42,ECM_Lookup_on_FC,N$21,FALSE)) ->  | O42: =IF($B42>MAX('[4]subtotals sheet'!$B$14:$B$62),"",VLOOKUP($B42,ECM_Lookup_on_FC,O$21,FALSE)) ->  | P42: =IF($B42>MAX('[4]subtotals sheet'!$B$14:$B$62),"",((VLOOKUP($B42,ECM_Lookup_on_FC,18,FALSE)+VLOOKUP($B42,ECM_Lookup_on_FC,15,FALSE))*payback_based_funding_cap_ratio)) ->  | Q42: =IF($B42>MAX('[4]subtotals sheet'!$B$14:$B$62),"",VLOOKUP($B42,ECM_Lookup_on_FC,Q$21,FALSE)) -> 
B43: 22 | C43: =IF($B43>MAX('[4]subtotals sheet'!$B$14:$B$62),"",VLOOKUP($B43,ECM_Lookup_on_FC,C$21,FALSE)) ->  | D43: =IF($B43>MAX('[4]subtotals sheet'!$B$14:$B$62),"",VLOOKUP($B43,ECM_Lookup_on_FC,D$21,FALSE)) ->  | E43: =IF($B43>MAX('[4]subtotals sheet'!$B$14:$B$62),"",VLOOKUP($B43,ECM_Lookup_on_FC,E$21,FALSE)) ->  | F43: =IF($B43>MAX('[4]subtotals sheet'!$B$14:$B$62),"",VLOOKUP($B43,ECM_Lookup_on_FC,F$21,FALSE)) ->  | G43: =IF($B43>MAX('[4]subtotals sheet'!$B$14:$B$62),"",VLOOKUP($B43,ECM_Lookup_on_FC,G$21,FALSE)) ->  | H43: =IF($B43>MAX('[4]subtotals sheet'!$B$14:$B$62),"",VLOOKUP($B43,ECM_Lookup_on_FC,H$21,FALSE)) ->  | I43: =IF($B43>MAX('[4]subtotals sheet'!$B$14:$B$62),"",VLOOKUP($B43,ECM_Lookup_on_FC,I$21,FALSE)) ->  | J43: =IF($B43>MAX('[4]subtotals sheet'!$B$14:$B$62),"",VLOOKUP($B43,ECM_Lookup_on_FC,J$21,FALSE)) ->  | K43: =IF($B43>MAX('[4]subtotals sheet'!$B$14:$B$62),"",VLOOKUP($B43,ECM_Lookup_on_FC,K$21,FALSE)) ->  | M43: =IF($B43>MAX('[4]subtotals sheet'!$B$14:$B$62),"",VLOOKUP($B43,ECM_Lookup_on_FC,M$21,FALSE)) ->  | N43: =IF($B43>MAX('[4]subtotals sheet'!$B$14:$B$62),"",VLOOKUP($B43,ECM_Lookup_on_FC,N$21,FALSE)) ->  | O43: =IF($B43>MAX('[4]subtotals sheet'!$B$14:$B$62),"",VLOOKUP($B43,ECM_Lookup_on_FC,O$21,FALSE)) ->  | P43: =IF($B43>MAX('[4]subtotals sheet'!$B$14:$B$62),"",((VLOOKUP($B43,ECM_Lookup_on_FC,18,FALSE)+VLOOKUP($B43,ECM_Lookup_on_FC,15,FALSE))*payback_based_funding_cap_ratio)) ->  | Q43: =IF($B43>MAX('[4]subtotals sheet'!$B$14:$B$62),"",VLOOKUP($B43,ECM_Lookup_on_FC,Q$21,FALSE)) -> 
B44: 23 | C44: =IF($B44>MAX('[4]subtotals sheet'!$B$14:$B$62),"",VLOOKUP($B44,ECM_Lookup_on_FC,C$21,FALSE)) ->  | D44: =IF($B44>MAX('[4]subtotals sheet'!$B$14:$B$62),"",VLOOKUP($B44,ECM_Lookup_on_FC,D$21,FALSE)) ->  | E44: =IF($B44>MAX('[4]subtotals sheet'!$B$14:$B$62),"",VLOOKUP($B44,ECM_Lookup_on_FC,E$21,FALSE)) ->  | F44: =IF($B44>MAX('[4]subtotals sheet'!$B$14:$B$62),"",VLOOKUP($B44,ECM_Lookup_on_FC,F$21,FALSE)) ->  | G44: =IF($B44>MAX('[4]subtotals sheet'!$B$14:$B$62),"",VLOOKUP($B44,ECM_Lookup_on_FC,G$21,FALSE)) ->  | H44: =IF($B44>MAX('[4]subtotals sheet'!$B$14:$B$62),"",VLOOKUP($B44,ECM_Lookup_on_FC,H$21,FALSE)) ->  | I44: =IF($B44>MAX('[4]subtotals sheet'!$B$14:$B$62),"",VLOOKUP($B44,ECM_Lookup_on_FC,I$21,FALSE)) ->  | J44: =IF($B44>MAX('[4]subtotals sheet'!$B$14:$B$62),"",VLOOKUP($B44,ECM_Lookup_on_FC,J$21,FALSE)) ->  | K44: =IF($B44>MAX('[4]subtotals sheet'!$B$14:$B$62),"",VLOOKUP($B44,ECM_Lookup_on_FC,K$21,FALSE)) ->  | M44: =IF($B44>MAX('[4]subtotals sheet'!$B$14:$B$62),"",VLOOKUP($B44,ECM_Lookup_on_FC,M$21,FALSE)) ->  | N44: =IF($B44>MAX('[4]subtotals sheet'!$B$14:$B$62),"",VLOOKUP($B44,ECM_Lookup_on_FC,N$21,FALSE)) ->  | O44: =IF($B44>MAX('[4]subtotals sheet'!$B$14:$B$62),"",VLOOKUP($B44,ECM_Lookup_on_FC,O$21,FALSE)) ->  | P44: =IF($B44>MAX('[4]subtotals sheet'!$B$14:$B$62),"",((VLOOKUP($B44,ECM_Lookup_on_FC,18,FALSE)+VLOOKUP($B44,ECM_Lookup_on_FC,15,FALSE))*payback_based_funding_cap_ratio)) ->  | Q44: =IF($B44>MAX('[4]subtotals sheet'!$B$14:$B$62),"",VLOOKUP($B44,ECM_Lookup_on_FC,Q$21,FALSE)) ->  | Y44: 23 | Z44: 0.7363876799
B45: 24 | C45: =IF($B45>MAX('[4]subtotals sheet'!$B$14:$B$62),"",VLOOKUP($B45,ECM_Lookup_on_FC,C$21,FALSE)) ->  | D45: =IF($B45>MAX('[4]subtotals sheet'!$B$14:$B$62),"",VLOOKUP($B45,ECM_Lookup_on_FC,D$21,FALSE)) ->  | E45: =IF($B45>MAX('[4]subtotals sheet'!$B$14:$B$62),"",VLOOKUP($B45,ECM_Lookup_on_FC,E$21,FALSE)) ->  | F45: =IF($B45>MAX('[4]subtotals sheet'!$B$14:$B$62),"",VLOOKUP($B45,ECM_Lookup_on_FC,F$21,FALSE)) ->  | G45: =IF($B45>MAX('[4]subtotals sheet'!$B$14:$B$62),"",VLOOKUP($B45,ECM_Lookup_on_FC,G$21,FALSE)) ->  | H45: =IF($B45>MAX('[4]subtotals sheet'!$B$14:$B$62),"",VLOOKUP($B45,ECM_Lookup_on_FC,H$21,FALSE)) ->  | I45: =IF($B45>MAX('[4]subtotals sheet'!$B$14:$B$62),"",VLOOKUP($B45,ECM_Lookup_on_FC,I$21,FALSE)) ->  | J45: =IF($B45>MAX('[4]subtotals sheet'!$B$14:$B$62),"",VLOOKUP($B45,ECM_Lookup_on_FC,J$21,FALSE)) ->  | K45: =IF($B45>MAX('[4]subtotals sheet'!$B$14:$B$62),"",VLOOKUP($B45,ECM_Lookup_on_FC,K$21,FALSE)) ->  | M45: =IF($B45>MAX('[4]subtotals sheet'!$B$14:$B$62),"",VLOOKUP($B45,ECM_Lookup_on_FC,M$21,FALSE)) ->  | N45: =IF($B45>MAX('[4]subtotals sheet'!$B$14:$B$62),"",VLOOKUP($B45,ECM_Lookup_on_FC,N$21,FALSE)) ->  | O45: =IF($B45>MAX('[4]subtotals sheet'!$B$14:$B$62),"",VLOOKUP($B45,ECM_Lookup_on_FC,O$21,FALSE)) ->  | P45: =IF($B45>MAX('[4]subtotals sheet'!$B$14:$B$62),"",((VLOOKUP($B45,ECM_Lookup_on_FC,18,FALSE)+VLOOKUP($B45,ECM_Lookup_on_FC,15,FALSE))*payback_based_funding_cap_ratio)) ->  | Q45: =IF($B45>MAX('[4]subtotals sheet'!$B$14:$B$62),"",VLOOKUP($B45,ECM_Lookup_on_FC,Q$21,FALSE)) ->  | Y45: 24 | Z45: 0.7268170161
B46: 25 | C46: =IF($B46>MAX('[4]subtotals sheet'!$B$14:$B$62),"",VLOOKUP($B46,ECM_Lookup_on_FC,C$21,FALSE)) ->  | D46: =IF($B46>MAX('[4]subtotals sheet'!$B$14:$B$62),"",VLOOKUP($B46,ECM_Lookup_on_FC,D$21,FALSE)) ->  | E46: =IF($B46>MAX('[4]subtotals sheet'!$B$14:$B$62),"",VLOOKUP($B46,ECM_Lookup_on_FC,E$21,FALSE)) ->  | F46: =IF($B46>MAX('[4]subtotals sheet'!$B$14:$B$62),"",VLOOKUP($B46,ECM_Lookup_on_FC,F$21,FALSE)) ->  | G46: =IF($B46>MAX('[4]subtotals sheet'!$B$14:$B$62),"",VLOOKUP($B46,ECM_Lookup_on_FC,G$21,FALSE)) ->  | H46: =IF($B46>MAX('[4]subtotals sheet'!$B$14:$B$62),"",VLOOKUP($B46,ECM_Lookup_on_FC,H$21,FALSE)) ->  | I46: =IF($B46>MAX('[4]subtotals sheet'!$B$14:$B$62),"",VLOOKUP($B46,ECM_Lookup_on_FC,I$21,FALSE)) ->  | J46: =IF($B46>MAX('[4]subtotals sheet'!$B$14:$B$62),"",VLOOKUP($B46,ECM_Lookup_on_FC,J$21,FALSE)) ->  | K46: =IF($B46>MAX('[4]subtotals sheet'!$B$14:$B$62),"",VLOOKUP($B46,ECM_Lookup_on_FC,K$21,FALSE)) ->  | M46: =IF($B46>MAX('[4]subtotals sheet'!$B$14:$B$62),"",VLOOKUP($B46,ECM_Lookup_on_FC,M$21,FALSE)) ->  | N46: =IF($B46>MAX('[4]subtotals sheet'!$B$14:$B$62),"",VLOOKUP($B46,ECM_Lookup_on_FC,N$21,FALSE)) ->  | O46: =IF($B46>MAX('[4]subtotals sheet'!$B$14:$B$62),"",VLOOKUP($B46,ECM_Lookup_on_FC,O$21,FALSE)) ->  | P46: =IF($B46>MAX('[4]subtotals sheet'!$B$14:$B$62),"",((VLOOKUP($B46,ECM_Lookup_on_FC,18,FALSE)+VLOOKUP($B46,ECM_Lookup_on_FC,15,FALSE))*payback_based_funding_cap_ratio)) ->  | Q46: =IF($B46>MAX('[4]subtotals sheet'!$B$14:$B$62),"",VLOOKUP($B46,ECM_Lookup_on_FC,Q$21,FALSE)) ->  | Y46: 25 | Z46: 0.7174216849 | AU46: =+M46*AU$47 -> 
B47: TOTALS | D47: 0 | E47: =IF(G13="Assessment",E22,IF(G13="Tune-Up Actions",E23,"")) -> 0 | J47: =IF(G13="Assessment",J22,IF(G13="Tune-Up Actions",J23,"")) -> 0 | L47: =IF(total_cost_on_proj_sum="","",total_cost_on_proj_sum/E22) ->  | M47: =IF(G13="Assessment",M22,IF(G13="Tune-Up Actions",M23,"")) ->  | O47: =SUM(O22:O46) -> 0 | P47: =IF(G13="Assessment",P22,IF(G13="Tune-Up Actions",P23,"")) ->  | Q47: =IF(G13="Assessment",Q22,IF(G13="Tune-Up Actions",Q23,"")) ->  | U47: totals | W47: =SUM(W22:W46) -> 0 | Y47: 26 | Z47: 0.7081979881 | AU47: =+P47/total_uncapped_funding_proj_sum ->  | AV47: = contract amount / uncapped funding amount
Y48: 27 | Z48: 0.6991423118
Y49: 28 | Z49: 0.6902511241
Y50: 29 | Z50: 0.6815209734
Y51: 30 | Z51: 0.6729484863
O53: Revised: | P53: ='Change Log, Version ID'!D6 -> 2018-01-18 | Q53: ='Change Log, Version ID'!G2 -> Version 1.0.2 | Y53: 31 | Z53: 0.6645303661
Y54: 32 | Z54: 0.6562633905
Y55: 33 | Z55: 0.64814441
Y56: 34 | Z56: 0.6401703463
Y57: 35 | Z57: 0.6323381907
Y58: 36 | Z58: 0.624645002
B59: =IF(R47=Q47,"","(BPA uses a lower baseline watts for T12s.)") ->  | Y59: 37 | Z59: 0.6170879054
Y60: 38 | Z60: 0.6096640904
Y61: 39 | Z61: 0.5954421935
Y62: 40 | Z62: 0.575929032
C64: THESE ROWS ARE NORMALLY HIDDEN
B66: The PROJECT SUMMARY FORM IS ENTIRELY POPULATED FOR LIGHTING FROM THE SUBTOTALS SHEET, WHICH IS A LARGE LOOKUP TABLE
C67: The Subtotals Sheet lookup table is called the ECM_Lookup_on_FC.
C69: The Funding Caps are Calculated on the Fixture Count Worksheet in Part 3 of that Worksheet, to the right of the two printed page ranges, in grey area.
C70: The individual lines of Parts I & 2 of the Fixture Count Table are added to create ECMs. This addition is done in the Subtotals Sheet.
B72: DETAILS OF HOW INFO IS TRANSFERRED FROM SUBTOTALS SHEET TO PROJECT SUMMARY FORM:
C74: =IF($B50>MAX('Subtotals Sheet'!B,<row number>!),"",VLOOKUP($B50,ECM_Lookup_on_FC,<approprriate column number>,FALSE))
C75: The column in the ECM_Lookup_on_FC table is given for convenience in a hidden row, just beneath the header row, in the project summary form.
C76: The above formula figures out which ECM numbers are unblank in the subtotal table of the Subtotals Sheet.
C77: The if max portion is to allow the rows that should remain blank to be blank.
C78: The maximum number of ECMs this will generate automatically is limited by the number of lines on the subtotal sheet.
C79: The VLOOKUP seeks the ECM number in the SUBTOTAL TABLE on the Subtotals Sheet and transfers the line that matches here.
C80: The ECM number in the Subtotals Sheet is fabricated for this proposed using a COUNT function on non-zero entries
D81: for the number of fixtures.
B89: Backup Row of Equations, in case need to restore:
B90: =+B89+1 ->  | C90: =IF($B90>MAX('[4]subtotals sheet'!$B$14:$B$45),"",VLOOKUP($B90,ECM_Lookup_on_FC,C$21,FALSE)) ->  | D90: =IF($B90>MAX('[4]subtotals sheet'!$B$14:$B$45),"",VLOOKUP($B90,ECM_Lookup_on_FC,D$21,FALSE)) ->  | E90: =IF($B90>MAX('[4]subtotals sheet'!$B$14:$B$45),"",VLOOKUP($B90,ECM_Lookup_on_FC,E$21,FALSE)) ->  | F90: =IF($B90>MAX('[4]subtotals sheet'!$B$14:$B$45),"",VLOOKUP($B90,ECM_Lookup_on_FC,F$21,FALSE)) ->  | G90: =IF($B90>MAX('[4]subtotals sheet'!$B$14:$B$45),"",VLOOKUP($B90,ECM_Lookup_on_FC,G$21,FALSE)) ->  | H90: =IF($B90>MAX('[4]subtotals sheet'!$B$14:$B$45),"",VLOOKUP($B90,ECM_Lookup_on_FC,H$21,FALSE)) ->  | I90: =IF($B90>MAX('[4]subtotals sheet'!$B$14:$B$45),"",VLOOKUP($B90,ECM_Lookup_on_FC,I$21,FALSE)) ->  | J90: =IF($B90>MAX('[4]subtotals sheet'!$B$14:$B$45),"",VLOOKUP($B90,ECM_Lookup_on_FC,J$21,FALSE)) ->  | K90: =IF($B90>MAX('[4]subtotals sheet'!$B$14:$B$45),"",VLOOKUP($B90,ECM_Lookup_on_FC,K$21,FALSE)) ->  | L90: =IF($B90>MAX('[4]subtotals sheet'!$B$14:$B$45),"",VLOOKUP($B90,ECM_Lookup_on_FC,L$21,FALSE)) ->  | M90: =IF($B90>MAX('[4]subtotals sheet'!$B$14:$B$45),"",VLOOKUP($B90,ECM_Lookup_on_FC,M$21,FALSE)) ->  | N90: =IF($B90>MAX('[4]subtotals sheet'!$B$14:$B$45),"",VLOOKUP($B90,ECM_Lookup_on_FC,N$21,FALSE)) ->  | O90: =IF($B90>MAX('[4]subtotals sheet'!$B$14:$B$45),"",VLOOKUP($B90,ECM_Lookup_on_FC,O$21,FALSE)) ->  | P90: =IF($B90>MAX('[4]subtotals sheet'!$B$14:$B$45),"",VLOOKUP($B90,ECM_Lookup_on_FC,P$21,FALSE)) ->  | Q90: =IF($B90>MAX('[4]subtotals sheet'!$B$14:$B$45),"",VLOOKUP($B90,ECM_Lookup_on_FC,Q$21,FALSE)) -> 
B94: Project Summary Form - Information & Instructions
B95: Column d, Number of Items. Number of motors, chillers, fixtures, etc. | Y95: This table extends to 40 years. The other
B96: Column e, Total Capacity (or amount). Use hp for motors and VFDs; tons for chillers, air conditioners, heat pumps and compressors; square feet for windows. | Y96: years are in hidden rows.
B97: Column g, Funding Code. S = Standard, C = Custom, R = Rebate, N = none.
B98: Column h, Baseline Code. E = Existing condition, C = Energy code, P = Standard Practice (for equipment, such as air compressors, that the Energy Code doesn't cover) | Z98: =SUM(Z21:Z62) -> 29.40440129
B99: Column j, Incremental Cost Code. IT = deemed to be 25% of the total cost, IM = deemed to be 50% of the material cost, IA = actual incremental cost, defined as the difference between a bid for the proposed and the bid for the baseline, T = incremental cost equals total cost.
B100: Column m, Funding Adjustment Code. B = 10% Demonstration Technology Bonus, M = multiple funding sources capped at 70% total cost, N = none.
B101: Relationship between columns l and o: Contract Amount is capped at 70% of cost, prior to bonuses. Contract Amount is capped to a minimum payback of 6 months after bonuses are applied.
B102: Payback to Customer (years) = (ECM Incremental Cost - ECM SCL Contract Incentive Amount) / (ECM savings x cost/kWh).

Sheet Payment 1 QC (hidden)
L3: Project Number:
L4: =IF(Application!$L$4="","",Application!$L$4) -> 
C5: Customer Energy Solutions - Business Conservation Program
C6: Tune-Up Accelerator Incentive Payment 1 (Assessment) QC Checklist
C8: Facility Name: | E8: =IF(Application!$E$11="","",Application!$E$11) -> 
C9: Facility Address: | E9: =IF(Application!$E$12="","",Application!$E$12) -> 
C10: EMA: | E10: =IF(Application!$L$3="","",Application!$L$3) -> 
G12: Project Summary | K12: Documentation Checklist
C13: EMA | D13: Supervisor | G13: Annual kWh savings | I13: ='Project Summary Form'!Q22 -> 0 | K13: Internal QC PDF
G14: SCL incentive amount | I14: ='Project Summary Form'!P22 -> 0 | L14: Assessment Report from Specialist
C15: 1. Scope of Work | L15: Payment QC checklist
F16: Invoices for cost of assessment submitted to SCL | K16: Customer Facing PDF
F17: If labor performed in-house, cost estimates documented | L17: Payment request form
F18: Tune-Up Specialist Assessment report submitted | L18: PAF form for signature, if applicable
G19: Assessment report contains data equivalent | K19: Contract Folder on I drive
G20: tabs A thru F on the Seattle Tune-Up Accelerator | L20: As-built workbook
G21: Summary Report form (Excel) | L21: Invoices
F22: Adjustments to floor area & incentive required? | L22: Invoice summary sheet
F23: Apply 70% Cost cap to assessment incentive, If required | L23: Any new correspondence
C24: 3. Invoice
F25: Site address is clearly marked and matches application | L25: Internal/customer facing PDFs
F26: Cost is summarized, clearly shown
F27: If labor is performed in-house, cost estimates are documented
F28: Invoice date is after date of signature on Participation agreement
C31: 4. Authorization
D32: By signing below I certify that I have verified all the items listed above in the QC Checklist:
D33: Name: | H33: Signature: | M33: Date: | P33: Final savings are | Q33: equal to | R33: estimate
C34: EMA
C35: Supervisor
C37: Project Notes:
K41: Revised: | L41: ='Change Log, Version ID'!D6 -> 2018-01-18 | N41: ='Change Log, Version ID'!G2 -> Version 1.0.2

Sheet Payment 2 QC (hidden)
L3: Project Number:
L4: =IF(Application!$L$4="","",Application!$L$4) -> 
C5: Customer Energy Solutions - Business Conservation Program
C6: Tune-Up Accelerator Incentive Payment 2 ("Completed Actions") QC Checklist
C8: Facility Name: | E8: =IF(Application!$E$11="","",Application!$E$11) -> 
C9: Facility Address: | E9: =IF(Application!$E$12="","",Application!$E$12) -> 
C10: EMA: | E10: =IF(Application!$L$3="","",Application!$L$3) -> 
G12: Project Summary | K12: Documentation Checklist
C13: EMA | D13: Supervisor | G13: Annual kWh savings | I13: ='Project Summary Form'!savings_from_proj_sum_form ->  | K13: Internal QC PDF
G14: SCL incentive amount | I14: ='Project Summary Form'!P23 ->  | L14: As-built Project Summary
C15: 1. Tune-Up Actions | L15: Payment QC checklist
F16: Invoices for cost of Tune-Up submitted to SCL | K16: Customer Facing PDF
F17: If labor performed in-house, cost estimates documented | L17: Payment request form
F18: Tune-Up Accelerator report Form Received | L18: PAF form for signature, if applicable
F19: SCL Building Operating Hours Form Submitted | K19: Contract Folder on I drive
F20: OSE notified SCL that Tune-Up requirement met | L20: As-built workbook
L21: Invoices
F22: Adjustments to floor area & incentive required? | L22: Invoice summary sheet
F23: Apply 70% Cost cap to assessment incentive, If required | L23: Tune-Up Summary Report
C24: 3. Invoice | L24: SCL Operating Hours form
F25: Site address is clearly marked and matches application | L25: Internal/customer facing PDFs
F26: Measure count in workbook supported by invoice | L26: OSE Notification of compliance
F27: Total cost is clearly marked and equal to or larger than cost in workbook
F28: Labor is included in each line item, or is detailed on a separate line item
F29: If labor is performed in-house, cost estimates are documented
F30: Invoice date is after date of signature on Participation agreement
C31: 4. Authorization
D32: By signing below I certify that I have verified all the items listed above in the QC Checklist:
D33: Name: | H33: Signature: | M33: Date: | P33: Final savings are | Q33: equal to | R33: estimate
C34: EMA
C35: Supervisor
C37: Project Notes:
K41: Revised: | L41: ='Change Log, Version ID'!D6 -> 2018-01-18 | N41: ='Change Log, Version ID'!G2 -> Version 1.0.2

Sheet Payment Request Form (hidden)
B3: Customer Energy Solutions - Business Conservation Program | H3: Project Number: | I3: =IF(Application!L4="","",Application!L4) -> 
B4: Conservation Incentive Payment Request | H4: Date:
H5: Estimated annual cash savings: | I5: ='Project Summary Form'!Q8 -> 
B6: =IF(Application!L5="","",Application!L5) ->  | H6: Estimated cost after incentives: | I6: ='Project Summary Form'!Q4 -> 0
B7: =IF(Application!E11="","",Application!E11) ->  | H7: Estimated Seattle City Light Incentive: | I7: ='Project Summary Form'!P47 -> 
B8: =IF(Application!E12="","",Application!E12) ->  | H8: Estimated Incentive as a Percent of Cost: | I8: ='Project Summary Form'!Q7 -> 
B9: =IF(Application!$E$13="","",CONCATENATE(Application!$E$13,", WA ",Application!$I$13)) ->  | H9: Estimated Simple Payback: | I9: ='Project Summary Form'!Q6 -> 
H10: Estimated ROI: | I10: ='Project Summary Form'!Q5 -> 
H11: Greenhouse Gas Reduction (tons): | I11: =H31*0.00060024 -> 
B13: The City of Seattle, by and through Seattle City Light (“SCL”), has received your Program Participant Application and verified the installation of energy conservation measures for your project. Based on SCL’s administrative and program eligibility verification, SCL has determined that your project is eligible for an incentive payment in the amount detailed below.
B14: Please note that this incentive amount was determined by the installed measures and may differ from the original estimate.
B15: ECM # | C15: Life (yrs) | D15: Bldg. Floor Area | E15: Energy Conservation Measure | F15: Estimated Project Cost | G15: Estimated SCL Incentive Amount | H15: Estimated Electricity Savings kWh/year | I15: Estimated Electricity Savings $/year
B17: =IF('Project Summary Form'!G13="Assessment",'Project Summary Form'!B22,"") ->  | C17: =IF('Project Summary Form'!$G$13="Assessment",'Project Summary Form'!D22,"") ->  | D17: =IF('Project Summary Form'!$G$13="Assessment",'Project Summary Form'!E22,"") ->  | E17: =IF('Project Summary Form'!$G$13="Assessment",'Project Summary Form'!G22,"") ->  | F17: =IF('Project Summary Form'!$G$13="Assessment",'Project Summary Form'!J22,"") ->  | G17: =IF('Project Summary Form'!$G$13="Assessment",'Project Summary Form'!P22,"") ->  | H17: =IF('Project Summary Form'!$G$13="Assessment",'Project Summary Form'!Q22,"") ->  | I17: =IF('Project Summary Form'!$G$13="Assessment",(H17*'Project Summary Form'!electricity_cost_per_kwh),"") -> 
B18: =IF('Project Summary Form'!$G$13="Assessment","",'Project Summary Form'!B23) -> 2 | C18: =IF('Project Summary Form'!$G$13="Assessment","",'Project Summary Form'!D23) -> 3 | D18: =IF('Project Summary Form'!$G$13="Assessment","",'Project Summary Form'!E23) -> 0 | E18: =IF('Project Summary Form'!$G$13="Assessment","",'Project Summary Form'!G23) -> Basic Building Tune-Up (Implementation) | F18: =IF('Project Summary Form'!$G$13="Assessment","",'Project Summary Form'!J23) -> 0 | G18: =IF('Project Summary Form'!$G$13="Assessment","",'Project Summary Form'!P23) ->  | H18: =IF('Project Summary Form'!$G$13="Assessment","",'Project Summary Form'!Q23) ->  | I18: =IF('Project Summary Form'!$G$13="Assessment","",(H18*'Project Summary Form'!electricity_cost_per_kwh)) -> 
B25: =IF(D25="","",+B24+1) ->  | C25: =IF('[9]Project Summary Form'!D34="","",'[9]Project Summary Form'!D34) ->  | D25: =IF('[9]Project Summary Form'!E34="","",'[9]Project Summary Form'!E34) ->  | E25: =IF('[9]Project Summary Form'!G34="","",'[9]Project Summary Form'!G34) ->  | F25: =IF('[9]Project Summary Form'!J34="","",'[9]Project Summary Form'!J34) ->  | G25: =IF('[9]Project Summary Form'!P34="","",'[9]Project Summary Form'!P34) ->  | H25: =IF('[9]Project Summary Form'!Q34="","",'[9]Project Summary Form'!Q34) ->  | I25: =IF(+H25="","",H25*'[9]Project Summary Form'!$R$3) -> 
C26: =IF('[9]Project Summary Form'!D35="","",'[9]Project Summary Form'!D35) ->  | D26: =IF('[9]Project Summary Form'!E35="","",'[9]Project Summary Form'!E35) ->  | E26: =IF('[9]Project Summary Form'!G35="","",'[9]Project Summary Form'!G35) ->  | F26: =IF('[9]Project Summary Form'!J35="","",'[9]Project Summary Form'!J35) ->  | G26: =IF('[9]Project Summary Form'!P35="","",'[9]Project Summary Form'!P35) ->  | H26: =IF('[9]Project Summary Form'!Q35="","",'[9]Project Summary Form'!Q35) ->  | I26: =IF(+H26="","",H26*'[9]Project Summary Form'!$R$3) -> 
C27: =IF('[9]Project Summary Form'!D36="","",'[9]Project Summary Form'!D36) ->  | D27: =IF('[9]Project Summary Form'!E36="","",'[9]Project Summary Form'!E36) ->  | E27: =IF('[9]Project Summary Form'!G36="","",'[9]Project Summary Form'!G36) ->  | F27: =IF('[9]Project Summary Form'!J36="","",'[9]Project Summary Form'!J36) ->  | G27: =IF('[9]Project Summary Form'!P36="","",'[9]Project Summary Form'!P36) ->  | H27: =IF('[9]Project Summary Form'!Q36="","",'[9]Project Summary Form'!Q36) ->  | I27: =IF(+H27="","",H27*'[9]Project Summary Form'!$R$3) -> 
C28: =IF('[9]Project Summary Form'!D37="","",'[9]Project Summary Form'!D37) ->  | D28: =IF('[9]Project Summary Form'!E37="","",'[9]Project Summary Form'!E37) ->  | E28: =IF('[9]Project Summary Form'!G37="","",'[9]Project Summary Form'!G37) ->  | F28: =IF('[9]Project Summary Form'!J37="","",'[9]Project Summary Form'!J37) ->  | G28: =IF('[9]Project Summary Form'!P37="","",'[9]Project Summary Form'!P37) ->  | H28: =IF('[9]Project Summary Form'!Q37="","",'[9]Project Summary Form'!Q37) ->  | I28: =IF(+H28="","",H28*'[9]Project Summary Form'!$R$3) -> 
C29: =IF('[9]Project Summary Form'!D38="","",'[9]Project Summary Form'!D38) ->  | D29: =IF('[9]Project Summary Form'!E38="","",'[9]Project Summary Form'!E38) ->  | E29: =IF('[9]Project Summary Form'!G38="","",'[9]Project Summary Form'!G38) ->  | F29: =IF('[9]Project Summary Form'!J38="","",'[9]Project Summary Form'!J38) ->  | G29: =IF('[9]Project Summary Form'!P38="","",'[9]Project Summary Form'!P38) ->  | H29: =IF('[9]Project Summary Form'!Q38="","",'[9]Project Summary Form'!Q38) ->  | I29: =IF(+H29="","",H29*'[9]Project Summary Form'!$R$3) -> 
C30: =IF('[9]Project Summary Form'!D39="","",'[9]Project Summary Form'!D39) ->  | D30: =IF('[9]Project Summary Form'!E39="","",'[9]Project Summary Form'!E39) ->  | E30: =IF('[9]Project Summary Form'!G39="","",'[9]Project Summary Form'!G39) ->  | F30: =IF('[9]Project Summary Form'!J39="","",'[9]Project Summary Form'!J39) ->  | G30: =IF('[9]Project Summary Form'!P39="","",'[9]Project Summary Form'!P39) ->  | H30: =IF('[9]Project Summary Form'!Q39="","",'[9]Project Summary Form'!Q39) ->  | I30: =IF(+H30="","",H30*'[9]Project Summary Form'!$R$3) -> 
B31: TOTALS | D31: ='Project Summary Form'!E47 -> 0 | F31: ='Project Summary Form'!total_cost_on_proj_sum -> 0 | G31: ='Project Summary Form'!P47 ->  | H31: ='Project Summary Form'!savings_from_proj_sum_form ->  | I31: ='Project Summary Form'!Q8 -> 
B35: =IF(CAL="yes","CUSTOMER'S SIGNATURE. (Send signed document to Seattle City Light before installation begins.)","") -> 
B36: =IF(CAL="yes","I have reviewed the above project description and agree with the proposed scope of work. I am familiar with the project","") -> 
B37: =IF(CAL="yes","and have worked out the details with the contractor.","") -> 
C39: Owner's, or Owner's Representative's, Signature | H39: Date
C41: Owner's, or Owner's Representative's, Name (printed)
B42: In order to receive the above listed SCL energy conservation incentive payment, the Program Participant must sign and submit this Form within 30 days of receipt. Program Participant acknowledges that administrative processing of the SCL incentive payment may take up to 8 weeks.
B44: I, Program Participant, hereby certify that I have read and complied with all of the applicable Seattle City Light Business Conservation Program requirements, Specifications and Guidelines, and hereby accept as full and complete payment the above listed incentive amount for the above listed measures. I also acknowledge that any and all liability and responsibility related to the Seattle City Light Business Conservation Program by SCL is limited solely to the payment of the approved incentive amount listed above in accordance with the Program Participation Agreement, and applicable Program requirements and Guidelines.
B50: Customer Signature | G50: Date
B52: Printed Name:
B54: Check Remittance to: | E54: Company Name: | F54: =IF($B$56="Contractor",Application!$E$25,Application!$E$16) -> 0
E55: C/O (Alternate business name): | F55: =IF(B56="Contractor",Application!$E$27,Application!$E$17) -> 0
B56: Customer | E56: Attn:
E57: Address: | F57: =IF($B$57="Contractor",Application!$E$26,Application!$E$18) -> 0
E58: City, State, Zip: | F58: =IF(B56="Contractor",CONCATENATE(Application!$K$26,", ",Application!$N$26," ",Application!$P$26),CONCATENATE(Application!$K$18,", ",Application!$N$18," ",Application!$P$18)) -> ,
G62: Revised: | H62: ='Change Log, Version ID'!D6 -> 2018-01-18 | I62: ='Change Log, Version ID'!G2 -> Version 1.0.2

Sheet TuneUpsBuildings052317-2016EUI (hidden)
A1: BuildingId | B1: BuildingTypeName | C1: KCPinNumber | D1: TuneUpTypeName | E1: EPABuildingTypeName | F1: BuildingName | G1: BUILDING_NAME | H1: FullAddress | I1: ElectricGridRenewNonNormQuantity | J1: EPA Reported GFA | K1: OSE_GFANoParking | L1: kWh/ SqFt | M1: SiteEUINonNormQuantity | N1: EUIRankDescription | O1: ScoreNumber | P1: VirtualAuditSCLCustomer | Q1: SCLCustomerAddress | R1: OSE_NonResidentialTotal | S1: OSE_GFANoParking | T1: IsCompliantFlag | U1: EnergyStarYearsDescription | V1: SourceEUINonNormQuantity | W1: SiteTotalNonNormQuantity | X1: kBtu/ SqFt | Y1: GasTotalNonNormQuantity | Z1: SteamTotalNonNormQuantity | AA1: LargestPropertyUseType | AB1: LargestPropertyUseTypeGFA | AC1: SecondLargestPropertyUseType | AD1: SecondLargestPropertyUseTypeGFA | AE1: ThirdLargestPropertyUseType | AF1: ThirdLargestPropertyUseTypeGFA
A2: 1 | B2: NonResidential | C2: 0659000030 | D2: TU2020 | E2: Hotel | F2: MAYFLOWER PARK HOTEL | G2: Mayflower park hotel | H2: 405 OLIVE WAY, SEATTLE, WA 98101 | I2: 1156514 | J2: 88434 | K2: 88434 | L2: =I2/J2 -> 13.07770767 | M2: 81.69999695 | N2: Medium High | O2: 60 | P2: MAYFLOWER PK HOTEL WESTLAKE PK ASSOC | Q2: 405 OLIVE WAY | R2: 88434 | S2: 88434 | T2: Y | V2: 182.5 | W2: 7226362.5 | X2: =W2/J2 -> 81.71475338 | Y2: 12764.5293 | Z2: 2003882 | AA2: Hotel | AB2: 88434
A3: 2 | B3: NonResidential | C3: 0659000220 | D3: TU2020 | E3: Hotel | F3: PARAMOUNT HOTEL | G3: Paramount Hotel | H3: 724 PINE ST, SEATTLE, WA 98101 | I3: 950425.375 | J3: 88502 | K3: 88502 | L3: 10.73902708 | M3: 94.80000305 | N3: Medium High | O3: 61 | P3: HOTEL | Q3: 724 PINE ST | R3: 88502 | S3: 88502 | T3: Y | V3: 176.1000061 | W3: 8387933 | X3: 94.77676211 | Y3: 51450.81641 | AA3: Hotel | AB3: 83880 | AC3: Parking | AD3: 15064 | AE3: Restaurant | AF3: 4622
A4: 3 | B4: NonResidential | C4: 0659000475 | D4: TU2018 | E4: Hotel | F4: WESTIN HOTEL | G4: 5673-The Westin Seattle | H4: 1900 5TH AVE, SEATTLE, WA 98101 | I4: 14515440 | J4: 756493 | L4: 19.18780478 | M4: 96 | N4: Medium High | O4: 43 | R4: 759389 | T4: Y | V4: 241.8999939 | W4: 72587024 | X4: 95.95201013 | Y4: 14938 | Z4: 21566554 | AA4: Hotel | AB4: 756493
A5: 5 | B5: NonResidential | C5: 0659000640 | D5: TU2021 | E5: Hotel | F5: HOTEL MAX | G5: HOTEL MAX | H5: 620 STEWART ST, SEATTLE, WA 98101 | I5: 811525.375 | J5: 61320 | K5: 61320 | L5: 13.234269 | P5: VANCE HOTEL | Q5: 620 STEWART ST | R5: 61320 | S5: 61320 | T5: N | X5: 0 | Y5: 18112.13086 | AA5: Hotel | AB5: 61320
A6: 8 | B6: NonResidential | C6: 0659000970 | D6: TU2019 | E6: Hotel | F6: WARWICK SEATTLE HOTEL | G6: WARWICK SEATTLE HOTEL (ID8) | H6: 401 LENORA ST, SEATTLE, WA 98121 | I6: 1573449 | J6: 123445 | K6: 107430 | L6: 12.74615416 | M6: 114.8000031 | N6: Highest Use | O6: 75 | P6: WARWICK CORP | Q6: 401 LENORA ST | R6: 113580 | S6: 107430 | T6: Y | V6: 211.3999939 | W6: 14172606 | X6: 114.8090729 | Y6: 88039.98438 | AA6: Hotel | AB6: 123445 | AC6: Parking | AD6: 68009 | AE6: Swimming Pool | AF6: 0
A7: 9 | B7: Nonresidential COS | C7: 0660000560 | D7: TU2021 | E7: Other | F7: WEST PRECINCT (SEATTLE POLICE) | G7: West Precinct | H7: 810 VIRGINIA ST, SEATTLE, WA 98101 | I7: 2160444 | J7: 88830 | K7: 60090 | L7: 24.32110773 | M7: 136.1000061 | N7: Highest Use | R7: 56298 | S7: 60090 | T7: Y | V7: 316.2999878 | W7: 12086616 | X7: 136.0645728 | Y7: 47151.81641 | AA7: Police Station | AB7: 88830
A8: 10 | B8: NonResidential | C8: 0660000825 | D8: TU2020 | E8: Hotel | F8: CAMLIN WORLDMARK HOTEL | G8: Camlin | H8: 1619 9TH AVE, SEATTLE, WA 98101 | I8: 823920 | J8: 81352 | K8: 83008 | L8: 10.12783951 | M8: 70.80000305 | N8: Medium Low | O8: 27 | P8: TREND WEST RESORTS | Q8: 1619 9TH AVE | R8: 83008 | S8: 83008 | T8: Y | V8: 146.6000061 | W8: 5758795 | X8: 70.78860999 | Y8: 29475.80078 | AA8: Hotel | AB8: 81352
A9: 11 | B9: NonResidential | C9: 0660000955 | D9: TU2020 | E9: Other | F9: PARAMOUNT THEATER | G9: Paramount Theatre | H9: 901 PINE ST, SEATTLE, WA 98101 | I9: 1065843 | J9: 102761 | K9: 102761 | L9: 10.37205749 | M9: 61.29999924 | N9: Medium Low | R9: 72164 | S9: 102761 | T9: Y | V9: 141.6999969 | W9: 6298131.5 | X9: 61.28912233 | Y9: 3851.890137 | Z9: 2276286.5 | AA9: Other - Entertainment/Public Assembly | AB9: 102761
A10: 12 | B10: NonResidential | C10: 0939000080 | D10: TU2019 | E10: Hotel | F10: COURTYARD BY MARRIOTT - ALASKA BLDG SEATTLE | G10: 311wh-Pioneer Square | H10: 612 2ND AVE, SEATTLE, WA 98104 | I10: 2138898 | J10: 163984 | K10: 163984 | L10: 13.0433335 | M10: 83.69999695 | N10: Medium High | O10: 43 | R10: 163984 | S10: 163984 | T10: Y | V10: 180.8999939 | W10: 13723820 | X10: 83.68999415 | Y10: 64259 | AA10: Hotel | AB10: 163984
A11: 15 | B11: NonResidential | C11: 0942000145 | D11: TU2019 | E11: Hotel | F11: HOTEL MONACO | G11: Hotel Monaco Seattle | H11: 1101 4TH AVE, SEATTLE, WA 98101 | I11: 1813490 | J11: 133884 | K11: 133884 | L11: 13.54523319 | M11: 119.5999985 | N11: Highest Use | O11: 30 | R11: 133884 | S11: 133884 | T11: Y | V11: 228.1999969 | W11: 16016644 | X11: 119.630755 | Y11: 45918.5 | Z11: 5237165.5 | AA11: Hotel | AB11: 133884
A12: 16 | B12: NonResidential | C12: 0942000165 | D12: TU2018 | E12: Hotel | F12: W SEATTLE HOTEL | G12: 5679-W Seattle | H12: 1112 4TH AVE, SEATTLE, WA 98101 | I12: 5299839 | J12: 336640 | K12: 272015 | L12: 15.74334304 | M12: 80 | N12: Medium High | O12: 36 | R12: 272015 | S12: 272015 | T12: Y | V12: 199 | W12: 26941110 | X12: 80.02943798 | Y12: 28586.99805 | Z12: 5999360.5 | AA12: Hotel | AB12: 336640
A13: 17 | B13: NonResidential | C13: 0942000210 | D13: TU2021 | E13: Hotel | F13: EXECUTIVE PACIFIC PLAZA | G13: Executive Pacific Plaza | H13: 400 SPRING ST, SEATTLE, WA 98104 | I13: 393610.6875 | J13: 65009 | K13: 65009 | L13: 6.054710694 | M13: 101.5 | N13: Highest Use | O13: 48 | P13: EXECUTIVE HOTEL PACIFIC | Q13: 400 SPRING ST | R13: 65009 | S13: 65009 | T13: Y | V13: 153.6000061 | W13: 6596057.5 | X13: 101.4637589 | Y13: 35967.05078 | Z13: 1656352.5 | AA13: Hotel | AB13: 65009
A14: 18 | B14: NonResidential | C14: 0942000235 | D14: TU2018 | E14: Hotel | F14: CROWNE PLAZA | G14: Crowne Plaza Hotel Seattle | H14: 1113 6TH AVE, SEATTLE, WA 98101 | I14: 4075084 | J14: 295511 | K14: 258352 | L14: 13.78995706 | M14: 75.5 | N14: Medium Low | O14: 58 | R14: 258352 | S14: 258352 | T14: Y | V14: 179.8999939 | W14: 22325364 | X14: 75.54833492 | Y14: 40834.39844 | Z14: 4337738.5 | AA14: Hotel | AB14: 295511 | AC14: Parking | AD14: 57600
A15: 19 | B15: NonResidential | C15: 0942000265 | D15: TU2021 | E15: Hotel | F15: HOTEL VINTAGE PARK | G15: Hotel Vintage Seattle | H15: 1100 5TH AVE, SEATTLE, WA 98101 | I15: 1123203 | J15: 67390 | K15: 67390 | L15: 16.66720582 | M15: 159.5 | N15: Highest Use | O15: 35 | P15: WOLFPAC LEASSEE LLC | Q15: 1100 5TH AVE | R15: 66990 | S15: 67390 | T15: Y | V15: 297.3999939 | W15: 10750010 | X15: 159.5193649 | Y15: 20467.93359 | Z15: 4870847.5 | AA15: Hotel | AB15: 67390 | AC15: Parking | AD15: 25200
A16: 21 | B16: Nonresidential COS | C16: 0942000275 | D16: TU2018 | E16: Other | F16: SEATTLE CENTRAL LIBRARY | G16: The Seattle Public Library - Central Library | H16: 1000 4TH AVE, SEATTLE, WA 98104 | I16: 5231917 | J16: 365987 | K16: 355000 | L16: 14.29536295 | M16: 50.79999924 | N16: Medium Low | R16: 355000 | S16: 355000 | T16: Y | V16: 155.6000061 | W16: 18588860 | X16: 50.79103903 | Z16: 737559.5 | AA16: Library | AB16: 364913 | AC16: Parking | AD16: 49000 | AE16: Data Center | AF16: 1074
A17: 22 | B17: NonResidential | C17: 0942000350 | D17: TU2020 | E17: Other | F17: DOWNTOWN SEATTLE YMCA | G17: Downtown Seattle YMCA | H17: 909 4TH AVE, SEATTLE, WA 98104 | I17: 1305354 | J17: 130000 | K17: 103911 | L17: 10.04118462 | M17: 76.59999847 | N17: Medium High | R17: 93723 | S17: 103911 | T17: Y | V17: 157.3999939 | W17: 9956396 | X17: 76.58766154 | Y17: 9101.799805 | Z17: 4592347.5 | AA17: Fitness Center/Health Club/Gym | AB17: 90000 | AC17: Office | AD17: 40000 | AE17: Swimming Pool | AF17: 0
A18: 23 | B18: NonResidential | C18: 0942000430 | D18: TU2018 | E18: Hotel | F18: RENAISSANCE MADISON HOTEL | G18: Renaissance Seattle Hotel | H18: 515 MADISON ST, SEATTLE, WA 98104 | I18: 6220774 | J18: 348329 | K18: 331281 | L18: 17.85890351 | M18: 96.30000305 | N18: Highest Use | O18: 31 | R18: 331281 | S18: 331281 | T18: Y | V18: 228.5 | W18: 33556756 | X18: 96.33638313 | Y18: 123314.75 | AA18: Hotel | AB18: 348329 | AC18: Parking | AD18: 85000
A19: 24 | B19: NonResidential | C19: 0942000510 | D19: TU2021 | E19: Mixed Use Property | F19: RAINIER CLUB (HISTORICAL LANDMARK) | G19: The Rainier Club | H19: 810 4TH AVE, SEATTLE, WA 98104 | I19: 1103397 | J19: 57452 | K19: 57452 | L19: 19.2055455 | M19: 132.3999939 | N19: Highest Use | P19: THE RAINIER CLUB | Q19: 820 4TH AVE | R19: 57452 | S19: 57452 | T19: Y | V19: 280.7000122 | W19: 7606084.5 | X19: 132.3902475 | Y19: 20650.91211 | Z19: 1776201.875 | AA19: Social/Meeting Hall | AB19: 16442 | AC19: Restaurant | AD19: 15505 | AE19: Office | AF19: 9741
A20: 25 | B20: NonResidential | C20: 0942000610 | D20: TU2019 | E20: Hotel | F20: DOUBLE TREE ARCTIC CLUB HOTEL - SEATTLE | G20: Arctic Club Seattle | H20: 700 3RD AVE, SEATTLE, WA 98104 | I20: 1731644 | J20: 104352 | K20: 104352 | L20: 16.5942579 | M20: 97.30000305 | N20: Highest Use | O20: 39 | P20: ARCTIC BUILDING | Q20: 700-10 3RD AVE | R20: 104352 | S20: 104352 | T20: Y | V20: 225.5 | W20: 10154608 | X20: 97.31110089 | Y20: 8153.759766 | Z20: 3430862 | AA20: Hotel | AB20: 104352
A21: 26 | B21: NonResidential | C21: 0942000860 | D21: TU2018 | E21: Other | F21: KING COUNTY COURTHOUSE | G21: King County Courthouse | H21: 516 3RD AVE, SEATTLE, WA 98104 | I21: 7138873 | J21: 537150 | K21: 540360 | L21: 13.29027832 | M21: 83.69999695 | N21: Medium High | O21: 76 | R21: 482760 | S21: 540360 | T21: Y | V21: 182.6999969 | W21: 44984468 | X21: 83.74656614 | Y21: 206266.3125 | AA21: Courthouse | AB21: 537150
A22: 27 | B22: NonResidential | C22: 0942001010 | D22: TU2018 | E22: Other | F22: KING COUNTY CORRECTIONAL FACILITY | G22: King County Correctional Facility | H22: 500 5TH AVE, SEATTLE, WA 98104 | I22: 5351015 | J22: 385274 | K22: 385274 | L22: 13.88885572 | M22: 124.1999969 | N22: Highest Use | R22: 385274 | S22: 385274 | T22: Y | V22: 229.5 | W22: 47859812 | X22: 124.2227921 | Y22: 296021.5 | AA22: Other | AB22: 385274
A23: 28 | B23: SPS-District K-12 | C23: 1102000138 | D23: TU2021 | E23: K-12 School | F23: GRAHAM HILL ELEMENTARY SCHOOL (SPS-DISTRICT) | G23: Graham Hill Elementary | H23: 5101 S GRAHAM ST, SEATTLE, WA 98118 | I23: 279435.9062 | J23: 58916 | K23: 56228 | L23: 4.742954482 | M23: 26.10000038 | N23: Lowest Use | O23: 95 | R23: 56228 | S23: 56228 | T23: Y | V23: 61.20000076 | W23: 1538341.875 | X23: 26.11076575 | Y23: 5849.066895 | AA23: K-12 School | AB23: 58916
A24: 29 | B24: NonResidential | C24: 1142000755 | D24: TU2021 | E24: Hotel | F24: WATERTOWN HOTEL | G24: WATERTOWN HOTEL | H24: 4242 ROOSEVELT WAY NE, SEATTLE, WA 98105 | I24: 664194.375 | J24: 58006 | K24: 58006 | L24: 11.45044263 | M24: 63.20000076 | N24: Medium Low | O24: 84 | R24: 58006 | S24: 58006 | T24: Y | V24: 148 | W24: 3663534.5 | X24: 63.15785436 | Y24: 13973.03027 | AA24: Hotel | AB24: 58006 | AC24: Parking | AD24: 30586
A25: 30 | B25: NonResidential | C25: 0660001420 | D25: TU2019 | E25: College/University | F25: Cornish (Main Campus Center) | G25: Main Campus Center | H25: 1000 LENORA ST, SEATTLE, WA 98121 | I25: 1362097 | J25: 125000 | K25: 126593 | L25: 10.896776 | M25: 90.69999695 | N25: Medium High | P25: CORNISH COLLEGE OF ARTS | Q25: 1000 LENORA ST | R25: 126593 | S25: 126593 | T25: Y | V25: 173 | W25: 11343686 | X25: 90.749488 | Y25: 66962.10938 | AA25: College/University | AB25: 125000
A26: 31 | B26: NonResidential | C26: 0660001725 | D26: TU2021 | E26: Other | F26: SEATTLE HONDA | G26: Seattle Honda | H26: 1017 OLIVE WAY, SEATTLE, WA 98101 | I26: 384008.4062 | J26: 67224 | K26: 67224 | L26: 5.712370675 | M26: 19.5 | N26: Lowest Use | P26: MN ONE, INC DBA HONDA OF SEATTLE | Q26: 1015 OLIVE WAY | R26: 67224 | S26: 67224 | T26: Y | V26: 61.20000076 | W26: 1310236.625 | X26: 19.49060789 | AA26: Automobile Dealership | AB26: 67224
A27: 32 | B27: NonResidential | C27: 0660001832 | D27: TU2019 | E27: Hotel | F27: HOMEWOOD SUITES -SEATTLE - Hilton | G27: Homewood Suites | H27: 1011 PIKE ST, SEATTLE, WA 98101 | I27: 167733.5 | J27: 117176 | K27: 128375 | L27: 1.431466341 | M27: 45.5 | N27: Lowest Use | R27: 128375 | S27: 128375 | T27: Y | V27: 58 | W27: 5328051.5 | X27: 45.47050164 | Y27: 47557.44922 | AA27: Hotel | AB27: 112676 | AC27: Parking | AD27: 42000 | AE27: Retail Store | AF27: 4500
A28: 33 | B28: NonResidential | C28: 0660002680 | D28: TU2019 | E28: Hotel | F28: SPRINGHILL SUITES SEATTLE DOWNTOWN | G28: Marriott Springhill Suites (33) | H28: 1800 YALE AVE, SEATTLE, WA 98101 | I28: 1644404 | J28: 128909 | K28: 133585 | L28: 12.75631647 | M28: 85.80000305 | N28: Medium High | O28: 57 | P28: MOODY NATIONAL FHS | Q28: 1800 YALE AVE | R28: 133585 | S28: 133585 | T28: Y | V28: 181.1000061 | W28: 11061916 | X28: 85.81182074 | Y28: 54512.09766 | AA28: Hotel | AB28: 128909
A29: 34 | B29: SPS-District K-12 | C29: 0688000090 | D29: TU2019 | E29: K-12 School | F29: MEANY MIDDLE SCHOOL (SPS-DISTRICT) | G29: Meany Building | H29: 300 20TH AVE E, SEATTLE, WA 98112 | J29: 126351 | K29: 126351 | L29: 0 | R29: 126351 | S29: 126351 | T29: N | X29: 0 | AA29: K-12 School | AB29: 126351
A30: 35 | B30: NonResidential | C30: 0697000170 | D30: TU2021 | E30: Hotel | F30: Hotel Five | G30: Hotel Five | H30: 2200 5TH AVE, SEATTLE, WA 98121 | I30: 687675.6875 | J30: 47994 | K30: 52210 | L30: 14.32836787 | M30: 92.90000153 | N30: Medium High | O30: 57 | P30: HOTEL FIVE | Q30: 2200 5TH AVE | R30: 52210 | S30: 52210 | T30: Y | V30: 199.6999969 | W30: 4456714.5 | X30: 92.85982623 | Y30: 21103.65039 | AA30: Hotel | AB30: 47994
A31: 36 | B31: SPS-District K-12 | C31: 0752000170 | D31: TU2019 | E31: K-12 School | F31: JANE ADAMS JUNIOR HIGH (SPS-DISTRICT) | G31: Jane Addams Middle | H31: 11031 34TH AVE NE, SEATTLE, WA 98125 | I31: 556765.1875 | J31: 164229 | K31: 160645 | L31: 3.390175837 | M31: 40.09999847 | N31: Medium Low | O31: 77 | R31: 160645 | S31: 160645 | T31: Y | V31: 66.30000305 | W31: 6582823.5 | X31: 40.08319785 | Y31: 46831.40625 | AA31: K-12 School | AB31: 164229
A32: 37 | B32: SPS-District K-12 | C32: 0809000005 | D32: TU2021 | E32: K-12 School | F32: JOHN HAY ELEMENTARY SCHOOL (SPS-DISTRICT) | G32: John Hay Elementary | H32: 201 GARFIELD ST, SEATTLE, WA 98109 | I32: 432462.4062 | J32: 55166 | K32: 51582 | L32: 7.839292431 | M32: 26.70000076 | N32: Lowest Use | O32: 93 | R32: 51582 | S32: 51582 | T32: Y | V32: 84 | W32: 1475561.625 | X32: 26.74766387 | AA32: K-12 School | AB32: 55166
A33: 38 | B33: NonResidential | C33: 0825049008 | D33: TU2020 | E33: Office | F33: HOUSE OF GOOD SHEPHERD | G33: Good Shepherd Center | H33: 4649 SUNNYSIDE AVE N, SEATTLE, WA 98103 | I33: 396495.6875 | J33: 67428 | K33: 87262 | L33: 5.880282487 | M33: 61.5 | N33: Medium High | R33: 87262 | S33: 87262 | T33: Y | V33: 106.5 | W33: 4145920.5 | X33: 61.48663018 | Y33: 27930.77148 | AA33: Office | AB33: 40943 | AC33: K-12 School | AD33: 18153 | AE33: Other - Entertainment/Public Assembly | AF33: 4307
A34: 40 | B34: NonResidential | C34: 0925049117 | D34: TU2020 | E34: Hotel | F34: SILVER CLOUD INN UNIVERSITY | G34: Silver Cloud University | H34: 5036 25TH AVE NE, SEATTLE, WA 98105 | I34: 884056.125 | J34: 81871 | K34: 81871 | L34: 10.7981596 | M34: 81.5 | N34: Medium High | O34: 29 | R34: 81871 | S34: 81871 | T34: Y | V34: 162.5 | W34: 6668568.5 | X34: 81.45214423 | Y34: 36521.69141 | AA34: Hotel | AB34: 81871
A35: 41 | B35: NonResidential | C35: 0925049330 | D35: TU2019 | E35: Self-Storage Facility | F35: QFC / SHURGARD MINI STORAGE / LIQUOR STORE | G35: 08781-University Village | H35: 2746 NE 45TH ST, SEATTLE, WA 98105 | I35: 82434 | J35: 26225 | K35: 126394 | L35: 3.143336511 | M35: 12.10000038 | N35: Lowest Use | R35: 110356 | S35: 126394 | T35: Y | V35: 35.20000076 | W35: 318364.8125 | X35: 12.139745 | Y35: 371 | AA35: Self-Storage Facility | AB35: 26225
A36: 43 | B36: Campus | C36: 0022000005 | D36: TU2018 | E36: Mixed Use Property | F36: BOEING PLANT 2 ISAL (BLDG 2-122)-North Boeing Field Campus | G36: Plant 2 Site | H36: 1135 S WEBSTER ST, SEATTLE, WA 98108 | I36: 44102080 | J36: 2022866 | K36: 494835 | L36: 21.80178025 | M36: 221.6999969 | N36: Highest Use | O36: 8 | R36: 464368 | S36: 494835 | T36: Y | V36: 388.2000122 | W36: 448385312 | X36: 221.6584351 | Y36: 2979090 | AA36: Office | AB36: 757027 | AC36: Laboratory | AD36: 639931 | AE36: Non-Refrigerated Warehouse | AF36: 459748
A37: 46 | B37: NonResidential | C37: 0323049024 | D37: TU2018 | E37: Non-Refrigerated Warehouse | F37: SEATTLE WAREHOUSE OFFICE BUILDING | G37: Seattle 11-13 | H37: 3301 S NORFOLK ST, SEATTLE, WA 98118 | I37: 13109950 | J37: 963000 | K37: 714095 | L37: 13.61365524 | M37: 46.40000153 | N37: Highest Use | R37: 714095 | S37: 714095 | T37: Y | V37: 145.8999939 | W37: 44731160 | X37: 46.4498027 | AA37: Non-Refrigerated Warehouse | AB37: 616000 | AC37: Refrigerated Warehouse | AD37: 276000 | AE37: Office | AF37: 71000
A38: 50 | B38: SPS-District K-12 | C38: 0369000400 | D38: TU2021 | E38: K-12 School | F38: LAWTON ELEMENTARY SCHOOL (SPS-DISTRICT) | G38: Lawton Elementary | H38: 4017 26TH AVE W, SEATTLE, WA 98199 | I38: 328467.6875 | J38: 54986 | K38: 54986 | L38: 5.973660341 | M38: 28.39999962 | N38: Lowest Use | O38: 98 | R38: 54986 | S38: 54986 | T38: Y | U38: 2016 | V38: 72.40000153 | W38: 1559868.375 | X38: 28.36846425 | Y38: 4391.366699 | AA38: K-12 School | AB38: 54986
A39: 51 | B39: SPS-District K-12 | C39: 0425049022 | D39: TU2019 | E39: K-12 School | F39: ECKSTEIN MIDDLE (SPS-DISTRICT) | G39: Eckstein Middle | H39: 3003 NE 75TH ST, SEATTLE, WA 98115 | I39: 483494.6875 | J39: 182861 | K39: 175565 | L39: 2.644055799 | M39: 35 | N39: Lowest Use | O39: 87 | R39: 175565 | S39: 175565 | T39: Y | V39: 55.59999847 | W39: 6395377.5 | X39: 34.97398297 | Y39: 47456.93359 | AA39: K-12 School | AB39: 182861
A40: 52 | B40: NonResidential | C40: 0467000429 | D40: TU2020 | E40: Office | F40: SALMON BAY CENTER 5305 & 5309 | G40: SBC52 | H40: 5305 SHILSHOLE AVE NW, SEATTLE, WA 98107 | I40: 1257792 | J40: 94900 | K40: 94900 | L40: 13.25386723 | M40: 65.19999695 | N40: Medium High | O40: 57 | R40: 60040 | S40: 94900 | T40: Y | V40: 163 | W40: 6186461.5 | X40: 65.18926765 | Y40: 18948.75977 | AA40: Office | AB40: 55586 | AC40: Non-Refrigerated Warehouse | AD40: 39314
A41: 53 | B41: NonResidential | C41: 0570000340 | D41: TU2021 | E41: Office | F41: EL CENTRO DE LA RAZA | G41: El Centro de la Raza | H41: 2524 16TH AVE S, SEATTLE, WA 98144 | I41: 462998 | J41: 58878 | K41: 52554 | L41: 7.863684228 | M41: 50.09999847 | N41: Medium Low | O41: 83 | R41: 52554 | S41: 52554 | T41: Y | V41: 108.6999969 | W41: 2951331.25 | X41: 50.12621438 | Y41: 13715.82031 | AA41: Office | AB41: 51029 | AC41: Other - Education | AD41: 7849
A42: 54 | B42: NonResidential | C42: 0625049002 | D42: TU2019 | E42: K-12 School | F42: BLANCHET HIGH SCHOOL | G42: Blanchet High School | H42: 8200 WALLINGFORD AVE N, SEATTLE, WA 98103 | I42: 785386.8125 | J42: 175015 | K42: 175015 | L42: 4.487539997 | M42: 40 | N42: Medium Low | O42: 95 | R42: 175015 | S42: 175015 | T42: Y | V42: 74 | W42: 6994740.5 | X42: 39.96652001 | Y42: 43150.00781 | AA42: K-12 School | AB42: 175015
A43: 55 | B43: NonResidential | C43: 0653000225 | D43: TU2020 | E43: Self-Storage Facility | F43: MINI STG (OLD SKYWAY LUGGAGE CO) | G43: Vine Street | H43: 11 VINE ST, SEATTLE, WA 98121 | I43: 439692 | J43: 70495 | K43: 70586 | L43: 6.237208313 | M43: 30.60000038 | N43: Highest Use | P43: TRIAD VINE ELLIOTT LLC | Q43: 2505 ELLIOTT AVE | R43: 70586 | S43: 70586 | T43: Y | V43: 76.59999847 | W43: 2158629 | X43: 30.62102277 | Y43: 6584 | AA43: Self-Storage Facility | AB43: 38439 | AC43: Vocational School | AD43: 28197 | AE43: Office | AF43: 3859
A44: 56 | B44: NonResidential | C44: 1975700040 | D44: TU2019 | E44: Hotel | F44: HILTON SEATTLE | G44: Seattle Hilton Hotel | H44: 1301 6TH AVE, SEATTLE, WA 98101 | I44: 3576907 | J44: 348630 | K44: 126240 | L44: 10.25989444 | M44: 46.40000153 | N44: Lowest Use | O44: 67 | R44: 126240 | S44: 126240 | T44: Y | V44: 121.8000031 | W44: 16163194 | X44: 46.36202851 | Y44: 39587.86719 | AA44: Hotel | AB44: 348630
A45: 57 | B45: NonResidential | C45: 1975700200 | D45: TU2019 | E45: Office | F45: 5th and Pine | G45: 5th and Pine | H45: 1513 5TH AVE, SEATTLE, WA 98101 | I45: 2794889 | J45: 169531 | K45: 168115 | L45: 16.48600551 | M45: 56.29999924 | N45: Medium High | O45: 83 | R45: 88717 | S45: 168115 | T45: Y | U45: 2016 | V45: 176.6000061 | W45: 9536161 | X45: 56.25024922 | AA45: Office | AB45: 103362 | AC45: Retail Store | AD45: 65676 | AE45: Data Center | AF45: 493
A46: 58 | B46: NonResidential | C46: 1975700365 | D46: TU2021 | E46: Retail Store | F46: CENTURY SQUARE RETAIL | G46: 1525 Fourth | H46: 1525 4TH AVE, SEATTLE, WA 98101 | I46: 389356.3125 | J46: 57428 | K46: 57428 | L46: 6.779903749 | R46: 37268 | S46: 57428 | T46: N | X46: 0 | AA46: Retail Store | AB46: 34617 | AC46: Non-Refrigerated Warehouse | AD46: 13028 | AE46: Other | AF46: 9783
A47: 59 | B47: NonResidential | C47: 1975700380 | D47: TU2021 | E47: Office | F47: GIBRALTAR TOWER | G47: Gibraltar Tower | H47: 1518 3RD AVE, SEATTLE, WA 98101 | I47: 1486511 | J47: 39940 | K47: 59400 | L47: 37.2186029 | M47: 127 | N47: Highest Use | P47: GIBRALTAR TOWER LLC | Q47: 1520 3RD AVE | R47: 59400 | S47: 59400 | T47: Y | V47: 398.7000122 | W47: 5071974 | X47: 126.9898348 | AA47: Office | AB47: 34947 | AC47: Retail Store | AD47: 4993
A48: 60 | B48: NonResidential | C48: 1975700525 | D48: TU2021 | E48: Mixed Use Property | F48: MANN BUILDING/WILD GINGER/TRIPLE DOOR | G48: Mann Building | H48: 1401 3RD AVE, SEATTLE, WA 98101 | I48: 1357696 | J48: 52459 | K48: 52549 | L48: 25.88108809 | M48: 286.3999939 | N48: Highest Use | P48: MANN BUILDING, L L C | Q48: 1403 3RD AVE | R48: 52549 | S48: 52549 | T48: Y | V48: 485.2999878 | W48: 15026196 | X48: 286.4369508 | Y48: 103937.3672 | AA48: Other - Entertainment/Public Assembly | AB48: 23500 | AC48: Restaurant | AD48: 23500 | AE48: Office | AF48: 5459
A49: 62 | B49: NonResidential | C49: 1976700010 | D49: TU2020 | E49: Hotel | F49: ROOSEVELT HOTEL | G49: Roosevelt Hotel | H49: 1531 7TH AVE, SEATTLE, WA 98101 | I49: 1257344 | J49: 88591 | K49: 88591 | L49: 14.19268323 | M49: 54.59999847 | N49: Lowest Use | O49: 71 | P49: NORTH COAST HOTELS LLC THE ROOSEVELT HOTEL | Q49: 1531 7TH AVE | R49: 88591 | S49: 88591 | T49: Y | V49: 158.6000061 | W49: 4841347.5 | X49: 54.64829949 | Y49: 5512.879883 | AA49: Hotel | AB49: 83591 | AC49: Parking | AD49: 10043 | AE49: Restaurant | AF49: 5000
A50: 63 | B50: NonResidential | C50: 1976700095 | D50: TU2018 | E50: Hotel | F50: SHERATON HOTEL | G50: Sheraton Seattle Hotel | H50: 1400 6TH AVE, SEATTLE, WA 98101 | I50: 13348630 | J50: 994212 | K50: 847518 | L50: 13.42634167 | M50: 80.90000153 | N50: Medium High | O50: 63 | R50: 617204 | S50: 847518 | T50: Y | V50: 182.5 | W50: 80469216 | X50: 80.93768331 | Y50: 233249.9219 | Z50: 11598686 | AA50: Hotel | AB50: 994212 | AC50: Parking | AD50: 117668 | AE50: Swimming Pool | AF50: 0
A51: 65 | B51: NonResidential | C51: 1977200050 | D51: TU2020 | E51: Hotel | F51: INN AT THE MARKET | G51: Inn at The Market | H51: 86 PINE ST, SEATTLE, WA 98101 | I51: 950732.875 | J51: 57420 | K51: 71150 | L51: 16.55752133 | M51: 93.09999847 | N51: Medium High | O51: 98 | R51: 71150 | S51: 71150 | T51: Y | V51: 215.8999939 | W51: 5348309 | X51: 93.14366075 | Y51: 21044.08008 | AA51: Hotel | AB51: 41340 | AC51: Parking | AD51: 13730 | AE51: Retail Store | AF51: 9604
A52: 66 | B52: NonResidential | C52: 1977201035 | D52: TU2019 | E52: Hotel | F52: MOORE HOTEL & THEATRE | G52: Moore Hotel INC | H52: 1926 2ND AVE, SEATTLE, WA 98101 | I52: 379121.1875 | J52: 122810 | K52: 122810 | L52: 3.087054698 | M52: 44 | N52: Lowest Use | O52: 99 | R52: 122810 | S52: 122810 | T52: Y | V52: 68.19999695 | W52: 5401277.5 | X52: 43.98076297 | Y52: 41077.16016 | AA52: Hotel | AB52: 88360 | AC52: Other - Entertainment/Public Assembly | AD52: 26450 | AE52: Retail Store | AF52: 8000
A53: 68 | B53: NonResidential | C53: 1991200935 | D53: TU2019 | E53: Hotel | F53: HOLIDAY INN - SEATTLE | G53: Rainier Hospitality | H53: 211 DEXTER AVE N, SEATTLE, WA 98109 | I53: 995342.625 | J53: 110547 | K53: 115718 | L53: 9.003795897 | M53: 60.70000076 | N53: Medium Low | O53: 85 | R53: 115718 | S53: 115718 | T53: Y | U53: 2014 | V53: 128 | W53: 6715187 | X53: 60.7450858 | Y53: 33190.77734 | AA53: Hotel | AB53: 107547 | AC53: Restaurant | AD53: 3000
A54: 69 | B54: NonResidential | C54: 1991200940 | D54: TU2020 | E54: Hotel | F54: HOLIDAY INN EXPRESS - DOWNTOWN SEATTLE | G54: Sequim Lodging Corp | H54: 226 AURORA AVE N, SEATTLE, WA 98109 | I54: 934483.375 | J54: 88490 | K54: 88100 | L54: 10.56032744 | M54: 65.90000153 | N54: Medium Low | O54: 86 | R54: 88100 | S54: 88100 | T54: Y | V54: 144.5 | W54: 5827595.5 | X54: 65.85597808 | Y54: 26391.38086 | AA54: Hotel | AB54: 88490 | AC54: Parking | AD54: 28300
A55: 70 | B55: NonResidential | C55: 1992200235 | D55: TU2019 | E55: Hotel | F55: HOMEWOOD SUITES HOTEL - SEATTLE | G55: Homewood Suites by Hilton Seattle Downtonw | H55: 206 WESTERN AVE W, SEATTLE, WA 98119 | I55: 1336148 | J55: 155602 | K55: 118858 | L55: 8.586959037 | M55: 43.90000153 | N55: Lowest Use | O55: 81 | R55: 118858 | S55: 118858 | T55: Y | V55: 107.4000015 | W55: 6836900 | X55: 43.93838125 | Y55: 22779.61914 | AA55: Hotel | AB55: 155602
A56: 73 | B56: NonResidential | C56: 2125049015 | D56: TU2021 | E56: K-12 School | F56: SEATTLE HEBREW ACADAMY | G56: Seattle Hebrew Academy | H56: 1617 INTERLAKEN DR E, SEATTLE, WA 98112 | I56: 161743.0938 | J56: 56072 | K56: 56072 | L56: 2.88456081 | M56: 57.70000076 | N56: Highest Use | O56: 76 | R56: 56072 | S56: 56072 | T56: Y | V56: 81.09999847 | W56: 3234787.75 | X56: 57.68989424 | Y56: 26829.20117 | AA56: K-12 School | AB56: 56072
A57: 77 | B57: NonResidential | C57: 2249000170 | D57: TU2020 | E57: Hotel | F57: COMFORT SUITES SEATTLE CENTER | G57: Comfort Suites Seattle Center | H57: 601 ROY ST, SEATTLE, WA 98109 | I57: 710354.625 | J57: 78051 | K57: 78051 | L57: 9.101159819 | M57: 68.40000153 | N57: Medium Low | O57: 94 | R57: 78051 | S57: 78051 | T57: Y | V57: 136.6999969 | W57: 5337334 | X57: 68.38264724 | Y57: 29136.03906 | AA57: Hotel | AB57: 78051 | AC57: Parking | AD57: 44891
A58: 82 | B58: NonResidential | C58: 2254501944 | D58: TU2021 | E58: Office | F58: WA DEPT OF SOCIAL & HEALTH SERVICES | G58: Dept of Social & Health Services | H58: 1700 E CHERRY ST, SEATTLE, WA 98122 | I58: 579786.125 | J58: 54984 | K58: 54984 | L58: 10.54463344 | M58: 61.40000153 | N58: Medium High | O58: 71 | R58: 54984 | S58: 54984 | T58: Y | V58: 139.6000061 | W58: 3375211 | X58: 61.38533028 | Y58: 13969.80957 | AA58: Office | AB58: 54984
A59: 84 | B59: NonResidential | C59: 2324039001 | D59: TU2018 | E59: Senior Care Community | F59: PROVIDENCE MT ST VINCENT | G59: PSSA - The Mount | H59: 4831 35TH AVE SW, SEATTLE, WA 98126 | I59: 3465643 | J59: 296313 | K59: 217603 | L59: 11.69588577 | M59: 144.3999939 | N59: Highest Use | O59: 54 | R59: 217603 | S59: 217603 | T59: Y | V59: 235 | W59: 42792072 | X59: 144.4151016 | Y59: 309673 | AA59: Senior Care Community | AB59: 296313 | AC59: Parking | AD59: 0
A60: 85 | B60: NonResidential | C60: 2426039059 | D60: TU2020 | E60: Senior Care Community | F60: FOSS HOME AND VILLAGE | G60: Foss Home and Village | H60: 13023 GREENWOOD AVE N, SEATTLE, WA 98133 | I60: 1664566 | J60: 93397 | K60: 93397 | L60: 17.82247824 | M60: 175.6000061 | N60: Highest Use | O60: 1 | R60: 93397 | S60: 93397 | T60: Y | V60: 311.5 | W60: 16402563 | X60: 175.6219472 | Y60: 107230.6406 | AA60: Senior Care Community | AB60: 93397
A61: 86 | B61: NonResidential | C61: 2467400430 | D61: TU2021 | E61: Hotel | F61: SCCA - ALLIANCE HOUSE | G61: SCCA - ALLIANCE HOUSE | H61: 207 PONTIUS AVE N, SEATTLE, WA 98109 | I61: 824351.6875 | J61: 63371 | K61: 63371 | L61: 13.00834274 | M61: 58.5 | N61: Medium Low | O61: 74 | R61: 63371 | S61: 63371 | T61: Y | V61: 154.1999969 | W61: 3706100.25 | X61: 58.48259062 | Y61: 8934.120117 | AA61: Hotel | AB61: 63371 | AC61: Parking | AD61: 20732
A62: 87 | B62: SPS-District K-12 | C62: 2518400005 | D62: TU2021 | E62: K-12 School | F62: ARBOR HEIGHTS ELEMENTARY SCHOOL (SPS-DISTRICT) | G62: Arbor Heights Elementary | H62: 3701 SW 104TH ST, SEATTLE, WA 98146 | I62: 0 | J62: 53352 | K62: 53352 | L62: 0 | M62: 0 | N62: Low Outlier | O62: 100 | R62: 53352 | S62: 53352 | T62: N | V62: 0 | W62: 0 | X62: 0 | Y62: 0 | AA62: K-12 School | AB62: 53352
A63: 89 | B63: NonResidential | C63: 1978201270 | D63: TU2019 | E63: Medical Office | F63: POLYCLINIC MEDICAL OFFICE, NORTH BUILDING | G63: Polyclinic North && South | H63: 1200 HARVARD AVE, SEATTLE, WA 98122 | I63: 2897563 | J63: 179014 | K63: 179014 | L63: 16.18623683 | M63: 93.30000305 | N63: Medium High | O63: 48 | R63: 197243 | S63: 179014 | T63: Y | V63: 213.3999939 | W63: 16701055 | X63: 93.29468645 | Y63: 68145.70312 | AA63: Medical Office | AB63: 179014
A64: 95 | B64: NonResidential | C64: 1979200270 | D64: TU2020 | E64: Hotel | F64: SORRENTO HOTEL | G64: Sorrento Hotel | H64: 900 MADISON ST, SEATTLE, WA 98104 | I64: 779819.125 | J64: 76631 | K64: 76631 | L64: 10.17628799 | M64: 94.69999695 | N64: Medium High | O64: 26 | R64: 76631 | S64: 76631 | T64: Y | V64: 172 | W64: 7258758.5 | X64: 94.72352573 | Y64: 45980.16016 | AA64: Hotel | AB64: 76631
A65: 96 | B65: NonResidential | C65: 1979200290 | D65: TU2019 | E65: Mixed Use Property | F65: PUGET SOUND BLOOD CENTER | G65: Central Seattle | H65: 921 TERRY AVE, SEATTLE, WA 98104 | I65: 2973422 | J65: 75648 | K65: 169107 | L65: 39.30602263 | M65: 204.5 | N65: Highest Use | R65: 169107 | S65: 169107 | T65: Y | V65: 505.7999878 | W65: 15473117 | X65: 204.5409925 | Z65: 5327802.5 | AA65: Medical Office | AB65: 40174 | AC65: Parking | AD65: 20868 | AE65: Office | AF65: 17020
A66: 98 | B66: NonResidential | C66: 1983200230 | D66: TU2021 | E66: Retail Store | F66: FIRESTONE TIRE AND RUBBER CO | G66: Firestone Store#012432 | H66: 400 WESTLAKE AVE N, SEATTLE, WA 98109 | I66: 106038.5 | J66: 72072 | K66: 58320 | L66: =I66/J66 -> 1.471285659 | M66: 14.60000038 | N66: Lowest Use | O66: 96 | R66: 58320 | S66: 58320 | T66: Y | V66: 25.79999924 | W66: 1049748.625 | X66: =W66/J66 -> 14.56527674 | Y66: 6879.452148 | AA66: Retail Store | AB66: 72072
A67: 100 | B67: NonResidential | C67: 1983200325 | D67: TU2018 | E67: Office | F67: CITY PLACE III | G67: City Place III - SEDO | H67: 551 BOREN AVE N, SEATTLE, WA 98109 | I67: 3772302 | J67: 287367 | K67: 316306 | L67: 13.12712316 | R67: 316306 | S67: 316306 | T67: N | X67: 0 | AA67: Office | AB67: 261826 | AC67: Parking | AD67: 150726 | AE67: Other | AF67: 15139
A68: 102 | B68: NonResidential | C68: 1984200065 | D68: TU2018 | E68: Hotel | F68: MARRIOTT RESIDENCE INN | G68: Residence Inn Seattle - Lake Union | H68: 800 FAIRVIEW AVE N, SEATTLE, WA 98109 | I68: 3218245 | J68: 235788 | K68: 238097 | L68: 13.64889223 | M68: 82.5 | N68: Medium High | O68: 37 | R68: 238097 | S68: 238097 | T68: Y | V68: 184 | W68: 19459304 | X68: 82.52881402 | Y68: 84786.50781 | AA68: Hotel | AB68: 235788 | AC68: Parking | AD68: 51537
A69: 103 | B69: Nonresidential COS | C69: 1985200003 | D69: TU2019 | E69: Other | F69: KEY ARENA - SEATTLE CENTER | G69: Key Arena | H69: 305 HARRISON ST, SEATTLE, WA 98109 | I69: 4226010 | J69: 368000 | K69: 129000 | L69: 11.48372283 | M69: 64.30000305 | N69: Medium Low | R69: 129000 | S69: 129000 | T69: Y | V69: 151.6000061 | W69: 23658978 | X69: 64.29070109 | Y69: 6886.799805 | Z69: 6093150 | AA69: Other | AB69: 368000
A70: 104 | B70: Nonresidential COS | C70: 1985200003 | D70: TU2020 | E70: Other | F70: BAGLEY WRIGHT THEATER - SEATTLE CENTER | G70: Bagley Wright Theatre | H70: 305 HARRISON ST, SEATTLE, WA 98109 | I70: 1100268 | J70: 65000 | K70: 91213 | L70: 16.9272 | M70: 125.1999969 | N70: Highest Use | R70: 91213 | S70: 91213 | T70: Y | V70: 261.7000122 | W70: 8141155.5 | X70: 125.2485462 | Z70: 4120130 | AA70: Other | AB70: 65000
A71: 106 | B71: Nonresidential COS | C71: 1985200305 | D71: TU2018 | E71: Other | F71: ARMORY - SEATTLE CENTER | G71: Armory | H71: 305 HARRISON ST, SEATTLE, WA 98109 | I71: 2125535 | J71: 278500 | K71: 396085 | L71: 7.632082585 | M71: 75.19999695 | N71: Medium High | R71: 396085 | S71: 396085 | T71: Y | V71: 138.1000061 | W71: 20955026 | X71: 75.2424632 | Y71: 0 | Z71: 9763690 | AA71: Other | AB71: 278500
A72: 107 | B72: NonResidential | C72: 1986200410 | D72: TU2018 | E72: Office | F72: CITY PLACE IV | G72: City Place IV - SEDO | H72: 301 BOREN AVE N, SEATTLE, WA 98109 | I72: 9439098 | J72: 625004 | K72: 571329 | L72: 15.10246014 | M72: 63.40000153 | N72: Medium High | O72: 91 | R72: 517329 | S72: 571329 | T72: Y | V72: 174.1999969 | W72: 39605888 | X72: 63.36901524 | Y72: 73996.85156 | AA72: Office | AB72: 598801 | AC72: Parking | AD72: 310699 | AE72: Other | AF72: 26203
A73: 110 | B73: Nonresidential COS | C73: 1988200440 | D73: TUOPT | E73: Other | F73: EXHIBITION HALL - SEATTLE CENTER | G73: Exhibition Hall | H73: 301 MERCER ST, SEATTLE, WA 98109 | I73: 379058.9062 | J73: 52000 | K73: 49680 | L73: 7.289594351 | M73: 52.40000153 | N73: Medium Low | R73: 49680 | S73: 49680 | T73: Y | V73: 110.4000015 | W73: 2726369 | X73: 52.43017308 | Z73: 1202380 | AA73: Other | AB73: 52000
A74: 111 | B74: Nonresidential COS | C74: 1988200700 | D74: TU2021 | E74: Other | F74: MERCER ARENA - SEATTLE CENTER | G74: Mercer Arena | H74: 301 MERCER ST, SEATTLE, WA 98109 | I74: 256724.2969 | J74: 108000 | K74: 60696 | L74: 2.377076823 | M74: 8.100000381 | N74: Lowest Use | R74: 60696 | S74: 60696 | T74: Y | V74: 25.5 | W74: 875943.3125 | X74: 8.110586227 | Y74: 0 | AA74: Other | AB74: 108000
A75: 112 | B75: Nonresidential COS | C75: 1988200700 | D75: TU2018 | E75: Other | F75: MCCAW HALL - SEATTLE CENTER | G75: McCaw Hall | H75: 225 MERCER ST, SEATTLE, WA 98109 | I75: 3960342 | J75: 296000 | K75: 262048 | L75: 13.37953378 | M75: 70 | N75: Medium Low | R75: 262048 | S75: 262048 | T75: Y | V75: 171.1999969 | W75: 20723248 | X75: 70.01097297 | Z75: 5137220 | AA75: Other | AB75: 296000
A76: 113 | B76: NonResidential | C76: 1988200705 | D76: TU2021 | E76: Office | F76: KCTS 9 | G76: KCTS9 | H76: 401 MERCER ST, SEATTLE, WA 98109 | I76: 1221074 | J76: 55632 | K76: 63888 | L76: 21.94913 | M76: 74.90000153 | N76: Highest Use | R76: 63888 | S76: 63888 | T76: Y | V76: 235.1999969 | W76: 4166306.25 | X76: 74.89046322 | AA76: Office | AB76: 45900 | AC76: Data Center | AD76: 5181 | AE76: Distribution Center | AF76: 4551
A77: 114 | B77: NonResidential | C77: 1988201155 | D77: TU2018 | E77: Office | F77: BILL & MELINDA GATES FOUNDATION | G77: Bill and Melinda Gates Foundation | H77: 500 5TH AVE N, SEATTLE, WA 98109 | I77: 8088295 | J77: 735584 | K77: 616891 | L77: 10.99574624 | M77: 49.79999924 | N77: Medium Low | O77: 93 | R77: 616891 | S77: 616891 | T77: Y | V77: 130.8000031 | W77: 36667044 | X77: 49.84752795 | Y77: 90697.79688 | AA77: Office | AB77: 729584 | AC77: Parking | AD77: 185014 | AE77: Other | AF77: 6000
A78: 115 | B78: NonResidential | C78: 1989200850 | D78: TU2021 | E78: Office | F78: SCRIPPS BUILDING - 221 FIRST AVENUE WEST | G78: J.G. Scripps Building | H78: 221 1ST AVE W, SEATTLE, WA 98119 | I78: 863040 | J78: 50952 | K78: 50283 | L78: 16.93829487 | M78: 68.19999695 | N78: Medium High | O78: 68 | R78: 50283 | S78: 50283 | T78: Y | V78: 192.3999939 | W78: 3476212.5 | X78: 68.2252414 | Y78: 5315.200195 | AA78: Office | AB78: 48546 | AC78: Parking | AD78: 21454 | AE78: Other | AF78: 2406
A79: 116 | B79: NonResidential | C79: 1989201125 | D79: TU2020 | E79: Hotel | F79: THE MEDITERRANEAN INN | G79: MEDITERRANEAN INN (ID#116) | H79: 425 QUEEN ANNE AVE N, SEATTLE, WA 98109 | I79: 772863.6875 | J79: 59976 | K79: 80804 | L79: 12.88621594 | M79: 86 | N79: Medium High | O79: 56 | R79: 59976 | S79: 80804 | T79: Y | V79: 182.1999969 | W79: 5155568.5 | X79: 85.96052588 | Y79: 25185.58008 | AA79: Hotel | AB79: 59976 | AC79: Parking | AD79: 36934
A80: 117 | B80: NonResidential | C80: 1142001871 | D80: TU2021 | E80: Hotel | F80: UNIVERSITY INN | G80: UNIVERSITY INN | H80: 4140 ROOSEVELT WAY NE, SEATTLE, WA 98105 | I80: 623770.8125 | J80: 50017 | K80: 50017 | L80: 12.47117605 | M80: 108.9000015 | N80: Highest Use | O80: 53 | R80: 50017 | S80: 50017 | T80: Y | V80: 203.3000031 | W80: 5448975 | X80: 108.9424596 | Y80: 33206.69141 | AA80: Hotel | AB80: 50017 | AC80: Swimming Pool | AD80: 0
A81: 118 | B81: SPS-District K-12 | C81: 1324039116 | D81: TU2020 | E81: K-12 School | F81: COOPER ELEMENTARY SCHOOL (SPS-DISTRICT) | G81: Pathfinder K-8 | H81: 1901 SW GENESEE ST, SEATTLE, WA 98106 | I81: 499367 | J81: 75364 | K81: 74468 | L81: 6.626068149 | R81: 74468 | S81: 74468 | T81: N | X81: 0 | AA81: K-12 School | AB81: 75364
A82: 119 | B82: NonResidential | C82: 1336800825 | D82: TU2021 | E82: K-12 School | F82: ST JOSEPH K-8 SCHOOL | G82: St. Joseph K-8 School | H82: 700 18TH AVE E, SEATTLE, WA 98112 | I82: 392082.5938 | J82: 67743 | K82: 67743 | L82: 5.787794957 | M82: 39.09999847 | N82: Medium Low | O82: 34 | R82: 46313 | S82: 67743 | T82: Y | V82: 82.30000305 | W82: 2646879 | X82: 39.07236172 | Y82: 13090.93066 | AA82: K-12 School | AB82: 67743
A83: 120 | B83: NonResidential | C83: 1338800660 | D83: TU2019 | E83: K-12 School | F83: HOLY NAMES ACADEMY | G83: Holy Names Academy | H83: 728 21ST AVE E, SEATTLE, WA 98112 | I83: 553309.8125 | J83: 194104 | K83: 194104 | L83: 2.850584287 | M83: 32 | N83: Lowest Use | O83: 100 | R83: 194104 | S83: 194104 | T83: Y | V83: 54 | W83: 6219841.5 | X83: 32.04386051 | Y83: 43319.48828 | AA83: K-12 School | AB83: 194104
A84: 121 | B84: NonResidential | C84: 1498303116 | D84: TU2021 | E84: Office | F84: THE 2100 BUILDING | G84: 2100 Building | H84: 2100 24TH AVE S, SEATTLE, WA 98144 | I84: 1435451 | J84: 63681 | K84: 63681 | L84: 22.54127605 | M84: 76.90000153 | N84: Highest Use | O84: 63 | R84: 63681 | S84: 63681 | T84: Y | V84: 241.5 | W84: 4897760 | X84: 76.91085253 | AA84: Office | AB84: 63681 | AC84: Parking | AD84: 35752
A85: 122 | B85: SPS-District K-12 | C85: 1524049002 | D85: TU2021 | E85: K-12 School | F85: MUIR ELEMENTARY SCHOOL(SPS-DISTRICT) | G85: John Muir Elementary | H85: 3301 S HORTON ST, SEATTLE, WA 98144 | I85: 623617.625 | J85: 60725 | K85: 58933 | L85: 10.26953685 | M85: 35 | N85: Lowest Use | O85: 70 | R85: 58933 | S85: 58933 | T85: Y | V85: 110 | W85: 2127783.5 | X85: 35.03966241 | AA85: K-12 School | AB85: 60725
A86: 125 | B86: SPS-District K-12 | C86: 1624049214 | D86: TU2019 | E86: K-12 School | F86: MERCER JR HIGH SCHOOL (SPS-DISTRICT) | G86: Mercer International Middle | H86: 1600 S COLUMBIAN WAY, SEATTLE, WA 98108 | I86: 636691.375 | J86: 134446 | K86: 130862 | L86: 4.735666178 | M86: 46.20000076 | N86: Medium High | O86: 64 | R86: 130862 | S86: 130862 | T86: Y | V86: 82.30000305 | W86: 6215350.5 | X86: 46.22934487 | Y86: 40429.59766 | AA86: K-12 School | AB86: 134446
A87: 127 | B87: SPS-District K-12 | C87: 1704900242 | D87: TU2021 | E87: K-12 School | F87: ORCA AT WHITWORTH ELEMENTARY SCHOOL (SPS-DISTRICT) | G87: Orca K-8 School | H87: 5215 46TH AVE S, SEATTLE, WA 98118 | I87: 441938.5 | J87: 59955 | K87: 59955 | L87: 7.371170044 | M87: 27.79999924 | N87: Lowest Use | O87: 91 | R87: 59955 | S87: 59955 | T87: Y | V87: 81.69999695 | W87: 1666037.625 | X87: 27.78813485 | Y87: 1581.433472 | AA87: K-12 School | AB87: 59955
A88: 130 | B88: SPS-District K-12 | C88: 1794501220 | D88: TU2020 | E88: K-12 School | F88: MCCLURE MIDDLE (SPS-DISTRICT) | G88: McClure Middle | H88: 1915 1ST AVE W, SEATTLE, WA 98119 | I88: 426778.9062 | J88: 93218 | K88: 93218 | L88: 4.578288595 | M88: 28.89999962 | N88: Lowest Use | O88: 88 | R88: 93218 | S88: 93218 | T88: Y | V88: 63 | W88: 2698576.25 | X88: 28.94908977 | Y88: 12424.06641 | AA88: K-12 School | AB88: 93218
A89: 131 | B89: NonResidential | C89: 1797500625 | D89: TU2021 | E89: Other | F89: CENTURYLINK: LAKEVIEW MAIN | G89: Lakeview | H89: 1200 NE 64TH ST, SEATTLE, WA 98115 | I89: 1863315 | J89: 49000 | K89: 56521 | L89: 38.02683673 | M89: 129.6999969 | N89: Highest Use | R89: 56521 | S89: 56521 | T89: Y | V89: 407.3999939 | W89: 6357632 | X89: 129.7475918 | AA89: Other | AB89: 49000
A90: 132 | B90: NonResidential | C90: 1797500715 | D90: TU2018 | E90: Other | F90: ROOSEVELT SQUARE | G90: Roosevelt Square | H90: 6417 ROOSEVELT WAY NE, SEATTLE, WA 98115 | I90: 586489.8125 | J90: 119146 | K90: 206934 | L90: 4.922446515 | M90: 35.70000076 | N90: Lowest Use | R90: 206934 | S90: 206934 | T90: Y | V90: 72.59999847 | W90: 4253577.5 | X90: 35.70054807 | Y90: 22524.74023 | AA90: Other | AB90: 119146 | AC90: Parking | AD90: 0
A91: 136 | B91: NonResidential | C91: 1926049012 | D91: TU2021 | E91: Hotel | F91: HOLIDAY INN EXPRESS - SEATTLE NORTH | G91: Holiday Inn Express North Seattle Shoreline | H91: 14115 AURORA AVE N, SEATTLE, WA 98133 | I91: 409815.0938 | J91: 51390 | K91: 51390 | L91: 7.974607779 | M91: 70.30000305 | N91: Medium Low | O91: 89 | R91: 51390 | S91: 51390 | T91: Y | V91: 130.6999969 | W91: 3611538 | X91: 70.27705779 | Y91: 22132.49023 | AA91: Hotel | AB91: 51390 | AC91: Parking | AD91: 0
A92: 137 | B92: SPS-District K-12 | C92: 1926049025 | D92: TU2019 | E92: K-12 School | F92: BROADVIEW THOMSON ELEMENTARY (SPS-DISTRICT) | G92: Broadview-Thomson K-8 | H92: 13052 GREENWOOD AVE N, SEATTLE, WA 98133 | I92: 511669.3125 | J92: 131909 | K92: 131013 | L92: 3.8789568 | M92: 29.60000038 | N92: Lowest Use | O92: 88 | R92: 131013 | S92: 131013 | T92: Y | V92: 58.70000076 | W92: 3899285.5 | X92: 29.56042044 | Y92: 21534.69922 | AA92: K-12 School | AB92: 131909
A93: 138 | B93: SPS-District K-12 | C93: 1926049321 | D93: TU2018 | E93: K-12 School | F93: INGRAHAM HIGH (SPS-DISTRICT) | G93: Ingraham High | H93: 1819 N 135TH ST, SEATTLE, WA 98133 | I93: 1175887 | J93: 245587 | K93: 245587 | L93: 4.788066958 | M93: 47.09999847 | N93: Medium High | O93: 92 | R93: 245587 | S93: 245587 | T93: Y | V93: 83.59999847 | W93: 11577342 | X93: 47.14150993 | Y93: 75652.17188 | AA93: K-12 School | AB93: 245587
A94: 140 | B94: SPS-District K-12 | C94: 1931301145 | D94: TU2021 | E94: K-12 School | F94: B F DAY ELEMENTARY (SPS-DISTRICT) | G94: B.F. Day Elementary | H94: 3921 LINDEN AVE N, SEATTLE, WA 98103 | I94: 614971.8125 | J94: 66588 | K94: 66588 | L94: 9.235475048 | M94: 31.5 | N94: Lowest Use | O94: 71 | R94: 66588 | S94: 66588 | T94: Y | V94: 98.90000153 | W94: 2098283.75 | X94: 31.51143975 | Y94: 0 | AA94: K-12 School | AB94: 66588
A95: 144 | B95: NonResidential | C95: 1974600035 | D95: TU2019 | E95: Hotel | F95: ALEXIS HOTEL | G95: Alexis Hotel | H95: 1007 1ST AVE, SEATTLE, WA 98104 | I95: 1290419 | J95: 190980 | K95: 190980 | L95: 6.75682794 | M95: 34.09999847 | N95: Lowest Use | O95: 98 | P95: ALEXIS HOTEL & RESTAURANT | Q95: 1007 1ST AVE | S95: 190980 | T95: Y | V95: 84 | W95: 6505995 | X95: 34.06636821 | Y95: 21030.83984 | AA95: Hotel | AB95: 190980 | AC95: Parking | AD95: 19051
A96: 145 | B96: Nonresidential COS | C96: 1974700025 | D96: TU2018 | E96: Other | F96: BENAROYA HALL | G96: Benaroya Hall | H96: 1301 3RD AVE, SEATTLE, WA 98101 | I96: 2873102 | J96: 189750 | K96: 284100 | L96: 15.14151252 | M96: 77.19999695 | N96: Medium High | R96: 284100 | S96: 284100 | T96: Y | V96: 192.5 | W96: 14641502 | X96: 77.16206588 | Y96: 5273.430176 | Z96: 4311136 | AA96: Other - Entertainment/Public Assembly | AB96: 189750
A97: 147 | B97: NonResidential | C97: 2767703875 | D97: TU2018 | E97: Hospital | F97: SWEDISH MEDICAL CENTER BALLARD CAMPUS | G97: Swedish Ballard | H97: 5300 TALLMAN AVE NW, SEATTLE, WA 98107 | I97: 3677019 | J97: 302661 | K97: 285333 | L97: 12.14896865 | M97: 150 | N97: Lowest Use | O97: 99 | S97: 285333 | T97: Y | V97: 244.1000061 | W97: 45399500 | X97: 150.0011564 | Y97: 328535.125 | AA97: Hospital (General Medical & Surgical) | AB97: 302661 | AC97: Parking | AD97: 148865
A98: 148 | B98: SPS-District K-12 | C98: 2768000375 | D98: TU2021 | E98: K-12 School | F98: WEST WOODLAND PARK ELEMENTARY (SPS-DISTRICT) | G98: West Woodland Elementary | H98: 5601 5TH AVE NW, SEATTLE, WA 98107 | I98: 454602.1875 | J98: 59097 | K98: 55513 | L98: 7.692474872 | M98: 26.20000076 | N98: Lowest Use | O98: 93 | R98: 55513 | S98: 55513 | T98: Y | V98: 82.40000153 | W98: 1551102.625 | X98: 26.24672361 | AA98: K-12 School | AB98: 59097
A99: 163 | B99: Nonresidential COS | C99: 5247801465 | D99: TU2021 | E99: Other | F99: FIRE STATION 10/FAC/EOC | G99: Fire Station 10/FAC/EOC | H99: 105 5TH AVE S, SEATTLE, WA 98104 | I99: 2036128 | J99: 71974 | K99: 61156 | L99: 28.28977131 | M99: 130.1000061 | N99: Highest Use | R99: 61156 | S99: 61156 | T99: Y | V99: 338.2999878 | W99: 9363374 | X99: 130.0938394 | Y99: 24161.04102 | AA99: Other | AB99: 42755 | AC99: Office | AD99: 29219
A100: 167 | B100: NonResidential | C100: 5247802715 | D100: TU2020 | E100: Other | F100: WING LUKE MUSEUM/KONG YICK BLDG. | G100: Wing Luke Museum | H100: 719 S KING ST, SEATTLE, WA 98104 | I100: 384428.4062 | J100: 58000 | K100: 72820 | L100: 6.62807597 | M100: 34.70000076 | N100: Lowest Use | R100: 72820 | S100: 72820 | T100: Y | V100: 83.69999695 | W100: 2010454.625 | X100: 34.66301078 | Y100: 6987.850098 | AA100: Museum | AB100: 58000
A101: 168 | B101: NonResidential | C101: 5458300285 | D101: TU2019 | E101: Hotel | F101: HAMPTON INN & SUITES | G101: Hampton Inn Seattle Center | H101: 700 5TH AVE N, SEATTLE, WA 98109 | I101: 1230206 | J101: 113702 | K101: 148022 | L101: 10.81956342 | M101: 69.90000153 | N101: Medium Low | O101: 76 | S101: 148022 | T101: Y | V101: 150.5 | W101: 7946961 | X101: 69.89288667 | Y101: 37494.98828 | AA101: Hotel | AB101: 113702 | AC101: Parking | AD101: 32692
A102: 169 | B102: SPS-District K-12 | C102: 5700000455 | D102: TU2018 | E102: K-12 School | F102: FRANKLIN HIGH SCHOOL (SPS-DISTRICT) | G102: Franklin High | H102: 3013 S MOUNT BAKER BLVD, SEATTLE, WA 98144 | I102: 1891394 | J102: 289588 | K102: 289588 | L102: 6.531327265 | M102: 30.60000038 | N102: Lowest Use | O102: 90 | R102: 289588 | S102: 289588 | T102: Y | V102: 78.80000305 | W102: 8873722 | X102: 30.64257497 | Y102: 24202.86523 | AA102: K-12 School | AB102: 289588
A103: 170 | B103: NonResidential | C103: 6003000470 | D103: TU2021 | E103: College/University | F103: SCC FINE ARTS BLDG | G103: SCCC FINE ARTS BUILDING | H103: 801 E PINE ST, SEATTLE, WA 98122 | I103: 560100.8125 | J103: 64820 | K103: 63330 | L103: 8.640864124 | M103: 47.20000076 | N103: Medium Low | R103: 63330 | S103: 63330 | T103: Y | V103: 111.1999969 | W103: 3059758 | X103: 47.20391854 | Y103: 11486.94043 | AA103: College/University | AB103: 64820
A104: 172 | B104: Campus | C104: 6171900005 | D104: TU2018 | E104: College/University | F104: SOUTH SEATTLE COMMUNITY COLLEGE - CAMPUS MASTER ID | G104: SSCC MAIN CAMPUS | H104: 6000 16TH AVE SW, SEATTLE, WA 98106 | I104: 7419278 | J104: 483000 | K104: 441071 | L104: 15.36082402 | M104: 79.30000305 | N104: Medium High | R104: 441071 | S104: 441071 | T104: Y | V104: 192.8000031 | W104: 38301744 | X104: 79.29967702 | Y104: 129871.6641 | AA104: College/University | AB104: 483000
A105: 173 | B105: NonResidential | C105: 6418100005 | D105: TU2020 | E105: Office | F105: SEATTLE CHILDREN'S HOSPITAL (70th & SAND POINT ADMIN BLDG) | G105: Seattle Children's Hospital 70th/Sand Point Way Administrative Offices | H105: 6901 SAND POINT WAY NE, SEATTLE, WA 98115 | I105: 4095457 | J105: 97244 | K105: 96300 | L105: 42.11526675 | M105: 167.8000031 | N105: Highest Use | R105: 96300 | S105: 96300 | T105: Y | V105: 476.5 | W105: 16319835 | X105: 167.8235675 | Y105: 23461.37109 | AA105: Office | AB105: 92300 | AC105: Data Center | AD105: 4944
A106: 174 | B106: Nonresidential COS | C106: 6834700175 | D106: TU2021 | E106: Other | F106: CSC Vehicle Maintenance (E) | G106: CSC Vehicle Maintenance (E) | H106: 805 S DEARBORN ST, SEATTLE, WA 98134 | I106: 1225675 | J106: 68359 | K106: 67356 | L106: 17.92997264 | M106: 109.4000015 | N106: Medium High | R106: 61440 | S106: 67356 | T106: Y | V106: 242.6999969 | W106: 7475577.5 | X106: 109.3576193 | Y106: 32935.76172 | AA106: Repair Services (Vehicle, Shoe, Locksmith, etc) | AB106: 68359
A107: 175 | B107: SPS-District K-12 | C107: 6840701230 | D107: TU2018 | E107: K-12 School | F107: GARFIELD HIGH (SPS-DISTRICT) | G107: Garfield High | H107: 400 23RD AVE, SEATTLE, WA 98122 | I107: 2279551 | J107: 254523 | K107: 254523 | L107: 8.956168991 | M107: 52.90000153 | N107: Highest Use | O107: 61 | R107: 254523 | S107: 254523 | T107: Y | V107: 119.4000015 | W107: 13454809 | X107: 52.86284147 | Y107: 56769.80078 | AA107: K-12 School | AB107: 254523
A108: 176 | B108: SPS-District K-12 | C108: 7129302300 | D108: TU2020 | E108: K-12 School | F108: EMERSON ELEMENTARY SCHOOL (SPS-DISTRICT) | G108: Emerson Elementary | H108: 9709 60TH AVE S, SEATTLE, WA 98118 | I108: 514864.6875 | J108: 78804 | K108: 78804 | L108: 6.533484182 | M108: 34.5 | N108: Lowest Use | O108: 88 | R108: 78804 | S108: 78804 | T108: Y | V108: 82.80000305 | W108: 2716901.5 | X108: 34.47669535 | Y108: 9601.833008 | AA108: K-12 School | AB108: 78804
A109: 177 | B109: SPS-District K-12 | C109: 7152200350 | D109: TU2021 | E109: K-12 School | F109: MADRONA SCHOOL (SPS-DISTRICT) | G109: Madrona K-8 | H109: 1121 33RD AVE, SEATTLE, WA 98122 | I109: 533437.875 | J109: 66994 | K109: 66994 | L109: 7.962472386 | M109: 35.90000153 | N109: Lowest Use | O109: 79 | R109: 66994 | S109: 66994 | T109: Y | V109: 94.5 | W109: 2406246.75 | X109: 35.91734708 | Y109: 5861.566895 | AA109: K-12 School | AB109: 66994
A110: 178 | B110: SPS-District K-12 | C110: 7243500230 | D110: TU2020 | E110: K-12 School | F110: VAN ASSELT @ (SPS-DISTRICT) | G110: Van Asselt Elementary | H110: 8311 BEACON AVE S, SEATTLE, WA 98118 | I110: 587970.3125 | J110: 98357 | K110: 98357 | L110: 5.977920356 | M110: 35 | N110: Lowest Use | O110: 87 | R110: 98357 | S110: 98357 | T110: Y | V110: 79.40000153 | W110: 3447051.5 | X110: 35.04632614 | Y110: 14408.9668 | AA110: K-12 School | AB110: 98357
A111: 179 | B111: NonResidential | C111: 7378600265 | D111: TU2021 | E111: Office | F111: UNION GOSPEL MISSION ASSN | G111: Seattle's Union Gospel Mission - Admin | H111: 3800 S OTHELLO ST, SEATTLE, WA 98118 | I111: 1046113 | J111: 50765 | K111: 54765 | L111: 20.60697331 | M111: 83.80000305 | N111: Highest Use | R111: 54765 | S111: 54765 | T111: Y | V111: 234.8999939 | W111: 4253369.5 | X111: 83.78547227 | Y111: 6840.320312 | AA111: Office | AB111: 25765 | AC111: Other | AD111: 25000
A112: 180 | B112: NonResidential | C112: 7378600265 | D112: TUOPT | E112: Other | F112: UNION GOSPEL MISSION ASSN / HOPE PLACE | G112: Hope Place | H112: 3802 S OTHELLO ST, SEATTLE, WA 98118 | I112: 19771.90039 | J112: 89000 | K112: 89821 | L112: 0.2221561842 | M112: 21.89999962 | N112: Lowest Use | R112: 37942 | S112: 89821 | T112: Y | V112: 24.60000038 | W112: 1950092.5 | X112: 21.91115169 | Y112: 18826.30859 | AA112: Other - Lodging/Residential | AB112: 46483 | AC112: Office | AD112: 37938 | AE112: Food Service | AF112: 4579
A113: 182 | B113: NonResidential | C113: 7443000070 | D113: TU2021 | E113: College/University | F113: OTTO MILLER HALL | G113: Otto Miller Hall | H113: 3469 3RD AVE W, SEATTLE, WA 98119 | I113: 726633.5 | J113: 52611 | K113: 52611 | L113: 13.81143677 | M113: 78.30000305 | N113: Medium High | R113: 58104 | S113: 52611 | T113: Y | V113: 180.6999969 | W113: 4116871.5 | X113: 78.2511547 | Y113: 16375.97852 | AA113: College/University | AB113: 52611
A114: 185 | B114: SPS-District K-12 | C114: 2826049152 | D114: TU2018 | E114: K-12 School | F114: NATHAN HALE HIGH (SPS-DISTRICT) | G114: Nathan Hale High | H114: 10750 30TH AVE NE, SEATTLE, WA 98125 | I114: 1411170 | J114: 238550 | K114: 236758 | L114: 5.915615175 | M114: 33.90000153 | N114: Lowest Use | O114: 96 | R114: 236758 | S114: 236758 | T114: Y | U114: 2016 | V114: 77.80000305 | W114: 8089597.5 | X114: 33.91153846 | Y114: 32746.86914 | AA114: K-12 School | AB114: 238550 | AC114: Parking | AD114: 0
A115: 187 | B115: NonResidential | C115: 2908700085 | D115: TU2018 | E115: Other | F115: YOUTH SERVICES CENTER - KING COUNTY | G115: Youth Services Center | H115: 1211 E ALDER ST, SEATTLE, WA 98122 | I115: 2390095 | J115: 215922 | K115: 250981 | L115: 11.06925186 | M115: 60.5 | N115: Medium Low | R115: 250981 | S115: 250981 | T115: Y | V115: 145.6000061 | W115: 13071700 | X115: 60.53899093 | Y115: 5801.719727 | Z115: 4336524.5 | AA115: Other | AB115: 137565 | AC115: Courthouse | AD115: 78357
A116: 189 | B116: SPS-District K-12 | C116: 2919200635 | D116: TU2021 | E116: K-12 School | F116: GREENWOOD ELEMENTARY (SPS-DISTRICT) | G116: Greenwood Elementary | H116: 144 NW 80TH ST, SEATTLE, WA 98117 | I116: 326802.6875 | J116: 62526 | K116: 62526 | L116: 5.226668706 | M116: 30.79999924 | N116: Lowest Use | O116: 96 | R116: 62526 | S116: 62526 | T116: Y | V116: 69.59999847 | W116: 1923037.625 | X116: 30.75580758 | Y116: 8079.866211 | AA116: K-12 School | AB116: 62526
A117: 190 | B117: NonResidential | C117: 2924049043 | D117: TU2021 | E117: Office | F117: EMERALD SERVICES | G117: Emerald Services | H117: 7343 E MARGINAL WAY S, SEATTLE, WA 98108 | I117: 778834 | J117: 54015 | K117: 64015 | L117: 14.41884662 | M117: 60 | N117: Medium High | O117: 21 | R117: 56975 | S117: 64015 | T117: Y | V117: 165.8000031 | W117: 3242077.75 | X117: 60.02180413 | Y117: 5846.959961 | AA117: Office | AB117: 30000 | AC117: Non-Refrigerated Warehouse | AD117: 15000 | AE117: Other - Services | AF117: 9015
A118: 194 | B118: NonResidential | C118: 2926049025 | D118: TU2018 | E118: Retail Store | F118: NORTHGATE MALL SHOPPING CENTER RETAIL STORES - ACTIVE/PRIMARY ID | G118: Northgate Mall | H118: 401 NE NORTHGATE WAY, SEATTLE, WA 98125 | I118: 4755138 | J118: 530039 | K118: 530039 | L118: 8.971298338 | M118: 52.29999924 | N118: Medium Low | O118: 98 | S118: 530039 | T118: Y | V118: 118.9000015 | W118: 27717034 | X118: 52.29244263 | Y118: 114925.0312 | AA118: Retail Store | AB118: 505103 | AC118: Restaurant | AD118: 24936
A119: 195 | B119: NonResidential | C119: 2926049409 | D119: TU2021 | E119: Other | F119: KINDRED HOSPITAL | G119: Seattle-Northgate | H119: 10631 8TH AVE NE, SEATTLE, WA 98125 | I119: 980312.875 | J119: 47012 | K119: 54224 | L119: 20.85239673 | M119: 154.5 | N119: Highest Use | R119: 54224 | S119: 54224 | T119: Y | V119: 311 | W119: 7265178 | X119: 154.5387986 | Y119: 39203.50391 | AA119: Other/Specialty Hospital | AB119: 47012
A120: 197 | B120: NonResidential | C120: 2926049528 | D120: TU2019 | E120: Retail Store | F120: NORDSTROM- NORTHGATE MALL | G120: Nordstrom Northgate 002 | H120: 301 NE NORTHGATE WAY, SEATTLE, WA 98125 | I120: 2536232 | J120: 122000 | K120: 124342 | L120: 20.78878689 | M120: 71.90000153 | N120: Medium High | O120: 76 | R120: 124342 | S120: 124342 | T120: Y | V120: 223.6999969 | W120: 8765978 | X120: 71.85227869 | Y120: 1123.560059 | AA120: Retail Store | AB120: 122000
A121: 198 | B121: NonResidential | C121: 2982800005 | D121: TU2018 | E121: Hospital | F121: SEATTLE CHILDREN'S HOSPITAL (MAIN CAMPUS) | G121: Seattle Children's Hospital Main Campus | H121: 4800 SAND POINT WAY NE, SEATTLE, WA 98105 | I121: 33813400 | J121: 879000 | K121: 879000 | L121: 38.46803185 | M121: 287.7999878 | N121: Highest Use | O121: 11 | R121: 879000 | S121: 879000 | T121: Y | V121: 576.5 | W121: 252975408 | X121: 287.799099 | Y121: 1376040.75 | AA121: Hospital (General Medical & Surgical) | AB121: 879000
A122: 200 | B122: NonResidential | C122: 3026049024 | D122: TU2021 | E122: Other | F122: Verity Credit Union | G122: Verity Credit Union | H122: 11027 MERIDIAN AVE N, SEATTLE, WA 98133 | I122: 544942.875 | J122: 37280 | K122: 55442 | L122: 14.61756639 | M122: 85.59999847 | N122: Medium High | O122: 72 | R122: 55442 | S122: 55442 | T122: Y | V122: 194.1000061 | W122: 3191228.25 | X122: 85.60161615 | Y122: 13318.83008 | AA122: Financial Office | AB122: 28636 | AC122: Parking | AD122: 15385 | AE122: Medical Office | AF122: 8644
A123: 205 | B123: SPS-District K-12 | C123: 3050700050 | D123: TU2018 | E123: K-12 School | F123: BALLARD HIGH (SPS-DISTRICT) | G123: Ballard High | H123: 1418 NW 65TH ST, SEATTLE, WA 98117 | I123: 2296467 | J123: 242795 | K123: 242795 | L123: 9.458460841 | M123: 37.70000076 | N123: Medium Low | O123: 80 | R123: 242795 | S123: 242795 | T123: Y | V123: 107 | W123: 9152174 | X123: 37.69506786 | Y123: 13166.2998 | AA123: K-12 School | AB123: 242795
A124: 209 | B124: NonResidential | C124: 3225049002 | D124: TU2020 | E124: Self-Storage Facility | F124: MADISON SELF STORAGE (NOT PART OF CAMPUS) | G124: Madison Self Storage | H124: 1111 E MADISON ST, SEATTLE, WA 98122 | I124: 141452.2031 | J124: 85521 | K124: 84870 | L124: 1.654005485 | M124: 16.20000076 | N124: Medium Low | R124: 84870 | S124: 84870 | T124: Y | V124: 28.79999924 | W124: 1381590.125 | X124: 16.15498094 | Y124: 8989.550781 | AA124: Self-Storage Facility | AB124: 85521
A125: 211 | B125: Campus | C125: 3226049021 | D125: TU2018 | E125: College/University | F125: NORTH SEATTLE COMMUNITY COLLEGE CAMPUS MASTER ID | G125: NSCC MAIN CAMPUS | H125: 9600 COLLEGE WAY N, SEATTLE, WA 98103 | I125: 9803879 | J125: 667335 | K125: 582447 | L125: 14.69109068 | M125: 53.79999924 | N125: Medium Low | R125: 582447 | S125: 582447 | T125: Y | V125: 161.1999969 | W125: 35891484 | X125: 53.78330823 | Y125: 24406.47852 | AA125: College/University | AB125: 667335
A126: 212 | B126: SPS-District K-12 | C126: 3332501090 | D126: TU2019 | E126: K-12 School | F126: SHARPLES JR HIGH (SPS-DISTRICT) | G126: Aki Kurose Middle | H126: 3928 S GRAHAM ST, SEATTLE, WA 98118 | I126: 527292.1875 | J126: 173185 | K126: 173185 | L126: 3.044675852 | M126: 36.20000076 | N126: Medium Low | O126: 78 | R126: 173185 | S126: 173185 | T126: Y | V126: 59.70000076 | W126: 6270104 | X126: 36.20465976 | Y126: 44709.82812 | AA126: K-12 School | AB126: 173185
A127: 214 | B127: SPS-District K-12 | C127: 3438501230 | D127: TU2019 | E127: K-12 School | F127: BOREN JR. HIGH SCHOOL (SPS-DISTRICT) | G127: Boren Building | H127: 5950 DELRIDGE WAY SW, SEATTLE, WA 98106 | I127: 560019.1875 | J127: 139069 | K127: 145341 | L127: 4.026916045 | M127: 41.09999847 | N127: Medium Low | O127: 72 | R127: 145341 | S127: 145341 | T127: Y | V127: 71.90000153 | W127: 5720532.5 | X127: 41.13449079 | Y127: 38097.46875 | AA127: K-12 School | AB127: 139069
A128: 215 | B128: NonResidential | C128: 3466800065 | D128: TU2019 | E128: Non-Refrigerated Warehouse | F128: RAINIER BOTTLING PLANT | G128: Rainier Bottling Plant | H128: 5628 AIRPORT WAY S, SEATTLE, WA 98108 | I128: 267431 | J128: 114297 | K128: 114297 | L128: 2.339790196 | M128: 18.39999962 | N128: Medium Low | O128: 61 | R128: 114297 | S128: 114297 | T128: Y | V128: 36 | W128: 2100097.75 | X128: 18.37404088 | Y128: 11876.22949 | AA128: Non-Refrigerated Warehouse | AB128: 114297
A129: 216 | B129: SPS-District K-12 | C129: 3524049149 | D129: TU2019 | E129: K-12 School | F129: RAINIER BEACH HIGH SCHOOL (SPS-DISTRICT) | G129: Rainier Beach High | H129: 8815 SEWARD PARK AVE S, SEATTLE, WA 98118 | I129: 889575 | J129: 184125 | K129: 184125 | L129: 4.831364562 | M129: 46.90000153 | N129: Medium High | O129: 86 | R129: 184125 | S129: 184125 | T129: Y | V129: 83.69999695 | W129: 8632320 | X129: 46.88293279 | Y129: 55970.90234 | AA129: K-12 School | AB129: 184125
A130: 217 | B130: SPS-District K-12 | C130: 3526039131 | D130: TU2019 | E130: K-12 School | F130: WHITMAN JR HIGH (SPS-DISTRICT) | G130: Whitman Middle | H130: 9201 15TH AVE NW, SEATTLE, WA 98117 | I130: 635035.625 | J130: 160270 | K130: 160270 | L130: =I130/J130 -> 3.962286298 | M130: 37.20000076 | N130: Medium Low | O130: 74 | R130: 160270 | S130: 160270 | T130: Y | V130: 67.40000153 | W130: 5968641.5 | X130: =W130/J130 -> 37.24116491 | Y130: 38019 | AA130: K-12 School | AB130: 160270
A131: 220 | B131: NonResidential | C131: 3573700006 | D131: TU2018 | E131: Non-Refrigerated Warehouse | F131: SEARS & OTHERS WAREHOUSE #8109 | G131: 8109 | H131: 4786 1ST AVE S, SEATTLE, WA 98134 | I131: 385937 | J131: 234144 | K131: 234144 | L131: 1.648289087 | M131: 28.79999924 | N131: Medium High | O131: 87 | R131: 234144 | S131: 234144 | T131: Y | V131: 42 | W131: 6744317 | X131: 28.8041419 | Y131: 54275 | AA131: Non-Refrigerated Warehouse | AB131: 234144
A132: 223 | B132: NonResidential | C132: 3624039009 | D132: TU2021 | E132: Retail Store | F132: WESTWOOD VILLAGE - BLDG A | G132: Westwood Village - Building A | H132: 2600 SW BARTON ST, SEATTLE, WA 98126 | I132: 766027.875 | J132: 65425 | K132: 64984 | L132: 11.70848873 | M132: 45 | N132: Medium Low | O132: 72 | R132: 64984 | S132: 64984 | T132: Y | V132: 130.6999969 | W132: 2944296.25 | X132: 45.0026175 | Y132: 3306.090088 | AA132: Retail Store | AB132: 65425
A133: 224 | B133: NonResidential | C133: 3624039009 | D133: TU2021 | E133: Retail Store | F133: WESTWOOD VILLAGE - BLDG B (Includes QFC) | G133: Westwood Village - Building B | H133: 2600 SW BARTON ST, SEATTLE, WA 98126 | I133: 769080.375 | J133: 67782 | K133: 67745 | L133: 11.34638068 | M133: 136.1999969 | N133: Highest Use | O133: 37 | R133: 67745 | S133: 67745 | T133: Y | V133: 223.8999939 | W133: 9230223 | X133: 136.175135 | Y133: 66061.21094 | AA133: Retail Store | AB133: 67782
A134: 225 | B134: SPS-District K-12 | C134: 3624039032 | D134: TU2018 | E134: K-12 School | F134: DENNY/ SEALTH CAMPUS (SPS-DISTRICT) | G134: Denny/Sealth Campus | H134: 2500 SW THISTLE ST, SEATTLE, WA 98106 | I134: 2463593 | J134: 367884 | K134: 367884 | L134: 6.696657098 | M134: 34.5 | N134: Lowest Use | O134: 97 | R134: 367884 | S134: 367884 | T134: Y | U134: 2016 | V134: 84 | W134: 12682821 | X134: 34.47505464 | Y134: 42770.39844 | AA134: K-12 School | AB134: 367884
A135: 226 | B135: SPS-District K-12 | C135: 3624039057 | D135: TUOPT | E135: K-12 School | F135: ROXHILL ELEMENTARY SCHOOL(SPS-DISTRICT) | G135: Roxhill Elementary | H135: 9450 30TH AVE SW, SEATTLE, WA 98126 | I135: 240932.7969 | J135: 46797 | K135: 46797 | L135: 5.148466715 | M135: 45.29999924 | N135: Medium High | O135: 84 | R135: 46797 | S135: 46797 | T135: Y | V135: 84.30000305 | W135: 2121599.25 | X135: 45.33622348 | Y135: 12995.36621 | AA135: K-12 School | AB135: 46797
A136: 227 | B136: SPS-District K-12 | C136: 3646100540 | D136: TU2019 | E136: K-12 School | F136: WASHINGTON JR HIGH SCHOOL(SPS-DISTRICT) | G136: Washington Middle | H136: 2101 S JACKSON ST, SEATTLE, WA 98144 | I136: 722876.375 | J136: 136188 | K136: 136188 | L136: 5.307930031 | M136: 41.90000153 | N136: Medium Low | O136: 64 | R136: 136188 | S136: 136188 | T136: Y | V136: 81.80000305 | W136: 5705584 | X136: 41.89490998 | Y136: 32391.30078 | AA136: K-12 School | AB136: 136188
A137: 228 | B137: NonResidential | C137: 3693901110 | D137: TU2021 | E137: Other | F137: NORDIC HERITAGE MUSEUM (WEBSTER BLDG) | G137: Webster Building | H137: 3014 NW 67TH ST, SEATTLE, WA 98117 | I137: 247615.5938 | J137: 56000 | K137: 56000 | L137: 4.421707031 | M137: 33.09999847 | N137: Lowest Use | R137: 56000 | S137: 56000 | T137: Y | V137: 66.19999695 | W137: 1851260.5 | X137: 33.05822321 | Y137: 10063.95996 | AA137: Other | AB137: 56000
A138: 229 | B138: SPS-District K-12 | C138: 3812400550 | D138: TU2021 | E138: K-12 School | F138: KING (BRIGHTON) ELEMENTARY SCHOOL (SPS-DISTRICT) | G138: Martin Luther King Jr. Elementary | H138: 6725 45TH AVE S, SEATTLE, WA 98118 | I138: 423236.5 | J138: 67371 | K138: 67371 | L138: 6.282176307 | M138: 30.70000076 | N138: Lowest Use | O138: 92 | R138: 67371 | S138: 67371 | T138: Y | V138: 77.09999847 | W138: 2070502.875 | X138: 30.73285056 | Y138: 6264.200195 | AA138: K-12 School | AB138: 67371
A139: 230 | B139: NonResidential | C139: 3874900040 | D139: TU2021 | E139: Self-Storage Facility | F139: U-HAUL RENTALS & MINI-STORAGE | G139: U-Haul Moving and Storage of West Seattle | H139: 6343 35TH AVE SW, SEATTLE, WA 98126 | I139: 153506.7031 | J139: 52088 | K139: 52088 | L139: 2.947064643 | M139: 26.39999962 | N139: Medium High | R139: 52088 | S139: 52088 | T139: Y | V139: 48.79999924 | W139: 1377519.5 | X139: 26.44600484 | Y139: 8537.545898 | AA139: Self-Storage Facility | AB139: 52088
A140: 231 | B140: SPS-District K-12 | C140: 4083301505 | D140: TU2019 | E140: K-12 School | F140: HAMILTON MIDDLE (SPS-DISTRICT) | G140: Hamilton International Middle | H140: 1610 N 41ST ST, SEATTLE, WA 98103 | I140: 1085868 | J140: 127776 | K140: 127776 | L140: 8.498215627 | M140: 36.5 | N140: Medium Low | O140: 76 | R140: 127776 | S140: 127776 | T140: Y | V140: 98.90000153 | W140: 4665564 | X140: 36.51361758 | Y140: 9605.833008 | AA140: K-12 School | AB140: 127776
A141: 232 | B141: NonResidential | C141: 4088802955 | D141: TU2020 | E141: Hotel | F141: SILVER CLOUD INN LAKE UNION | G141: Silver Cloud Inn | H141: 1150 FAIRVIEW AVE N, SEATTLE, WA 98109 | I141: 1195550 | J141: 123920 | K141: 93920 | L141: 9.647756617 | M141: 75.59999847 | N141: Medium Low | O141: 79 | R141: 93920 | S141: 93920 | T141: Y | V141: 148.1999969 | W141: 9373179 | X141: 75.63895255 | Y141: 52939.60938 | AA141: Hotel | AB141: 123920 | AC141: Parking | AD141: 30000 | AE141: Swimming Pool | AF141: 0
A142: 233 | B142: Nonresidential COS | C142: 4088803210 | D142: TU2021 | E142: Other | F142: ARMORY BUILDING (MOHAI) | G142: Armory Building | H142: 860 TERRY AVE N, SEATTLE, WA 98109 | I142: 1113108 | J142: 43000 | K142: 58000 | L142: 25.88623256 | M142: 175.6000061 | N142: Highest Use | R142: 50000 | S142: 58000 | T142: Y | V142: 368.8999939 | W142: 7548807 | X142: 175.5536512 | Y142: 37508.82031 | AA142: Museum | AB142: 43000
A143: 234 | B143: Nonresidential COS | C143: 4088803530 | D143: TU2021 | E143: Non-Refrigerated Warehouse | F143: SEATTLE CITY LIGHT ROY STREET WAREHOUSE | G143: SCL Roy Street Warehouse | H143: 800 ALOHA ST, SEATTLE, WA 98109 | I143: 126164.6016 | J143: 53944 | K143: 50292 | L143: 2.33880694 | M143: 8 | N143: Lowest Use | R143: 22536 | S143: 50292 | T143: Y | V143: 25.10000038 | W143: 430473.6875 | X143: 7.98001052 | AA143: Non-Refrigerated Warehouse | AB143: 42345 | AC143: Residence Hall/Dormitory | AD143: 5000 | AE143: Office | AF143: 4730
A144: 235 | B144: NonResidential | C144: 4088803586 | D144: TU2019 | E144: Hotel | F144: COURTYARD BY MARRIOTT - SEATTLE | G144: 311jk-Seattle Downtown/Lake Union CY | H144: 925 WESTLAKE AVE N, SEATTLE, WA 98109 | I144: 1620981 | J144: 141591 | K144: 153315 | L144: 11.44833358 | M144: 78.90000153 | N144: Medium High | O144: 76 | R144: 153315 | S144: 153315 | T144: Y | V144: 164.5 | W144: 11171988 | X144: 78.90323538 | Y144: 56412.00391 | AA144: Hotel | AB144: 141591
A145: 237 | B145: SPS-District K-12 | C145: 4240400005 | D145: TU2021 | E145: K-12 School | F145: WHITTIER ELEMENTARY (SPS-DISTRICT) | G145: Whittier Elementary | H145: 7501 13TH AVE NW, SEATTLE, WA 98117 | I145: 468060.8125 | J145: 67235 | K145: 67235 | L145: 6.961564847 | M145: 33.09999847 | N145: Lowest Use | O145: 89 | R145: 67235 | S145: 67235 | T145: Y | V145: 84.40000153 | W145: 2227180 | X145: 33.12530676 | Y145: 6301.566406 | AA145: K-12 School | AB145: 67235
A146: 238 | B146: Nonresidential COS | C146: 4310701070 | D146: TU2020 | E146: Office | F146: CITY OF SEATTLE - NSC | G146: North Service Center | H146: 9700 STONE AVE N, SEATTLE, WA 98103 | I146: 2079128 | J146: 94288 | K146: 85017 | L146: 22.05082301 | M146: 100.5 | N146: Highest Use | R146: 85017 | S146: 85017 | T146: Y | V146: 262.7000122 | W146: 9472358 | X146: 100.4619676 | Y146: 23783.73047 | AA146: Office | AB146: 57968 | AC146: Distribution Center | AD146: 32881 | AE146: Parking | AF146: 11850
A147: 239 | B147: SPS-District K-12 | C147: 4315700020 | D147: TU2021 | E147: K-12 School | F147: GATEWOOD ELEMENTARY SCHOOL (SPS-DISTRICT) | G147: Gatewood Elementary | H147: 4320 SW MYRTLE ST, SEATTLE, WA 98136 | I147: 343542 | J147: 59014 | K147: 58118 | L147: 5.821364422 | M147: 24.29999924 | N147: Lowest Use | O147: 97 | R147: 58118 | S147: 58118 | T147: Y | V147: 67 | W147: 1434752 | X147: 24.31206154 | Y147: 2625.866455 | AA147: K-12 School | AB147: 59014
A148: 241 | B148: NonResidential | C148: 4468400005 | D148: TU2021 | E148: Hotel | F148: HOTEL NEXUS - NORTHGATE | G148: Hotel Nexus | H148: 2140 N NORTHGATE WAY, SEATTLE, WA 98133 | I148: 768038.6875 | J148: 64893 | K148: 64893 | L148: 11.8354628 | M148: 95.5 | N148: Medium High | O148: 70 | R148: 64893 | S148: 64893 | T148: Y | V148: 184.6999969 | W148: 6197825 | X148: 95.50837533 | Y148: 35772.76953 | AA148: Hotel | AB148: 64893
A149: 242 | B149: SPS-District K-12 | C149: 5100404840 | D149: TU2021 | E149: K-12 School | F149: OLYMPIC VIEW (SPS-DISTRICT) | G149: Olympic View Elementary | H149: 504 NE 95TH ST, SEATTLE, WA 98115 | J149: 55480 | K149: 52792 | L149: 0 | R149: 52792 | S149: 52792 | T149: N | X149: 0 | AA149: K-12 School | AB149: 55480
A150: 243 | B150: SPS-District K-12 | C150: 5129000050 | D150: TU2020 | E150: K-12 School | F150: VAN ASSELT SCHOOL (SPS-DISTRICT) | G150: Van Asselt Building - Old | H150: 7201 BEACON AVE S, SEATTLE, WA 98108 | I150: 139287.7969 | J150: 70762 | K150: 70762 | L150: 1.968398249 | M150: 51.20000076 | N150: Medium High | O150: 87 | R150: 70762 | S150: 70762 | T150: Y | V150: 67.80000305 | W150: 3623427 | X150: 51.20583081 | Y150: 31481.76758 | AA150: K-12 School | AB150: 70762
A151: 244 | B151: NonResidential | C151: 5247800030 | D151: TUOPT | E151: Office | F151: WASHINGTON PARK BUILDING | G151: Washington Park Building | H151: 68 S WASHINGTON ST, SEATTLE, WA 98104 | I151: 386177.4062 | J151: 44558 | K151: 44558 | L151: 8.666847844 | M151: 37.59999847 | N151: Lowest Use | O151: 78 | R151: 36728 | S151: 44558 | T151: Y | V151: 101.3000031 | W151: 1677002.25 | X151: 37.63638965 | Y151: 3593.650146 | AA151: Office | AB151: 34416 | AC151: Self-Storage Facility | AD151: 7672 | AE151: Restaurant | AF151: 2470
A152: 245 | B152: NonResidential | C152: 7666204876 | D152: TU2018 | E152: Other | F152: CENTURYLINK FIELD-Stadium | G152: CenturyLink | H152: 800 OCCIDENTAL AVE S, SEATTLE, WA 98104 | I152: 14490010 | J152: 1585960 | K152: 1258280 | L152: 9.136428409 | M152: 37.70000076 | N152: Lowest Use | R152: 1585960 | S152: 1258280 | T152: Y | V152: 104.6999969 | W152: 59757440 | X152: 37.67903352 | Y152: 103175.1797 | AA152: Other - Entertainment/Public Assembly | AB152: 1585960 | AC152: Parking | AD152: 0
A153: 247 | B153: Nonresidential COS | C153: 7666205660 | D153: TU2019 | E153: Distribution Center | F153: CITY LIGHT - SOUTH SERVICE CENTER BLDG A | G153: SCL SSC Building A | H153: 400 S SPOKANE ST, SEATTLE, WA 98134 | I153: 2570957 | J153: 180725 | K153: 179161 | L153: 14.2257961 | M153: 52.20000076 | N153: Highest Use | R153: 101221 | S153: 179161 | T153: Y | V153: 156.3000031 | W153: 9436408 | X153: 52.21418177 | Y153: 6643.02002 | AA153: Distribution Center | AB153: 117476 | AC153: Office | AD153: 37321 | AE153: Other | AF153: 25543
A154: 248 | B154: Nonresidential COS | C154: 7666205660 | D154: TU2021 | E154: Non-Refrigerated Warehouse | F154: CITY LIGHT - SOUTH SERVICE CENTER BLDG B | G154: SCL SSC Building B | H154: 400 S SPOKANE ST, SEATTLE, WA 98134 | I154: 1151435 | J154: 70320 | K154: 50000 | L154: 16.37421786 | M154: 55.90000153 | N154: Highest Use | R154: 50000 | S154: 50000 | T154: Y | V154: 175.3999939 | W154: 3928695.25 | X154: 55.86881755 | AA154: Non-Refrigerated Warehouse | AB154: 40831 | AC154: Other - Services | AD154: 16735 | AE154: Office | AF154: 11533
A155: 250 | B155: NonResidential | C155: 7666206720 | D155: TU2019 | E155: Hotel | F155: SILVER CLOUD INN SEATTLE | G155: Silver Cloud Hotel - Stadium | H155: 1046 1ST AVE S, SEATTLE, WA 98134 | I155: 1826563 | J155: 144222 | K155: 153882 | L155: 12.66494016 | M155: 88.19999695 | N155: Medium High | O155: 64 | R155: 153882 | S155: 153882 | T155: Y | V155: 183 | W155: 12726789 | X155: 88.24443566 | Y155: 64945.55078 | AA155: Hotel | AB155: 135006 | AC155: Parking | AD155: 20600 | AE155: Food Service | AF155: 9216
A156: 257 | B156: NonResidential | C156: 7666703020 | D156: TU2020 | E156: Non-Refrigerated Warehouse | F156: HARBOR ISLAND WAREHOUSE - KING COUNTY | G156: Harbor Island: Warehouse E - DNRP-SWD | H156: 3235 16TH AVE SW, SEATTLE, WA 98134 | I156: 706741.625 | J156: 79600 | K156: 79600 | L156: 8.878663631 | M156: 30.29999924 | N156: Medium High | O156: 34 | R156: 79600 | S156: 79600 | T156: Y | V156: 95.09999847 | W156: 2411402.25 | X156: 30.29399812 | AA156: Non-Refrigerated Warehouse | AB156: 79600
A157: 260 | B157: SPS-District K-12 | C157: 7821200700 | D157: TU2018 | E157: K-12 School | F157: LINCOLN HIGH (SPS-DISTRICT) | G157: Lincoln Building | H157: 4400 INTERLAKE AVE N, SEATTLE, WA 98103 | I157: 920487.3125 | J157: 241066 | K157: 241066 | L157: 3.818403726 | M157: 31.5 | N157: Lowest Use | O157: 79 | R157: 241066 | S157: 241066 | T157: Y | V157: 60.29999924 | W157: 7583212.5 | X157: 31.45699725 | Y157: 44425.09766 | AA157: K-12 School | AB157: 241066
A158: 261 | B158: Campus | C158: 7883608601 | D158: TU2018 | E158: Office | F158: BOEING SOUTH PARK CAMPUS REPORT | G158: Boeing South Park | H158: 1420 S TRENTON ST, SEATTLE, WA 98108 | I158: 13289690 | J158: 338404 | K158: 302494 | L158: 39.27166937 | R158: 302494 | S158: 302494 | T158: N | X158: 0 | AA158: Office | AB158: 260000 | AC158: Laboratory | AD158: 78404 | AE158: Parking | AF158: 0
A159: 267 | B159: NonResidential | C159: 6792120000 | D159: TU2018 | E159: Hotel | F159: PINE ST. CONDO-ELLIOTT GRAND HYATT SEATTLE | G159: Grand Hyatt Seattle | H159: 721 PINE ST, SEATTLE, WA 98101 | I159: 11536960 | J159: 551736 | L159: 20.91029043 | M159: 117.9000015 | N159: Highest Use | T159: Y | V159: 272.8999939 | W159: 65047284 | X159: 117.8956675 | Y159: 256831.625 | AA159: Hotel | AB159: 495536 | AC159: Parking | AD159: 438756 | AE159: Restaurant | AF159: 49700
A160: 268 | B160: NonResidential | C160: 7942600331 | D160: TU2018 | E160: Hospital | F160: SWEDISH MEDICAL CENTER CHERRY HILL CAMPUS | G160: Swedish Cherry Hill | H160: 500 17TH AVE, SEATTLE, WA 98122 | I160: 17220090 | J160: 601615 | K160: 597519 | L160: 28.62310614 | M160: 238.3999939 | N160: Highest Use | O160: 34 | S160: 597519 | T160: Y | V160: 454.3999939 | W160: 143423024 | X160: 238.3966889 | Y160: 846680.9375 | AA160: Hospital (General Medical & Surgical) | AB160: 601615 | AC160: Parking | AD160: 48607
A161: 273 | B161: SPS-District K-12 | C161: 7972603210 | D161: TU2020 | E161: K-12 School | F161: HIGHLAND PARK SCHOOL (SPS-DISTRICT) | G161: Highland Park Elementary | H161: 1012 SW TRENTON ST, SEATTLE, WA 98106 | I161: 567131.6875 | J161: 71714 | K161: 71714 | L161: 7.908242289 | M161: 32.29999924 | N161: Lowest Use | O161: 87 | R161: 71714 | S161: 71714 | T161: Y | V161: 90.30000305 | W161: 2315276.75 | X161: 32.28486418 | Y161: 3802.233398 | AA161: K-12 School | AB161: 71714
A162: 274 | B162: NonResidential | C162: 8033700250 | D162: TU2021 | E162: Non-Refrigerated Warehouse | F162: MINI-WAREHOUSE/RETAIL | G162: 27020-Seattle / Stone Way North | H162: 3616 STONE WAY N, SEATTLE, WA 98103 | I162: 124086 | J162: 67236 | K162: 67236 | L162: 1.845529181 | M162: 8.199999809 | N162: Lowest Use | O162: 91 | R162: 66336 | S162: 67236 | T162: Y | V162: 21.70000076 | W162: 549181.375 | X162: 8.167966194 | Y162: 1258 | AA162: Non-Refrigerated Warehouse | AB162: 67236 | AC162: Parking | AD162: 8161
A163: 276 | B163: NonResidential | C163: 8590900220 | D163: TU2018 | E163: Hospital | F163: HARBORVIEW MEDICAL CENTER | G163: Harborview Medical Center | H163: 325 9TH AVE, SEATTLE, WA 98104 | I163: 49438340 | J163: 1350182 | K163: 1158691 | L163: 36.61605621 | M163: 217.1000061 | N163: Medium High | O163: 29 | S163: 1158691 | T163: Y | V163: 502.8999939 | W163: 293090784 | X163: 217.0750195 | Y163: 18321.29102 | Z163: 122575032 | AA163: Hospital (General Medical & Surgical) | AB163: 1350182 | AC163: Parking | AD163: 387651
A164: 278 | B164: NonResidential | C164: 8592900105 | D164: TU2021 | E164: Senior Care Community | F164: ID VILLAGE SQUARE 1 | G164: ID Village Square 1 | H164: 802 S DEARBORN ST, SEATTLE, WA 98134 | I164: 2177262 | J164: 102796 | K164: 90185 | L164: 21.18041558 | M164: 98.30000305 | N164: Medium High | R164: 59030 | S164: 90185 | T164: Y | V164: 254.3000031 | W164: 10105379 | X164: 98.30517724 | Y164: 26765.61133 | AA164: Senior Care Community | AB164: 55259 | AC164: Medical Office | AD164: 40091 | AE164: K-12 School | AF164: 3231
A165: 279 | B165: SPS-District K-12 | C165: 8702100050 | D165: TU2018 | E165: K-12 School | F165: WEST SEATTLE HIGH SCHOOL (SPS-DISTRICT) | G165: West Seattle High | H165: 3000 CALIFORNIA AVE SW, SEATTLE, WA 98116 | I165: 1421754 | J165: 208981 | K165: 208981 | L165: 6.803269197 | M165: 38.20000076 | N165: Medium Low | O165: 81 | R165: 208981 | S165: 208981 | T165: Y | V165: 88.59999847 | W165: 7982698 | X165: 38.19819984 | Y165: 31316.73242 | AA165: K-12 School | AB165: 208981
A166: 281 | B166: NonResidential | C166: 8816400900 | D166: TU2021 | E166: K-12 School | F166: UNIVERSITY HTS GRADE SCHOOL | G166: University HTS Grade School | H166: 5031 UNIVERSITY WAY NE, SEATTLE, WA 98105 | I166: 1798.900024 | J166: 55500 | K166: 55653 | L166: 0.03241261305 | M166: 24.79999924 | N166: Lowest Use | O166: 98 | R166: 55653 | S166: 55653 | T166: Y | V166: 26.29999924 | W166: 1377627 | X166: 24.82210811 | Y166: 13714.89062 | AA166: K-12 School | AB166: 55500
A167: 282 | B167: NonResidential | C167: 8817400055 | D167: TU2019 | E167: Hotel | F167: HOTEL DECA | G167: Hotel Deca | H167: 4507 BROOKLYN AVE NE, SEATTLE, WA 98105 | I167: 1043887 | J167: 106860 | K167: 106860 | L167: 9.768734793 | M167: 111.6999969 | N167: Highest Use | O167: 49 | R167: 106860 | S167: 106860 | T167: Y | V167: 186.8999939 | W167: 11935719 | X167: 111.6949186 | Y167: 83739.75781 | AA167: Hotel | AB167: 106860
A168: 283 | B168: NonResidential | C168: 8822900465 | D168: TU2021 | E168: Office | F168: LAKE CITY CENTER | G168: Lake City Center | H168: 12360 LAKE CITY WAY NE, SEATTLE, WA 98125 | I168: 749863.1875 | J168: 50759 | K168: 50759 | L168: 14.77300947 | M168: 62 | N168: Medium High | O168: 62 | R168: 50759 | S168: 50759 | T168: Y | V168: 170.3999939 | W168: 3147042 | X168: 61.99968478 | Y168: 5885.089844 | AA168: Office | AB168: 47079 | AC168: Restaurant | AD168: 3680
A169: 284 | B169: NonResidential | C169: 8823902255 | D169: TU2021 | E169: Worship Facility | F169: UNIV CONGREGATIONAL CHURCH | G169: University Congregational United Church of Christ | H169: 4505 16TH AVE NE, SEATTLE, WA 98105 | I169: 285789.1875 | J169: 56772 | K169: 56772 | L169: 5.03398132 | M169: 43 | N169: Medium High | O169: 46 | R169: 56772 | S169: 56772 | T169: Y | V169: 81 | W169: 2439484.75 | X169: 42.9698575 | Y169: 14643.7207 | AA169: Worship Facility | AB169: 56772
A170: 285 | B170: NonResidential | C170: 8823902325 | D170: TU2019 | E170: Worship Facility | F170: UNIVERSITY PRESBY CHURCH | G170: University Presbyterian Church | H170: 4550 15TH AVE NE, SEATTLE, WA 98105 | I170: 685356 | J170: 103000 | K170: 103000 | L170: 6.653941748 | M170: 47.09999847 | N170: Highest Use | O170: 42 | R170: 103000 | S170: 103000 | T170: Y | V170: 96.90000153 | W170: 4854429.5 | X170: 47.1303835 | Y170: 25159.94531 | AA170: Worship Facility | AB170: 103000
A171: 286 | B171: SPS-District K-12 | C171: 8826900005 | D171: TU2018 | E171: K-12 School | F171: ROOSEVELT HIGH (SPS-DISTRICT) | G171: Roosevelt High | H171: 1410 NE 66TH ST, SEATTLE, WA 98115 | I171: 2149104 | J171: 269297 | K171: 269297 | L171: 7.980423102 | M171: 39.20000076 | N171: Medium Low | O171: 79 | R171: 269297 | S171: 269297 | T171: Y | V171: 98.09999847 | W171: 10553913 | X171: 39.1906074 | Y171: 32211.69922 | AA171: K-12 School | AB171: 269297
A172: 287 | B172: SPS-District K-12 | C172: 8827900180 | D172: TU2020 | E172: K-12 School | F172: BRYANT ELEMENTARY (SPS-DISTRICT) | G172: Bryant Elementary | H172: 3311 NE 60TH ST, SEATTLE, WA 98115 | I172: 468039.5938 | J172: 75174 | K172: 75174 | L172: 6.226083403 | M172: 36.09999847 | N172: Lowest Use | O172: 77 | R172: 75174 | S172: 75174 | T172: Y | V172: 82.30000305 | W172: 2716508 | X172: 36.13627052 | Y172: 11195.56641 | AA172: K-12 School | AB172: 75174
A173: 289 | B173: SPS-District K-12 | C173: 9270200005 | D173: TU2020 | E173: K-12 School | F173: FRANTZ H COE ELEMENTARY SCHOOL (SPS-DISTRICT) | G173: Frantz Coe Elementary | H173: 2424 7TH AVE W, SEATTLE, WA 98119 | I173: 511246.6875 | J173: 75214 | K173: 75214 | L173: 6.797227744 | M173: 30.60000038 | N173: Lowest Use | O173: 88 | R173: 75214 | S173: 75214 | T173: Y | V173: 80.59999847 | W173: 2303497 | X173: 30.62590741 | Y173: 5591.233398 | AA173: K-12 School | AB173: 75214
A174: 290 | B174: SPS-District K-12 | C174: 9278300005 | D174: TU2019 | E174: K-12 School | F174: JAMES MADISON JR HIGH SCHOOL (SPS-DISTRICT) | G174: Madison Middle | H174: 3429 45TH AVE SW, SEATTLE, WA 98116 | I174: 834119.1875 | J174: 134918 | K174: 134918 | L174: 6.182415893 | M174: 27.5 | N174: Lowest Use | O174: 92 | R174: 134918 | S174: 134918 | T174: Y | V174: 73 | W174: 3713764.75 | X174: 27.52608807 | Y174: 8677.5 | AA174: K-12 School | AB174: 134918
A175: 291 | B175: SPS-District K-12 | C175: 9344400300 | D175: TU2021 | E175: K-12 School | F175: THURGOOD MARSHALL (SPS-DISTRICT) | G175: Thurgood Marshall Elementary | H175: 2401 S IRVING ST, SEATTLE, WA 98144 | I175: 672442.875 | J175: 65310 | K175: 64414 | L175: 10.29617019 | M175: 35.09999847 | N175: Lowest Use | O175: 67 | R175: 64414 | S175: 64414 | T175: Y | V175: 110.3000031 | W175: 2294375 | X175: 35.13053131 | AA175: K-12 School | AB175: 65310
A176: 292 | B176: SPS-District K-12 | C176: 9528103775 | D176: TU2020 | E176: K-12 School | F176: MARSHALL, JOHN (SPS-DISTRICT) | G176: John Marshall Building | H176: 520 NE RAVENNA BLVD, SEATTLE, WA 98115 | I176: 299982.5 | J176: 92437 | K176: 92437 | L176: 3.245264342 | M176: 53.09999847 | N176: Highest Use | O176: 73 | R176: 92437 | S176: 92437 | T176: Y | V176: 78.90000153 | W176: 4908547 | X176: 53.10153943 | Y176: 38850.06641 | AA176: K-12 School | AB176: 92437
A177: 293 | B177: NonResidential | C177: 2141290000 | D177: TU2019 | E177: Other | F177: ACT THEATER | G177: ACT Theatre | H177: 700 UNION ST, SEATTLE, WA 98101 | I177: 1680144 | J177: 128766 | L177: 13.04804063 | M177: 47 | N177: Medium Low | T177: Y | V177: 142.3999939 | W177: 6057410 | X177: 47.04199866 | Y177: 3247.596436 | AA177: Other - Entertainment/Public Assembly | AB177: 109754 | AC177: Other | AD177: 12876 | AE177: Office | AF177: 6136
A178: 294 | B178: NonResidential | C178: 2301950000 | D178: TUOPT | E178: Residence Hall/Dormitory | F178: YWCA Women's Residence | G178: Women's Residence at Seneca | H178: 1118 5TH AVE, SEATTLE, WA 98101 | I178: 731552.3125 | J178: 101645 | L178: 7.197130331 | M178: 54.79999924 | N178: Medium Low | O178: 76 | R178: 43638 | T178: Y | V178: 113.5 | W178: 5572503 | X178: 54.82318855 | Z178: 3076446.5 | AA178: Residence Hall/Dormitory | AB178: 63934 | AC178: Office | AD178: 27143 | AE178: Retail Store | AF178: 10568
A179: 295 | B179: NonResidential | C179: 2302700000 | D179: TU2018 | E179: Other | F179: CENTURYLINK: 3RD AVE 3-D | G179: 1122 3rd Ave | H179: 1122 3RD AVE, SEATTLE, WA 98101 | I179: 18228950 | J179: 203000 | L179: 89.79778325 | M179: 306.3999939 | N179: Highest Use | T179: Y | V179: 962.0999756 | W179: 62197176 | X179: 306.3900296 | AA179: Other | AB179: 203000
A180: 300 | B180: SPS-District K-12 | C180: 7549802085 | D180: TU2018 | E180: K-12 School | F180: CLEVELAND HIGH SCHOOL (SPS-DISTRICT) | G180: Cleveland STEM High | H180: 5511 15TH AVE S, SEATTLE, WA 98108 | I180: 1324889 | J180: 204961 | K180: 204961 | L180: 6.464102927 | M180: 39.20000076 | N180: Medium Low | O180: 94 | R180: 204961 | S180: 204961 | T180: Y | V180: 87.19999695 | W180: 8026698 | X180: 39.16207474 | Y180: 35061.76953 | AA180: K-12 School | AB180: 204961
A181: 302 | B181: NonResidential | C181: 7666201147 | D181: TU2020 | E181: Other | F181: WA ARMY NAT'L GUARD | G181: Seattle ReadCntr (50/50) | H181: 1600 W ARMORY WAY, SEATTLE, WA 98119 | I181: 456874.5 | J181: 77810 | K181: 76086 | L181: 5.871668166 | M181: 41.5 | N181: Medium Low | R181: 76086 | S181: 76086 | T181: Y | V181: 85.5 | W181: 3232789.75 | X181: 41.54722722 | Y181: 16739.33984 | AA181: Other | AB181: 77810
A182: 313 | B182: NonResidential | C182: 7666202190 | D182: TU2019 | E182: Medical Office | F182: ELLIOTT PARK BUILDING | G182: BMR-201 Elliott Avenue LLC | H182: 201 ELLIOTT AVE W, SEATTLE, WA 98119 | I182: 5493975 | J182: 156546 | K182: 151000 | L182: 35.09495612 | M182: 183.5 | N182: Highest Use | O182: 1 | R182: 150800 | S182: 151000 | T182: Y | V182: 443 | W182: 28731502 | X182: 183.5339261 | Y182: 99860.58594 | AA182: Medical Office | AB182: 146741 | AC182: Office | AD182: 9805
A183: 314 | B183: NonResidential | C183: 7666202317 | D183: TU2019 | E183: Hotel | F183: EDGEWATER INN | G183: Edgewater Seattle | H183: 2411 ALASKAN WAY, SEATTLE, WA 98121 | I183: 1853029 | J183: 122309 | K183: 122309 | L183: 15.15038959 | M183: 208.1000061 | N183: Highest Use | O183: 8 | R183: 122309 | S183: 122309 | T183: Y | V183: 326.6000061 | W183: 25453690 | X183: 208.1097057 | Y183: 191311.5469 | AA183: Hotel | AB183: 122309
A184: 315 | B184: Campus | C184: 7666202325 | D184: TU2018 | E184: Other | F184: PORT OF SEATTLE BELL HARBOR COMPLEX & CONFERENCE - CAMPUS | G184: P66 Bell Harbor International Conference Center & Cruise Terminal. | H184: 2201 ALASKAN WAY, SEATTLE, WA 98121 | I184: 4041282 | J184: 217088 | K184: 215476 | L184: 18.61587006 | M184: 110.5999985 | N184: Medium High | P184: PIER 66 UPLANDS COML BLDG | Q184: 2300 ALASKAN WAY | R184: 215476 | S184: 215476 | T184: Y | V184: 248.8999939 | W184: 24017770 | X184: 110.6361015 | Y184: 102289.1641 | AA184: Other | AB184: 217088
A185: 316 | B185: NonResidential | C185: 7666202345 | D185: TU2018 | E185: Hotel | F185: SEATTLE WATERFRONT MARRIOTT | G185: 337v2-Seattle Waterfront Marriott | H185: 2100 ALASKAN WAY, SEATTLE, WA 98121 | I185: 4033864 | J185: 277000 | K185: 215473 | L185: 14.56268592 | M185: 96.19999695 | N185: Highest Use | O185: 29 | R185: 215473 | S185: 215473 | T185: Y | V185: 204.8999939 | W185: 26659244 | X185: 96.24275812 | Y185: 128957 | AA185: Hotel | AB185: 277000
A186: 317 | B186: Nonresidential COS | C186: 7666202420 | D186: TU2021 | E186: Other | F186: SEATTLE AQUARIUM | G186: Seattle Aquarium | H186: 1421 ALASKAN WAY, SEATTLE, WA 98101 | I186: 3087448 | J186: 69400 | K186: 69400 | L186: 44.48772334 | M186: 213.6999969 | N186: Highest Use | R186: 69400 | S186: 69400 | T186: Y | V186: 541.7000122 | W186: 14833476 | X186: 213.7388473 | Y186: 42991.03906 | AA186: Other - Entertainment/Public Assembly | AB186: 69400
A187: 318 | B187: NonResidential | C187: 7666202495 | D187: TU2021 | E187: Mixed Use Property | F187: PIER 54 IVARS ACRES OF CLAMS | G187: Pier 54 | H187: 1003 ALASKAN WAY, SEATTLE, WA 98104 | I187: 1110180 | J187: 65671.29688 | K187: 62900 | L187: 16.90510242 | M187: 158.3000031 | N187: Highest Use | P187: IVARS 905 ACRES OF CLAMS | Q187: 1001 ALASKAN WAY | R187: 41900 | S187: 62900 | T187: Y | V187: 286.7000122 | W187: 10394330 | X187: 158.278129 | Y187: 66063.96875 | AA187: Restaurant | AB187: 32494 | AC187: Other | AD187: 29793 | AE187: Retail Store | AF187: 3384.300049
A188: 319 | B188: NonResidential | C188: 7666202580 | D188: TUOPT | E188: Office | F188: DAILY JOURNAL BUILDING | G188: Daily Journal Building | H188: 83 COLUMBIA ST, SEATTLE, WA 98104 | I188: 260120.7031 | J188: 40000 | K188: 40000 | L188: 6.503017578 | M188: 34.5 | N188: Lowest Use | O188: 98 | R188: 40000 | S188: 40000 | T188: Y | V188: 84.5 | W188: 1380293.625 | X188: 34.50734062 | Z188: 492761.8125 | AA188: Office | AB188: 33000 | AC188: Retail Store | AD188: 7000
A189: 320 | B189: NonResidential | C189: 7666202725 | D189: TU2018 | E189: Non-Refrigerated Warehouse | F189: BMW SEATTLE - SERVICE CENTER | G189: (ID320) BMW SEATTLE - SERVICE CENTER | H189: 900 MAYNARD AVE S, SEATTLE, WA 98134 | I189: 1109403 | J189: 203504 | K189: 203504 | L189: 5.451504639 | M189: 18.60000038 | N189: Medium Low | O189: 72 | R189: 203504 | S189: 203504 | T189: Y | V189: 58.40000153 | W189: 3785282.5 | X189: 18.60053119 | AA189: Non-Refrigerated Warehouse | AB189: 159372 | AC189: Other - Services | AD189: 44132
A190: 322 | B190: NonResidential | C190: 0656000005 | D190: TU2020 | E190: Office | F190: KIRO RADIO & TELEVISION | G190: Cox Media Group Seattle KIRO TV (322) | H190: 2807 3RD AVE, SEATTLE, WA 98121 | I190: 2868909 | J190: 100734 | K190: 74003 | L190: 28.48004646 | M190: 97.19999695 | N190: Highest Use | O190: 20 | R190: 74003 | S190: 74003 | T190: Y | V190: 305.1000061 | W190: 9788717 | X190: 97.17391348 | AA190: Office | AB190: 100734
A191: 323 | B191: NonResidential | C191: 0656000045 | D191: TU2021 | E191: Office | F191: GRANGE OFFICE PLAZA | G191: 200 Cedar Street Building | H191: 200 CEDAR ST, SEATTLE, WA 98121 | I191: 1256185 | J191: 62108 | K191: 62108 | L191: 20.22581632 | M191: 80.59999847 | N191: Highest Use | O191: 57 | P191: GRANGE INSURANCE ASSOC | Q191: 2714 2ND AVE | R191: 62108 | S191: 62108 | T191: Y | V191: 228.8999939 | W191: 5007401 | X191: 80.62409029 | Y191: 7212.97998 | AA191: Office | AB191: 62108 | AC191: Parking | AD191: 17570
A192: 324 | B192: NonResidential | C192: 0656000480 | D192: TU2018 | E192: Office | F192: FOURTH & BATTERY BUILDING | G192: Fourth and Battery | H192: 2401 4TH AVE, SEATTLE, WA 98121 | I192: 5347642 | J192: 210807 | K192: 212210 | L192: 25.36747831 | M192: 88.5 | N192: Highest Use | O192: 40 | R192: 212210 | S192: 212210 | T192: Y | V192: 273.7999878 | W192: 18661606 | X192: 88.52460307 | Y192: 4154.516113 | AA192: Office | AB192: 175915 | AC192: Laboratory | AD192: 29865 | AE192: Parking | AF192: 23244
A193: 326 | B193: NonResidential | C193: 0659000040 | D193: TU2018 | E193: Office | F193: WEST LAKE TOWER OFFICE BUILDING | G193: Westlake Tower | H193: 1601 5TH AVE, SEATTLE, WA 98101 | I193: 7255301 | J193: 383942 | K193: 369996 | L193: 18.89686724 | M193: 64.5 | N193: Medium High | O193: 74 | R193: 369996 | S193: 369996 | T193: Y | U193: 2012 | V193: 202.5 | W193: 24755086 | X193: 64.47610837 | AA193: Office | AB193: 383942 | AC193: Parking | AD193: 127192
A194: 327 | B194: NonResidential | C194: 0659000070 | D194: TU2018 | E194: Retail Store | F194: NORDSTROM DOWNTOWN | G194: Nordstrom 001 | H194: 500 PINE ST, SEATTLE, WA 98101 | I194: 10989760 | J194: 693450 | K194: 693450 | L194: =I194/J194 -> 15.84794866 | M194: 57.79999924 | N194: Medium High | O194: 93 | R194: 693450 | S194: 693450 | T194: Y | V194: 173.6999969 | W194: 40062888 | X194: =W194/J194 -> 57.77329007 | Y194: 25445.83984 | Z194: 21230.80078 | AA194: Retail Store | AB194: 361107 | AC194: Office | AD194: 332343
A195: 328 | B195: NonResidential | C195: 0659000165 | D195: TU2018 | E195: Office | F195: CENTURYLINK: SEATTLE BELL PLAZA | G195: 1600 Seventh | H195: 1600 7TH AVE, SEATTLE, WA 98101 | I195: 11969410 | J195: 676853 | K195: 791396 | L195: 17.68391364 | M195: 60.29999924 | N195: Medium High | O195: 89 | R195: 791396 | S195: 791396 | T195: Y | U195: 2017, 2015 | V195: 189.5 | W195: 40847752 | X195: 60.34951755 | Y195: 5382.505371 | AA195: Office | AB195: 622034 | AC195: Parking | AD195: 132465 | AE195: Other | AF195: 33110
A196: 329 | B196: NonResidential | C196: 0659000235 | D196: TU2018 | E196: Office | F196: 1700 SEVENTH BUILDING | G196: 1700 Seventh Ave | H196: 1700 7TH AVE, SEATTLE, WA 98101 | I196: 8172316 | J196: 551798 | K196: 542671 | L196: 14.81034002 | M196: 56.09999847 | N196: Medium High | O196: 90 | R196: 542671 | S196: 542671 | T196: Y | U196: 2016, 2015, 2014, 2013, 2012, 2011, 2010, 2009, 2008 | V196: 164.6000061 | W196: 30979874 | X196: 56.14350541 | Y196: 30959.30859 | AA196: Office | AB196: 542461 | AC196: Parking | AD196: 219045 | AE196: Restaurant | AF196: 9337
A197: 330 | B197: NonResidential | C197: 0659000350 | D197: TU2021 | E197: Office | F197: LLOYD BUILDING | G197: Lloyd building | H197: 603 STEWART ST, SEATTLE, WA 98101 | I197: 397961.6875 | J197: 51447 | K197: 55652 | L197: 7.735372082 | M197: 66.90000153 | N197: Medium High | O197: 90 | P197: THE VANCE CORPORATION | Q197: 603 STEWART ST | R197: 55652 | S197: 55652 | T197: Y | V197: 131.6999969 | W197: 3444270 | X197: 66.94792699 | Z197: 2086424.75 | AA197: Office | AB197: 45260 | AC197: Retail Store | AD197: 6187
A198: 331 | B198: NonResidential | C198: 0659000365 | D198: TU2019 | E198: Office | F198: TOWER BLDG | G198: The Tower Building | H198: 1809 7TH AVE, SEATTLE, WA 98101 | I198: 1974231 | J198: 173770 | K198: 174790 | L198: 11.36117281 | M198: 44.5 | N198: Medium Low | O198: 91 | P198: THE VANCE CORP | Q198: 1807 7TH AVE | R198: 174790 | S198: 174790 | T198: Y | U198: 2010, 2009, 2007 | V198: 127.8000031 | W198: 7739699 | X198: 44.53990332 | Y198: 10036.21973 | AA198: Office | AB198: 142034 | AC198: Other - Recreation | AD198: 17070 | AE198: Retail Store | AF198: 14666
A199: 332 | B199: NonResidential | C199: 0659000385 | D199: TU2020 | E199: Office | F199: TIMES SQUARE BUILDING (THE VANCE CORPORATION) | G199: Times Square Building | H199: 414 OLIVE WAY, SEATTLE, WA 98101 | I199: 1101115 | J199: 61533 | K199: 73399 | L199: 17.89470691 | M199: 61.09999847 | N199: Medium High | O199: 61 | R199: 73399 | S199: 73399 | T199: Y | V199: 191.6999969 | W199: 3757006 | X199: 61.05676629 | AA199: Office | AB199: 51557 | AC199: Retail Store | AD199: 9976
A200: 333 | B200: NonResidential | C200: 0659000555 | D200: TU2018 | E200: Office | F200: PLAZA 600 BUILDING | G200: Plaza 600 | H200: 600 STEWART ST, SEATTLE, WA 98101 | I200: 2254305 | J200: 226454 | K200: 233517 | L200: 9.954803183 | M200: 63 | N200: Medium High | O200: 92 | R200: 233517 | S200: 233517 | T200: Y | U200: 2010, 2007 | V200: 141.5 | W200: 14260520 | X200: 62.97314245 | Z200: 6568832 | AA200: Office | AB200: 226454 | AC200: Parking | AD200: 29214
... 1366 more rows

Sheet Change Log, Version ID (hidden)
G2: =CONCATENATE("Version ",VersionID) -> Version 1.0.2
C3: Change Log and Version ID | E3: Program: | F3: Tune-Up Accelerator
C5: Current version: | D5: =IF(C18="","",VLOOKUP(D6,C18:D200,2,FALSE)) -> 1.0.2
C6: Date of change | D6: =IF(C18="","",MAX(C18:C200)) -> 2018-01-18
C8: Version format: | D8: x.y.z
C10: Field | D10: Definition
C11: x | D11: Major change - Indicates major change to workbook and release, incompatible with previous version of workbook (i.e. measures added/removed, changes to program workflow, etc.)
C12: y | D12: Minor change - Indicates minor change to workbook and release, compatible with previous versions of workbook (i.e. updates to measure savings/incentive levels, updates to legal language, etc.)
C13: z | D13: Revision - Indicates smaller revision to workbook (i.e. bug fixes, error corrections, formatting, etc.)
C15: Instructions: | D15: Log workbook changes below, updating version ID fields numerically using the definitions above (and your subjective opinion on the scope of changes). Worksheets in workbook reference "Current version" cell (D5) to pull in version ID.
C17: Date of change | D17: New Version ID | E17: Who changed workbook? | F17: Scope of changes
C18: 2017-09-01 | D18: 1.0.0 | E18: Ted Brown | F18: Initial Program Launch
C19: 2017-09-20 | D19: 1.0.1 | E19: Ted Brown | F19: Revised Estimate, Payment 1 & 2 QC Checklists, removed references for EMA's to check program guidelines, Proj. Summ. Form
C20: 2017-09-20 | D20: 1.0.1 | E20: Ted Brown | F20: Added fields for prior 12 month consumption history to Incentive calculator tab (E65 - H78), totals populate in cells E56, F56
C21: 2018-01-18 | D21: 1.0.2 | E21: Ted Brown | F21: Expanded print area on Application tab to fix issues with last several lines of legal disclosures being cut off in AdobeSign

Sheet PNNL Est. Savings % (hidden)
A1: Table A.2. Packages: Electricity Savings as a Percent of Total Electricity Consumption
B2: Large Hotel | C2: Large Office, College University, Hospital (Administrative) | D2: Medium Office, Outpatient Healthcare | E2: Small Office | F2: Primary School | G2: Secondary School | H2: StandAlone Retail, Retail Dealership | I2: Stripmall Retail | J2: Supermarket, other Food Sales
A3: Savings (Inefficient) | B3: 0.156 | C3: 0.138 | D3: 0.342 | E3: 0.263 | F3: 0.165 | G3: 0.152 | H3: 0.174 | I3: 0.093 | J3: 0.053
A4: Savings (Typical) | B4: 0.134 | C4: 0.069 | D4: 0.181 | E4: 0.181 | F4: 0.126 | G4: 0.142 | H4: 0.148 | I4: 0.091 | J4: 0.053
A5: Savings (Efficient) | B5: 0.144 | C5: 0.043 | D5: 0.082 | E5: 0.073 | F5: 0.013 | G5: 0.025 | H5: 0 | I5: 0 | J5: 0
A6: Savings (Percent, Overall) | B6: 0.141 | C6: 0.076 | D6: 0.195 | E6: 0.17 | F6: 0.104 | G6: 0.112 | H6: 0.114 | I6: 0.066 | J6: 0.038
A7: Energy Savings and Peak Load Reduction Benefits from Building Controls Measures in Seattle, Washington; May, 2017
A8: Pacific Northwest National Laboratory
A9: Table A-2
C11: % of Annual kWh Savings to be reported for Tune-Up Accelerator Program
A12: City Of Seattle Building Type Name | B12: PNNL Re-Tuning Study Building Type Applied | C12: Highest Use | D12: Medium High | E12: Medium Low | F12: Lowest Use
C13: Savings (Inefficient) | D13: Savings (Typical) | E13: Savings (Typical) | F13: Savings (Efficient)
A14: College/University | B14: Large Office, College University, Hospital (Administrative) | C14: 0.138 | D14: 0.069 | E14: 0.069 | F14: 0.043
A15: Distribution Center | B15: Stripmall Retail | C15: 0.093 | D15: 0.091 | E15: 0.091 | F15: 0
A16: Hospital | B16: Large Office, College University, Hospital (Administrative) | C16: 0.138 | D16: 0.069 | E16: 0.069 | F16: 0.043
A17: Hotel | B17: Large Hotel | C17: 0.156 | D17: 0.134 | E17: 0.134 | F17: 0.144
A18: K-12 School | B18: Primary School | C18: 0.165 | D18: 0.126 | E18: 0.126 | F18: 0.013
A19: Medical Office | B19: Medium Office, Outpatient Healthcare | C19: 0.342 | D19: 0.181 | E19: 0.181 | F19: 0.082
A20: Mixed Use Property | B20: Large Office, College University, Hospital (Administrative) | C20: 0.138 | D20: 0.069 | E20: 0.069 | F20: 0.043
A21: Multifamily Housing | C21: 0.138 | D21: 0.069 | E21: 0.069 | F21: 0.043
A22: Non-Refrigerated Warehouse | B22: Supermarket, other Food Sales | C22: 0.053 | D22: 0.053 | E22: 0.053 | F22: 0
A23: Office | B23: Large Office, College University, Hospital (Administrative) | C23: 0.138 | D23: 0.069 | E23: 0.069 | F23: 0.043
A24: Other | B24: Large Office, College University, Hospital (Administrative) | C24: 0.138 | D24: 0.069 | E24: 0.069 | F24: 0.043
A25: Refrigerated Warehouse | B25: Supermarket, other Food Sales | C25: 0.053 | D25: 0.053 | E25: 0.053 | F25: 0.038
A26: Residence Hall/Dormitory | B26: Large Office, College University, Hospital (Administrative) | C26: 0.138 | D26: 0.069 | E26: 0.069 | F26: 0.043
A27: Restaurant | B27: Supermarket, other Food Sales | C27: 0.053 | D27: 0.053 | E27: 0.053 | F27: 0.038
A28: Retail Store | B28: Stripmall Retail | C28: 0.093 | D28: 0.091 | E28: 0.091 | F28: 0
A29: Self-Storage Facility | B29: Stripmall Retail | C29: 0.093 | D29: 0.091 | E29: 0.091 | F29: 0
A30: Senior Care Community | B30: Large Hotel | C30: 0.156 | D30: 0.134 | E30: 0.134 | F30: 0.144
A31: Supermarket/Grocery Store | B31: Supermarket, other Food Sales | C31: 0.053 | D31: 0.053 | E31: 0.053 | F31: 0.038
A32: Worship Facility | B32: Primary School | C32: 0.165 | D32: 0.126 | E32: 0.126 | F32: 0.013
A34: PNNL Building Re-Tuning Study Building Types
B35: Size Range (SqFt Floor area) | D35: Savings (Inefficient) | E35: Savings (Typical) | F35: Savings (Efficient) | G35: Savings (Percent, Overall)
A36: College/University | B36: 1 | C36: 10000000 | D36: 0.138 | E36: 0.069 | F36: 0.043 | G36: 0.076 | I36: =SUBTOTAL(5,'[3]TuneUpsBuildings052317-2016EUI'!L2:L736) -> 0 | J36: =SUBTOTAL(4,'[3]TuneUpsBuildings052317-2016EUI'!L2:L736) -> 244.5493889 | K36: =SUBTOTAL(1,'[3]TuneUpsBuildings052317-2016EUI'!L2:L736) -> 15.63057582
A37: Hospital | B37: 1 | C37: 10000000 | D37: 0.138 | E37: 0.069 | F37: 0.043 | G37: 0.076
A38: Outpatient Healthcare | B38: 1 | C38: 10000000 | D38: 0.342 | E38: 0.181 | F38: 0.082 | G38: 0.195
A39: Large Hotel | B39: 1 | C39: 1000000 | D39: 0.156 | E39: 0.134 | F39: 0.144 | G39: 0.141
A40: Large Office | B40: 100001 | C40: 10000000 | D40: 0.138 | E40: 0.069 | F40: 0.043 | G40: 0.076
A41: Medium Office | B41: 45001 | C41: 100000 | D41: 0.342 | E41: 0.181 | F41: 0.082 | G41: 0.195
A42: Small Office | B42: 1 | C42: 45000 | D42: 0.263 | E42: 0.181 | F42: 0.073 | G42: 0.17
A43: Primary School | B43: 1 | C43: 150000 | D43: 0.165 | E43: 0.126 | F43: 0.013 | G43: 0.104
A44: Secondary School | B44: 150001 | C44: 500000 | D44: 0.152 | E44: 0.142 | F44: 0.025 | G44: 0.112
A45: StandAlone Retail, Retail Dealership | B45: 1 | C45: 100000 | D45: 0.174 | E45: 0.148 | F45: 0 | G45: 0.114
A46: Stripmall Retail | B46: 1 | C46: 100000 | D46: 0.093 | E46: 0.091 | F46: 0 | G46: 0.066
A47: Supermarket, other Food Sales | B47: 1 | C47: 150000 | D47: 0.053 | E47: 0.053 | F47: 0 | G47: 0.038
D49: =AVERAGE(D36:D47) -> 0.1795 | E49: =AVERAGE(E36:E47) -> 0.1203333333 | F49: =AVERAGE(F36:F47) -> 0.04566666667

Sheet Portfolio Stats (hidden)
B2: City of Seattle Building Benchmark Data-- Year Ending 2016
F4: Based on Total Reported EUI | J4: kWh / SqFt | O4: % of Buildings in each class | T4: kBtu/ SqFt
C5: Count | D5: Gross Floor Area (sf) | F5: Efficient (Low Quartile) | G5: Typical (Middle Quartiles) | H5: Inefficient (High Quartile) | J5: MIN | K5: MAX | L5: Average | M5: Median | O5: Lowest Use | P5: Medium Low | Q5: Medium High | R5: Highest Use | T5: Lowest Use | U5: Medium Low | V5: Medium High | W5: Highest Use
B6: College/University | C6: 20 | D6: 4944040 | F6: 0.3 | G6: 0.65 | H6: 0.05 | J6: 1.778524306 | K6: 17.36089678 | L6: 10.53112898 | M6: 10.70391778 | O6: 0.3 | P6: 0.3 | Q6: 0.35 | R6: 0.05 | T6: 23.48333311 | U6: 59.16666603 | V6: 91.01428659 | W6: 144.5
B7: Distribution Center | C7: 51 | D7: 3333772 | F7: 0.3617021277 | G7: 0.4042553191 | H7: 0.2340425532 | J7: 0.6214765582 | K7: 63.13621032 | L7: 6.995416048 | M7: 5.211164419 | O7: 0.3617021277 | P7: 0.1489361702 | Q7: 0.2553191489 | R7: 0.2340425532 | T7: 24.22857121 | U7: 24.22857121 | V7: 33.79999982 | W7: 68.30000114
B8: Hospital | C8: 9 | D8: 6591775 | F8: 0.2 | G8: 0.5 | H8: 0.3 | J8: 5.442845702 | K8: 38.46803185 | L8: 26.08132983 | M8: 26.13038851 | O8: 0.2 | P8: 0.3 | Q8: 0.2 | R8: 0.3 | T8: 191.899999 | U8: 191.899999 | V8: 217.1000061 | W8: 263.0999908
B9: Hotel | C9: 67 | D9: 10056480 | F9: 0.1940298507 | G9: 0.5373134328 | H9: 0.2686567164 | J9: 1.431466341 | K9: 20.91029043 | L9: 11.39823308 | M9: 11.8354628 | O9: 0.1940298507 | P9: 0.2686567164 | Q9: 0.2686567164 | R9: 0.2686567164 | T9: 44.79999997 | U9: 66.97222328 | V9: 87.09999975 | W9: 118.1500006
B10: K-12 School | C10: 140 | D10: 10979479 | F10: 0.3676470588 | G10: 0.4044117647 | H10: 0.2279411765 | J10: 0 | K10: 17.2318602 | L10: 5.586627464 | M10: 5.584027821 | O10: 0.3676470588 | P10: 0.2132352941 | Q10: 0.1911764706 | R10: 0.2279411765 | T10: 65.58461541 | U10: 39.04482756 | V10: 45.95499992 | W10: 65.58461541
B11: Medical Office | C11: 38 | D11: 4355466 | F11: 0.3783783784 | G11: 0.4594594595 | H11: 0.1621621622 | J11: 6.098197863 | K11: 37.80974484 | L11: 20.87829928 | M11: 20.74841158 | O11: 0.3783783784 | P11: 0.2972972973 | Q11: 0.1621621622 | R11: 0.1621621622 | T11: 94.36666616 | U11: 74.72727203 | V11: 94.36666616 | W11: 159.9857134
B12: Mixed Use Property | C12: 89 | D12: 9110600.297 | F12: 0.2692307692 | G12: 0.5384615385 | H12: 0.1923076923 | J12: 1.154287622 | K12: 206.8626287 | L12: 18.65123235 | M12: 11.49126897 | O12: 0.2692307692 | P12: 0.3205128205 | Q12: 0.2179487179 | R12: 0.1923076923 | T12: 201.0888881 | U12: 45.02400024 | V12: 73.97368481 | W12: 201.0888881
B13: Multifamily Housing | C13: 8 | D13: 1526209 | F13: 0.1428571429 | G13: 0.1428571429 | H13: 0.7142857143 | J13: 3.844396641 | K13: 24.96949198 | L13: 14.1348034 | M13: 13.27410432 | O13: 0.1428571429 | P13: 0 | Q13: 0.1428571429 | R13: 0.7142857143 | T13: 69.59999975 | V13: 36.09999847 | W13: 69.59999975
B14: Non-Refrigerated Warehouse | C14: 183 | D14: 11605403.7 | F14: 0.2684210526 | G14: 0.4947368421 | H14: 0.2368421053 | J14: 0.09612450113 | K14: 41.28555398 | L14: 6.225045801 | M14: 4.734483813 | O14: 0.2684210526 | P14: 0.2210526316 | Q14: 0.2736842105 | R14: 0.2368421053 | T14: 34.82340415 | U14: 19.64999994 | V14: 34.82340415 | W14: 72.19999975
B15: Office | C15: 446 | D15: 60046929.09 | F15: 0.1922141119 | G15: 0.5352798054 | H15: 0.2725060827 | J15: 0.2825959961 | K15: 91.36547541 | L15: 15.46068136 | M15: 13.38785251 | O15: 0.1922141119 | P15: 0.2944038929 | Q15: 0.2408759124 | R15: 0.2725060827 | T15: 61.90891069 | U15: 48.28181823 | V15: 61.90891069 | W15: 96.72291676
B16: Other | C16: 235 | D16: 21073143 | F16: 0.2956521739 | G16: 0.5304347826 | H16: 0.1739130435 | J16: 0.1993122103 | K16: 244.5493889 | L16: 20.02280716 | M16: 13.40646402 | O16: 0.2956521739 | P16: 0.2217391304 | Q16: 0.3086956522 | R16: 0.1739130435 | T16: 229.0882359 | U16: 55.13333324 | V16: 91.77301558 | W16: 229.0882359
B17: Refrigerated Warehouse | C17: 12 | D17: 489440 | F17: 0 | G17: 0.2857142857 | H17: 0.7142857143 | J17: 4.533056558 | K17: 56.42598507 | L17: 20.92006299 | M17: 10.8857962 | O17: 0 | P17: 0.1428571429 | Q17: 0.1428571429 | R17: 0.7142857143 | T17: 36.10000038 | U17: 36.10000038 | V17: 63.60000038 | W17: 181.4333293
B18: Residence Hall/Dormitory | C18: 2 | D18: 145736 | F18: 0 | G18: 0.3333333333 | H18: 0.6666666667 | J18: 7.197130331 | K18: 8.102603848 | L18: 7.649867089 | M18: 7.649867089 | O18: 0 | P18: 0.3333333333 | Q18: 0 | R18: 0.6666666667 | T18: 82.80000305 | U18: 54.79999924 | W18: 82.80000305
B19: Restaurant | C19: 9 | D19: 256775 | F19: 0.5 | G19: 0.3333333333 | H19: 0.1666666667 | J19: 6.065614554 | K19: 49.98068438 | L19: 23.54753607 | M19: 22.91702314 | O19: 0.5 | P19: 0.3333333333 | Q19: 0 | R19: 0.1666666667 | T19: 159.0499954 | U19: 136.6999969 | V19: 159.0499954 | W19: 307.2666677
B20: Retail Store | C20: 88 | D20: 7228308.398 | F20: 0.2261904762 | G20: 0.4404761905 | H20: 0.3333333333 | J20: 1.07683912 | K20: 37.38817297 | L20: 13.75478322 | M20: 11.77072875 | O20: 0.2261904762 | P20: 0.2261904762 | Q20: 0.2142857143 | R20: 0.3333333333 | T20: 69.12173943 | U20: 46.97368401 | V20: 69.12173943 | W20: 121.1777759
B21: Self-Storage Facility | C21: 28 | D21: 1427186 | F21: 0.07142857143 | G21: 0.3571428571 | H21: 0.5714285714 | J21: 0.4191229671 | K21: 12.35618318 | L21: 3.405558739 | M21: 2.467881108 | O21: 0.07142857143 | P21: 0.1785714286 | Q21: 0.1785714286 | R21: 0.5714285714 | T21: 43.05000019 | U21: 15.62000008 | V21: 22.3166666 | W21: 43.05000019
B22: Senior Care Community | C22: 14 | D22: 1198076 | F22: 0.3333333333 | G22: 0.4 | H22: 0.2666666667 | J22: 6.67293295 | K22: 28.99386111 | L22: 15.34505642 | M22: 14.31307186 | O22: 0.3333333333 | P22: 0.06666666667 | Q22: 0.3333333333 | R22: 0.2666666667 | T22: 145.9699997 | U22: 62.79999924 | V22: 93 | W22: 145.9699997
B23: Supermarket/Grocery Store | C23: 36 | D23: 1660997 | F23: 0.1764705882 | G23: 0.5882352941 | H23: 0.2352941176 | J23: 14.13156425 | K23: 70.903315 | L23: 45.81281782 | M23: 45.43313643 | O23: 0.1764705882 | P23: 0.3823529412 | Q23: 0.2058823529 | R23: 0.2352941176 | T23: 290.0333354 | U23: 243.6000026 | V23: 290.0333354 | W23: 348.3571472
B24: Worship Facility | C24: 69 | D24: 2308649 | F24: 0.2923076923 | G24: 0.5230769231 | H24: 0.1846153846 | J24: 0.9740034172 | K24: 16.57365785 | L24: 3.66162972 | M24: 3.480909595 | O24: 0.2923076923 | P24: 0.3076923077 | Q24: 0.2153846154 | R24: 0.1846153846 | T24: 55.92499924 | U24: 30.71499996 | V24: 40.96111107 | W24: 55.92499924
C25: =SUM(C6:C24) -> 1544 | D25: =SUM(D6:D24) -> 158338464.5 | F25: 0.2405191225 | G25: 0.4451853845 | H25: 0.314295493 | I25: 1 | J25: 3.264183784 | K25: 57.0881072 | L25: 15.26646931 | M25: 10.4799155
J28: kWh/ SqFt (Avg. Use per Quartile) | O28: # of Buildings
J29: Lowest Use | K29: Medium Low | L29: Medium High | M29: Highest Use | O29: Lowest Use | P29: Medium Low | Q29: Medium High | R29: Highest Use
I30: College/University | J30: 5.026163947 | K30: 12.17590667 | L30: 13.13586365 | M30: 15.45911032 | O30: 6 | P30: 6 | Q30: 7 | R30: 1 | S30: 20
I31: Distribution Center | J31: 4.497214042 | K31: 4.497214042 | L31: 6.420853973 | M31: 13.98732219 | O31: 17 | P31: 7 | Q31: 12 | R31: 11 | S31: 47
I32: Hospital | J32: 29.10085713 | K32: 29.10085713 | L32: 36.61605621 | M32: 33.545569 | O32: 2 | P32: 3 | Q32: 2 | R32: 3 | S32: 10
I33: Hotel | J33: 6.97462288 | K33: 10.11939676 | L33: 13.34248687 | M33: 14.47888759 | O33: 13 | P33: 18 | Q33: 18 | R33: 18 | S33: 67
I34: K-12 School | J34: 6.962239696 | K34: 5.83232109 | L34: 4.921211857 | M34: 6.962239696 | O34: 50 | P34: 29 | Q34: 26 | R34: 31 | S34: 136
I35: Medical Office | J35: 22.94428324 | K35: 19.01879813 | L35: 22.94428324 | M35: 30.17591219 | O35: 14 | P35: 11 | Q35: 6 | R35: 6 | S35: 37
I36: Mixed Use Property | J36: 39.22203646 | K36: 9.654711358 | L36: 13.42097687 | M36: 39.22203646 | O36: 21 | P36: 25 | Q36: 17 | R36: 15 | S36: 78
I37: Multifamily Housing | J37: 14.93780577 | L37: 8.709632846 | M37: 14.93780577 | O37: 1 | P37: 0 | Q37: 1 | R37: 5 | S37: 7
I38: Non-Refrigerated Warehouse | J38: 6.432729395 | K38: 4.249473331 | L38: 6.432729395 | M38: 11.96292409 | O38: 51 | P38: 42 | Q38: 52 | R38: 45 | S38: 190
I39: Office | J39: 15.21411576 | K39: 12.53872965 | L39: 15.21411576 | M39: 21.88642649 | O39: 79 | P39: 121 | Q39: 99 | R39: 112 | S39: 411
I40: Other | J40: 41.63163019 | K40: 10.96682113 | L40: 16.83363891 | M40: 41.63163019 | O40: 68 | P40: 51 | Q40: 71 | R40: 40 | S40: 230
I41: Refrigerated Warehouse | J41: 9.573880867 | K41: 9.573880867 | L41: 14.65666927 | M41: 50.50684036 | O41: 0 | P41: 2 | Q41: 2 | R41: 10 | S41: 14
I42: Residence Hall/Dormitory | J42: 8.102603848 | K42: 7.197130331 | M42: 8.102603848 | O42: 0 | P42: 1 | Q42: 0 | R42: 2 | S42: 3
I43: Restaurant | J43: 14.40753498 | K43: 24.82239159 | L43: 14.40753498 | M43: 36.62565921 | O43: 3 | P43: 2 | Q43: 0 | R43: 1 | S43: 6
I44: Retail Store | J44: 16.35616643 | K44: 10.15315554 | L44: 16.35616643 | M44: 24.32023994 | O44: 19 | P44: 19 | Q44: 18 | R44: 28 | S44: 84
I45: Self-Storage Facility | J45: 7.190936596 | K45: 2.8009647 | L45: 3.19730149 | M45: 7.190936596 | O45: 2 | P45: 5 | Q45: 5 | R45: 16 | S45: 28
I46: Senior Care Community | J46: 16.46402503 | K46: 12.68533796 | L46: 15.4161343 | M46: 16.46402503 | O46: 5 | P46: 1 | Q46: 5 | R46: 4 | S46: 15
I47: Supermarket/Grocery Store | J47: 52.62235948 | K47: 44.98167192 | L47: 52.62235948 | M47: 59.02457387 | O47: 6 | P47: 13 | Q47: 7 | R47: 8 | S47: 34
I48: Worship Facility | J48: 6.564389871 | K48: 3.35918026 | L48: 3.587886447 | M48: 6.564389871 | O48: 19 | P48: 20 | Q48: 14 | R48: 12 | S48: 65
S50: 1482

Sheet DataLabel Definitions (hidden)
A1: Field | B1: Description | C1: Units | D1: Importance for Tune-Ups (Per draft Director's Rule) or Asset Score | E1: Asset Score Preview Field? | F1: AS Field Name
A2: BuildingId | B2: COS custom ID using for energy benchmarking reporting.
A3: KCPinNumber | B3: King County tax parcel number
A4: EPA_BUILDING_ID | B4: Portfolio Manager building ID #. Also referred to as EPABuildingId.
A5: BuildingTypeName | B5: COS ID used for sorting buildings into high level types. | D5: Part of TuneUp Eligible Iff function.
A6: BuildingName | B6: Name listed in King County or updated though customer contact. | E6: X | F6: building_name
A7: Address | B7: Address listed in King County or updated though customer contact. | E7: X | F7: street
A8: City | B8: City listed in King County or updated though customer contact. | E8: X | F8: city | G8: state will be all WA
A9: ZipCode | B9: ZipCode listed in King County or updated though customer contact. | E9: X | F9: postal_code
A10: YearBuiltDateTime | B10: Date built listed in King County or updated though customer contact. | E10: X | F10: year_completed | G10: will need to convert to whole year
A11: YearLastRemodelDateTime | B11: Last Remodel listed in King County or updated though customer contact. Often not a reliable date.
A12: NumberFloorsQuantity | B12: Floors listed in King County or updated though customer contact. | E12: X | F12: number_floors
A13: KCGrossSF | B13: Gross Floor area listed in King County or updated though customer contact. | C13: SF
A14: KCParking | B14: Parking listed in King County or updated though customer contact. | C14: SF
A15: KCBaseParking | B15: Basement parking listed in King County or updated though customer contact. | C15: SF
A16: KCParkingTotal | B16: Sum of Parking + Base Parking (in Access) | C16: SF
A17: KCGrossSFLessParking | B17: KCGrossSF minus KCParkingTotal (in Access) | C17: SF
A18: KCResSF | B18: Residential SF listed in King County or updated though customer contact. | C18: SF
A19: KCNoParkingNoRes | B19: KCGrossSF minus KCParkingTotal + KCResSF (in Access) | C19: SF | D19: SF used to determine if Tune Up is required. Part of TuneUp Eligible Function.
A20: KCNonResSF | B20: Nonresidential SF listed in King County or updated though customer contact. | C20: SF
A21: KCBaseNonResSF | B21: Basement Nonresidential SF listed in King County or updated though customer contact. | C21: SF
A22: KCTotalNonResSF | B22: Sum of NonResidential spaces (in Access) | C22: SF | D22: Part of TuneUp Eligible Function.
A23: TuneUpEligible | B23: Iff Function created in Access | D23: An if/then function built in Access that defines if building must comply with TU Req and deadline. Buildings listed as TU2020 and TU2021 are mandated to comply with Seattle Requirement by October of that year, and are eligible for the Accelerator. (TU2018 and TU2019 are larger than 100K, but are required and pending conditioned space, some just over 100K could partipate in Accelerator). Buildings listed as TUOPT are could participate in the Accelerator, but are not required by mandate.
A24: EPABuildingTypeName | B24: Portfolio Manager defined building type use for EUIRank loopup. | D24: Building name that the person who benchmarked used. Often more accurate than KC building name. | E24: X | F24: use_type | G24: will need to match to AS types
A25: EPABuildingSubTypeName | B25: Portfolio Manager defined building type (50% of space or more), based on benchmarking. | E25: X | F25: use_type | G25: use this if prior is "other"
A26: ListOfAllPropertyUseTypesAtPropertyDescription | B26: Portfolio Manager property types.
A27: EPAGrossFloorAreaQuantity | B27: Portfolio Manager defined gross area, based on benchmarking. | C27: SF | D27: GFA that is used to determine EUI and ENERGY STAR score | E27: X | F27: floor_area
A28: SiteEUINonNormQuantity | B28: Portfolio Manager calculated Site EUI ending Dec 2016 | C28: kBtu/sf
A29: EUIRankDescription | B29: Building site EUI Rank (quartile) by building type based on benchmarking analysis of Seattle buildings. | D29: Useful for prioritization
A30: SiteTotalNonNormQuantity | B30: Portfolio Manager calculated Total ending Dec 2016 | C30: kBtu
A31: SiteEUIWeatherNormQuantity | B31: Portfolio Manager calculated weather normalized Site EUI ending Dec 2016 | C31: kBtu/sf | D31: Buildings with WN EUI <=20 may be exempt pending data verification
A32: ElectricGridRenewNonNormQuantity | B32: Portfolio Manager calculated electric total use ending Dec 2016 | C32: KWH | E32: X
A33: GasTotalNonNormQuantity | B33: Portfolio Manager calculated natural gas total use ending Dec 2016 | C33: therms | E33: X
A34: SteamTotalNonNormQuantity | B34: Portfolio Manager calculated natural gas total use ending Dec 2016 | C34: kBtu
A35: SourceEUINonNormQuantity | B35: Portfolio Manager calculated Source EUI ending Dec 2016 | C35: kBtu/sf
A36: ScoreNumber | B36: Portfolio Manager ENERGY STAR score | C36: 1-100 (blank = NA) | D36: Buildings >=100K with "certifed" ENERGY STAR Score >=90 may be exempt; <100K threshold is >85.
A37: DefaultDataFlag | B37: Portfolio Manager ENERGY STAR score is based on default space us data (for example, hours of operation). | C37: Y/N | D37: ScoreNumber is more likely to be incorrect if = Y, since it means business characteristics such as operating hours are not relying on default ES values.
A38: EnergyStarYearsDescription | B38: Portfolio Manager ENERGY STAR score years that building obtained certification label | D38: Indicates ENERGY STAR scores that have been certfied and therefore could help building obtain exemption (if they recertify within 2 years or less before deadline)
A39: IndirectGHGEmissionsQuantity | B39: Portfolio Manager calculated based on regional grid factors | C39: (Metric Tons CO2e)
A40: DirectGHGEmissionsQuantity | B40: Portfolio Manager calculated based on regional grid factors | C40: (Metric Tons CO2e)
A41: TotalGHGEmissionsQuantity | B41: Portfolio Manager calculated based on regional grid factors | C41: (Metric Tons CO2e)
A42: NEW_EPA_CONTACT_ID | B42: Portfolio Manager account ID that submitted benchmarking report
A43: USER_NAME | B43: Portfolio Manager user name (login name of person with account)
A44: EPA_CONTACT_NAME | B44: Portfolio Manager organization name that submitted benchmarking report
A45: FIRST_NAME | B45: Portfolio Manager first name that submitted benchmarking report
A46: LAST_NAME | B46: Portfolio Manager last name that submitted benchmarking report
A47: EMAIL | B47: Portfolio Manager contact organization that submitted benchmarking report
A48: PHONE | B48: Portfolio Manager contact organization that submitted benchmarking report

Sheet DropDown Lookups (hidden)
B1: Basic Tune-Up: | C1: Tune-Up Plus: | D1: Building Renewal Program:
B2: This basic Tune-Up meets BTU Requirements. No other additional scope. | C2: Tune-Up meets BTU Requirements & Additional standard conservation measures requested, e.g. Lighting or HVAC | D2: Tune-Up meets BTU Requirements & Integrated Design Lab support requested for "Deep Retrofits".
B3: Contractor
B4: Customer
A9: Facility Use Code | G9: Project Summary
A10: Facility Use | B10: Code | G10: Assessment
G11: Tune-Up Actions
A12: Assembly - Religious Worship | B12: CC
A13: Assembly - All Others | B13: CD
A14: Lodging - Hotel/Motel/Inn | B14: CH
A15: Commercial - Other | B15: CZ
A16: Data Center | B16: DC
A17: Grocery - Big Box >50,000 SF | B17: GB
A18: Supermarket >5,000 SF | B18: GM
A19: MiniMart | B19: GS
A20: Hospital | B20: HO
A21: Industrial - Frozen Food / Cold Storage | B21: I1
A22: Industrial - Foundries | B22: I2
A23: Industrial - Utilities | B23: I3
A24: Industrial - Stone & Glass | B24: I4
A25: Industrial - Other Food | B25: IF
A26: Industrial-Marijuana Horticulture | B26: IH
A27: Industrial - Transportation Equipment | B27: IN
A28: Industrial - Other | B28: IZ
A29: Marijuana - All Related Businesses (non-horticulture) | B29: MB
A30: High-Rise Multifamily, 5 units or more, 6+ stories | B30: MH
A31: Low-Rise Multifamily, 5 units or more, 1-3 stories | B31: ML
A32: Mid-Rise Multifamily, 5 units or more, 4-6 stories | B32: MM
A33: Multiplex - 2-4 Dwelling Units | B33: MP
A34: Office Large > 100,000 SF | B34: OL
A35: Office Medium 20,000 to 100,000 SF | B35: OM
A36: Office Small | B36: OS
A37: Retail Automotive | B37: RA
A38: Retail Big Box/Anchor/Mall >50,000 SF | B38: RB
A39: Residential Care | B39: RC
A40: Restaurant - Full Service | B40: RF
A41: Restaurant - Limited Service | B41: RL
A42: Retail Small Box | B42: RS
A43: School - K-12 | B43: SE
A44: Single Family Dwelling | B44: SF
A45: School - University | B45: SU
A46: NON-BUILDING - Vacant Land | B46: VL
A47: Non-Building - Exterior Lighting | B47: Z1
A48: Non-Building - Miscellaneous Equipment | B48: Z2
A49: Parking | B49: ZP
A50: Warehouse | B50: ZW
A53: Facility Type
A54: Facility Type
A55: New Construction Commercial
A56: Retrofit Commercial
A57: Industrial
A58: Non-Incentive Savings
A59: Retrofit Commercial-Data Center
A60: Industrial- Horticulture
A61: Small Business
A62: Multi-Family
A65: Supervisor
A66: Joseph Fernandi
A67: Kanwalpreet Sidhu
A68: Bretnie Eschenbach
A69: Victor Yagi
